{"text_format":"1","workbook":"xlsx","n_sheets":4,"sheets":["Instructions","Main Estimator BOM Builder ","MDU & Residential BOM Builder","Backend"],"not_rendered":{"charts":0,"images":3,"macros":1,"external_links":1,"defined_names":2,"comments":0,"pivot_tables":0},"unopened":[],"bounds":{"document_bytes":16777216,"sheet_cells":100000,"rows_first":2000,"rows_last":500,"rows_between":2000,"halvings":0,"cell_chars":16384,"cell_head_chars":4096},"cells_cut":0,"cells_raw":0,"read":"whole","date_system":"1900"}

{"sheet":"Instructions","index":0,"n_rows":20,"n_cols":2,"rows_kept":20,"cut":false,"hidden":false,"merged":[]}
[null,"Easy Estimator BOM Master Instructions"]
[null,"Incorporated are all our key products for each represented manufacturer with specific description, color, part number and a direct hot link to each associated data sheet (far right) for your submittal requirements.  We've personalized the document for you with the incorporation of your logo."]
[]
[null,"Make sure to review the indivudial tabs at the bottom of the spreadsheet for specific application products and BLT solution offerings.    Here's how the spreadsheet works."]
["       •","Open the file"]
["       •","A screen will pop up...This workbook contains macros.  "]
["       •","Select \"Enable Macros\""]
["       •","At the top menu bar select \"File\" then \"Save As\"."]
["       •","Enter your project name (at this point your original master is saved and your now working in the named project file).  This is a key requirement because you don't want to alter the Master File and effect the Macro's."]
["       •","At the top of the spreadsheet, fill in the cells:  Project Name, Project City and Distributor.  When complete, click the \"Date\" button which auto enters the current date."]
["       •","Enter the quantity (column E), per product line item."]
["       •","The spreadsheet incorporates all the infrastructure associated products as you scroll down for a complete and comprehensive BOM."]
["       •","Upon completion of entering all your quantities, go to the top of the spreadsheet and click the \"FINAL BOM\" button."]
["       •","This will collapse all the non quantity items and leave you with your final BOM."]
["       •","Save the file."]
["✔️","The above steps need to occur EACH time you create a new BOM.  This will ensure the continued functionality of the spreadsheet due to the incorporated macros."]
[]
[null,"Your now ready to email your complete Excel BOM to distribution for pricing.  This should be a more efficient way of producing BOM's for you and dramatically improves the process from our end.  It eliminates any guess work as to the specific product, associated style or performance requirements and improves our ability to process the requested quotes in a more timely manner. "]
[]
[null,"I hope you see this as a useful tool and hope you will implement it with your estimating department as quickly as possible.  Should you need any products added to the master, e-mail Bob Costa at bcosta@westcaltech.com and I will gladly make the requested update(s) for you."]

{"sheet":"Main Estimator BOM Builder ","index":1,"n_rows":1049,"n_cols":8,"rows_kept":1049,"cut":false,"hidden":false,"merged":[[0,0,4,0],[224,1,224,3],[233,1,233,3],[174,1,174,3],[208,1,208,3],[200,1,200,3],[0,2,0,3],[1,2,1,3],[2,2,2,3],[147,1,147,3],[155,1,155,3],[3,2,3,3],[4,2,4,3]]}
["Contractor/Customer Logo","Project Name:",null,null,1]
[null,"Project City:",null,null,1]
[null,"Contractor: ",null,null,1]
[null,"Distributor:",null,null,1]
[null,null,null,null,1]
["DESCRIPTION","COLOR","MFG.","PART NUMBER","QTY","LINKS - DATA SHEETS"]
["Copper Cable"]
["CMP - Plenum Cables",null,null,null,null,null," "]
["Category 6A  Berk-Tek LM-RDT, Small OD 0.230\", CMP,   Box  NEW                                   ","White","Leviton ",11142628,null,11142628]
["Category 6A  Berk-Tek LM-RDT, Small OD 0.230\", CMP,   Box  NEW                                  ","Blue","Leviton ",11142454,null,11142454]
["Category 6A  Berk-Tek LM-RDT, Small OD 0.230\", CMP,   Reel                                         ","White","Leviton ",11141651,null,11141651," "]
["Category 6A  Berk-Tek LM-RDT, Small OD 0.230\", CMP,   Reel                                         ","Blue","Leviton ",11141650,null,11141650]
[null,null," "]
["Category 6A  Berk-Tek LM-SST, OD 0.250\", CMP, Reel in a Box ","White","Leviton ",11140628,null,11140628," "]
["Category 6A  Berk-Tek LM-SST, OD 0.250\", CMP, Reel in a Box        ","Blue","Leviton ",11140627,null,11140627," "]
[]
["Category 6A (Shielded) Berk-Tek LM-10G F/UTP, CMP, Reel","White","Leviton ",10167485,null,10167485]
["Category 6A (Shielded) Berk-Tek LM-10G F/UTP, CMP, Reel","Blue","Leviton ",10143424,null,10143424]
[]
["Category 6 Enhanced Berk-Tek LM-1000, CMP, Reel in a Box ","White","Leviton ",10065424,null,10065424]
["Category 6 Enhanced Berk-Tek LM-1000, CMP, Reel in a Box    ","Blue","Leviton ",10065423,null,10065423]
["Category 6 Berk-Tek LM- 6, CMP, Box","White","Leviton ",10136230,null,10136230]
["Category 6 Berk-Tek LM- 6, CMP, Box","Blue","Leviton ",10136226,null,10136226]
[]
["Category 5e Berk-Tek HyperPlus 5e, CMP, Box","White","Leviton ",10032223,null,10032223]
["Category 5e Berk-Tek HyperPlus 5e, CMP, Box","Blue","Leviton ",10032227,null,10032227]
[]
["Extended Distance Cable Berk-Tek \"Stadion\" 140 meters Guarantee, UTP, CMP, Reel  NEW","White","Leviton "]
[]
["Copper Cable Color guide --->",null,null,null,null,"Copper Guide.pdf"," "," "]
[null,null,null,null,null,null," "]
["CMR - Riser Cables"]
["Category 6A Berk-Tek LM-RDT, Small OD 0.245\", CMR, Box  NEW","White","Leviton ",11142629,null,11142629]
["Category 6A Berk-Tek LM-RDT, Small OD 0.245\", CMR, Box  NEW","Blue","Leviton ",11142455,null,11142455]
["Category 6A Berk-Tek LM-RDT, Small OD 0.245\", CMR, Reel ","White","Leviton ",11142285,null,11142285]
["Category 6A Berk-Tek LM-RDT, Small OD 0.245\", CMR, Reel ","Blue","Leviton ",11142398,null,11142398]
[]
["Category 6A Berk-Tek LM-SST, CMR, Reel in a Box","White","Leviton ",11140640,null,11140640]
["Category 6A Berk-Tek LM-SST, CMR, Reel in a Box","Blue","Leviton ",11142398,null,11142398]
[]
["Category 6A (Shielded) Berk-Tek LM-10G F/UTP, CMR, Reel","White","Leviton ",10189801,null,10189801]
["Category 6A (Shielded) Berk-Tek LM-10G F/UTP, CMR, Reel","Blue","Leviton ",10189567,null,10189567]
[]
["Category 6 Enhanced Berk-Tek LM-1000, CMR, Reel in a Box","White","Leviton ",10065430,null,10065430," "]
["Category 6 Enhanced Berk-Tek LM-1000, CMR, Reel in a Box","Blue","Leviton ",10065429,null,10065429," "]
["Category 6 Berk-Tek LM-6, CMR, Box ","White","Leviton ",10136340,null,10136340]
["Category 6 Berk-Tek LM-6, CMR, Box ","Blue","Leviton ",10136339,null,10136339,"  "]
[]
["Category 5e Berk-Tek HyperPlus 5e, CMR, Box","White","Leviton ",11142476,null,11142476," "]
["Category 5e Berk-Tek HyperPlus 5e, CMR, Box","Blue","Leviton ",11142475,null,11142475," "]
[]
["Extended Distance Cable Berk-Tek \"Stadion\" 140 meters Guarantee, UTP, CMR, Reel  ","White","Leviton "]
[" ",null,null,null,null,null," "," "]
["Copper Cable Color guide --->",null,null,null,null,"Copper Guide.pdf"," "," "]
[]
["I/O (Indoor/Outdoor) & OSP (Outside Plant)",null,null,null,null,null," "]
["Category 6A Berk-Tek LM-RDT I/O CMP, Reel NEW","Black","Leviton ",11142753,null,11142753]
["Category 6A Berk-Tek OSP Gel Filled \"Icky-Pic\" LM-10G, Reel","Black","Leviton ",11094458,null,11094458]
[" "," "," "," "]
["Category 6 Berk-Tek LM-6 OSP, Reel","Black","Leviton ",10139885,null,10139885]
["Category 5e Berk-Tek HyperPlus 5e OSP, Reel","Black","Leviton ",10071496,null,10071496]
[]
["Patch Panels",null,null,null,null,null," "]
["QuickPort Jack Termination Empty - Flat",null,null,null,null,null," "]
["24-Port QuickPort Flat Panel Empty, 1RU  (rear cable mgmt bar included)","Black","Leviton","49255-H24",null,"49255-H24"," "]
["48-Port QuickPort Flat Panel Empty, 1RU  (rear cable mgmt bar NOT included)","Black","Leviton","49255-Q48",null,"49255-Q48"]
["48-Port QuickPort Flat Panel Empty, 2RU  (rear cable mgmt bar included)","Black","Leviton","49255-H48",null,{"$f":"HYPERLINK(\"http://www.leviton.com/OA_HTML/ProductDetail.jsp?partnumber=49255-H48&section=39286&minisite=10251\",\"49255-H48\")","v":"49255-H48"}]
["48-Port QuickPort Front Loading Flat Panel Empty, 2RU  (rear cable mgmt included) NEW","Black","Leviton","49455-48B",null,"49455-48B"]
[]
["24-Port QuickPort Flat Panel Empty, 1RU - with Magnifying Lens Label Holders  (rear cable mgmt bar included)","Black","Leviton","49255-L24",null,"49255-L24"," "]
["48-Port QuickPort Flat Panel Empty, 2RU - with Magnifying Lens Label Holders  (rear cable mgmt bar included)","Black","Leviton","49255-L48",null,"49255-L48"]
[]
[]
["24-Port QuickPort Flat Shielded Panel, 1RU (rear cable mgmt bar included)","Black","Leviton","4S255-S24",null,"4S255-S24"]
["48-Port QuickPort Flat Shielded Panel, 1RU (rear cable mgmt bar included)","Black","Leviton","4S255-D48",null,"4S255-D48"]
["48-Port QuickPort Flat Shielded Panel, 2RU (rear cable mgmt bar included)","Black","Leviton","4S255-S48",null,"4S255-S48"]
[]
["Rear Cable Management Cable Clip Bar - (accommodates 24 cables)","Silver","Leviton","49005-CMC",null,"49005-CMC"]
[]
["QuickPort Jack Termination Empty - Angled"]
["24-Port Angled QuickPort Panel Empty, 1RU (rear cable mgmt bar NOT included)","Black","Leviton","49256-H24",null,"49256-H24"]
["48-Port Angled QuickPort Panel Empty, 1RU High Density (rear cable mgmt bar NOT included)","Black","Leviton","49256-D48",null,"49256-D48"]
["48-Port Angled QuickPort Panel Empty, 2RU (rear cable mgmt bar NOT included)","Black","Leviton","49256-H48",null,{"$f":"HYPERLINK(\"http://www.leviton.com/OA_HTML/ProductDetail.jsp?partnumber=49256-H48&section=39282&minisite=10251\",\"49256-H48\")","v":"49256-H48"}]
[]
["QuickPort Rear Cable Management Bar, Angled","Black","Leviton","49006-AMB",null,"49006-AMB"," "]
[" "]
["110-Style Termination - Flat"]
["Category 6A, 48-Port Flat 110-Style Panel, 2RU (rear cable mgmt bar included)","Black","Leviton","6A586-U48",null,{"$f":"HYPERLINK(\"http://www.leviton.com/OA_HTML/ProductDetail.jsp?partnumber=6A586-U48&section=43164&minisite=10251\",\"6A586-U48\")","v":"6A586-U48"}]
["Category 6A, 24-Port Flat 110-Style Panel, 1RU (rear cable mgmt bar included)","Black","Leviton","6A586-U24",null,{"$f":"HYPERLINK(\"http://www.leviton.com/OA_HTML/ProductDetail.jsp?partnumber=6A586-U24&section=43164&minisite=10251\",\"6A586-U24\")","v":"6A586-U24"}]
[]
["Category 6,   48-Port Flat 110-Style Panel, 2RU (rear cable mgmt bar included)","Black","Leviton","69586-U48",null,{"$f":"HYPERLINK(\"http://www.google.com/url?q=http://www.leviton.com/OA_HTML/ProductDetail.jsp?partnumber%3D69586-U48%26minisite%3D10251&sa=D&usg=ALhdy28u7FHPG6S9nS0QUYpeq2tzQXSJlQ\",\"69586-U48\")","v":"69586-U48"}]
["Category 6,   24-Port Flat 110-Style Panel, 1RU (rear cable mgmt bar included)","Black","Leviton","69586-U24",null,{"$f":"HYPERLINK(\"http://www.leviton.com/OA_HTML/ProductDetail.jsp?partnumber=69586-U24&minisite=10251\",\"69586-U24\")","v":"69586-U24"}]
[]
["Category 5e, 48-Port Flat 110-Style Panel, 2RU (rear cable mgmt bar included)","Black","Leviton","5G596-U48",null,{"$f":"HYPERLINK(\"http://www.google.com/url?q=http://www.leviton.com/OA_HTML/ProductDetail.jsp?partnumber%3D5G596-U48%26minisite%3D10251&sa=D&usg=ALhdy29_BH84Ogx3lUTQ3imODmziUIxEpA\",\"5G596-U48\")","v":"5G596-U48"}]
["Category 5e, 24-Port Flat 110-Style Panel, 1RU (rear cable mgmt bar included)","Black","Leviton","5G596-U24",null,{"$f":"HYPERLINK(\"http://www.leviton.com/OA_HTML/ProductDetail.jsp?partnumber=5G596-U24&minisite=10251\",\"5G596U24\")","v":"5G596U24"}]
[]
["Rear Cable Management Clip Bar - (accommodates 24 cables)","Silver","Leviton","49005-CMC",null,"49005-CMC"]
[]
["110-Style Termination - Angled"]
["Category 6A, 48-Port Angled 110-Style Panel, 2RU (rear cable mgmt bar NOT included)","Black","Leviton","6A587-U48",null,"6A587-U48"]
["Category 6A, 24-Port Angled 110-Style Panel, 1RU (rear cable mgmt bar NOT included)","Black","Leviton","6A587-U24",null,"6A587-U24"]
[]
["Category 6,   48-Port Angled 110-Style Panel, 2RU (rear cable mgmt bar NOT included)","Black","Leviton","69587-U48",null,"69587-U48"]
["Category 6,   24-Port Angled 110-Style Panel, 1RU (rear cable mgmt bar NOT included)","Black","Leviton","69587-U24",null,"69587-U24"]
[]
["Category 5e, 48-Port Angled 110-Style Panel, 2RU (rear cable mgmt bar NOT included)","Black","Leviton","5G597-U48",null,{"$f":"HYPERLINK(\"http://www.leviton.com/OA_HTML/ProductDetail.jsp?partnumber=5G597-U48&section=43178&minisite=10251\",\"5G597-U48\")","v":"5G597-U48"}]
["Category 5e, 24-Port Angled 110-Style Panel, 1RU (rear cable mgmt bar NOT included)","Black","Leviton","5G597-U48",null,"5G597-U24"]
[]
["QuickPort Rear Cable Management Bar, Angled","Black","Leviton","49006-AMB",null,"49006-AMB"," "]
[]
[]
["75' Velcro Roll","Black","Leviton","43115-75",null,{"$f":"HYPERLINK(\"http://www.google.com/url?q=http://www.leviton.com/OA_HTML/ProductDetail.jsp?partnumber%3D43115-75%26minisite%3D10251&sa=D&usg=ALhdy2-V7RV90m0-1kwN5G7_7lqZNSm_Jg\",\"43115-75\")","v":"43115-75"}," "]
[]
["JACKS"]
["Cat 6A Jacks"]
["Category 6A, Atlas-X1™ Tooless Jack (component rated)","*","Leviton","6AUJK-R*6",null,"6AUJK-RL6"," "]
["Category 6A, Atlas-X1™ Tooless Jack (component rated) - Bulk Pack 12pc","*","Leviton","6AUJK-C*6",null,"6AUJK-CL6"]
["Category 6A, Atlas-X1™ Tooless Jack (component rated) with Shutters","*","Leviton","6AUJK-S*6",null,"6AUJK-SL6"," "]
[]
["Category 6A, Atlas-X1™ Tooless Jack (component rated) Shielded","*","Leviton","6ASJK-R*6",null,"6ASJK-RL6"]
["Category 6A, Atlas-X1™ Tooless Jack (component rated) Shielded with Shutters","*","Leviton","6ASJK-S*6",null,"6ASJK-SL6"," "]
[]
["Category 6A, eXtreme Jack (channel rated), 110 Punch Style","*","Leviton","6110G-R*6",null,"6110G-RW6"]
["Category 6A, eXtreme Jack (channel rated), 110 Punch Style - Bulk Pack 12pc","*","Leviton","6110G-C*6",null,"6110G-BW6"]
[]
["Category 6A, VXC Assembly for \"WAPs / Cameras\", UTP & F/UTP,  18\" Plenum Cord  NEW","White","Leviton","SBCPI-18W",null,"SBCPI-18W"]
["Category 6A, VXC Assembly for \"WAPs / Cameras\", UTP & F/UTP,  18\" Plenum Cord  NEW","Blue","Leviton","SBCPI-18L",null,"SBCPI-18L"]
["Category 6A, VXC I/O Assembly for \"WAPs / Cameras\", 15ft  Outdoor Rated Cord  NEW","Black","Leviton","SBCOP-15E",null,"SBCOP-15E"]
[]
["Category 6A, VXC Coupler \"Cable to Cable Connections\" UTP & F/UTP  NEW","Silver","Leviton","SBCPI-S",null,"SBCPI-S"]
[" "," "," "," "," "]
["Cat 6 Jacks"]
["Category 6,   Atlas-X1™ Tooless Jack (component rated)","*","Leviton","61UJK-R*6",null,"61UJK-RL6"]
["Category 6,   Atlas-X1™ Tooless Jack (component rated) Bulk Pack 12pc","*","Leviton","61UJK-C*6",null,"61UJK-CL6"]
["Category 6,   Atlas-X1™ Tooless Jack (component rated) with Shutters","*","Leviton","61UJK-S*6",null,"61UJK-SL6"," "]
[]
["Category 6,   Atlas-X1™ Tooless Jack (component rated) Shielded","*","Leviton","61SJK-R*6",null,"61SJK-RL6"]
["Category 6,   Atlas-X1™ Tooless Jack (component rated) Shielded with Shutters","*","Leviton","61SJK-S*6",null,"61SJK-SL6"," "]
[]
["Category 6,   eXtreme Jack  (component rated), 110 Punch Style","*","Leviton","61110-R*6",null,"61110-RW6"]
["Category 6,   eXtreme Jack  (component rated), 110 Punch Style - Bulk Pack 25pc","*","Leviton","61110-B*6",null,"61110-BW6"]
[" "," "," "," "," "," "]
["Cat 5e Jacks"]
["Category 5e, eXtreme Jack  (component rated), 110 Punch Style ","*","Leviton","5G110-R*5",null,"5G110-RW5"," "]
["Category 5e, GigaMax® Jack  (channel rated), 110 Punch Style","*","Leviton","5G108-R*5",null,"5G108-RW5"]
["Category 5e, GigaMax® Jack  (channel rated), 110 Punch Style - Bulk Pack 25pc","*","Leviton","5G108-B*5",null,"5G108-BW5"]
[]
[" ","* Color Code for above Jacks..ie W = White"]
[]
["QuickPort Modules"]
["QuickPort Duplex LC shuttered, OM3/4 Multimode, FTTD  (zirconia ceramic sleeve), Aqua","*","Leviton","41086-LL*",null,"41086-LL*"," "]
["QuickPort Duplex LC shuttered, OS2 Singlemode, FTTD (zirconia ceramic sleeve), Blue","*","Leviton","41086-SL*",null,"41086-SL*"]
["QuickPort MTP/MPO Adapter for 8, 12 or 24 fiber plugs - Key Up/Key Down","Black","Leviton","41085-TPE",null,"41085-TPE"]
["F-Type Coupler Insert","*","Leviton","41084-F*F",null,"41084-FWF"]
["Blank Insert","*","Leviton","41084-0B*",null,"41084-0BW"]
[null,"* Color Code for above Inserts..ie W = White"]
[]
["Copper Patch Cords - Tangle Free"]
["Category 6A,    1' High-Flex Small OD .185\", Patch Cord - dual rated CM/LSZH, 28 AWG","*","Leviton","H6A10-01*",null,"H6A10-01*"," "]
["Category 6A,    3' High-Flex Small OD .185\", Patch Cord - dual rated CM/LSZH, 28 AWG","*","Leviton","H6A10-03*",null,"H6A10-03*"," "]
["Category 6A,    5' High-Flex Small OD .185\", Patch Cord - dual rated CM/LSZH, 28 AWG","*","Leviton","H6A10-05*",null,"H6A10-05*"]
["Category 6A,    7' High-Flex Small OD .185\", Patch Cord - dual rated CM/LSZH, 28 AWG","*","Leviton","H6A10-07*",null,"H6A10-07*"]
["Category 6A,    10' High-Flex Small OD .185\", Patch Cord - dual rated CM/LSZH, 28 AWG","*","Leviton","H6A10-10*",null,"H6A10-10*"]
["Category 6A,    15' High-Flex Small OD .185\", Patch Cord - dual rated CM/LSZH, 28 AWG","*","Leviton","H6A10-15*",null,"H6A10-15*"]
["Category 6A,    20' High-Flex Small OD .185\", Patch Cord - dual rated CM/LSZH, 28 AWG","*","Leviton","H6A10-20*",null,"H6A10-20*"]
["Bulk Cords Available in Blue  ---->",null,null,null,null,"Bulk Pack "," "]
[null,null,null,null,null,null," "]
["Category 6A,    1' Patch Cord - Standard Cord, 26 AWG","*","Leviton","6AS10-03*",null,"6AS10-03*"," "]
["Category 6A,    3' Patch Cord - Standard Cord, 26 AWG","*","Leviton","6AS10-03*",null,"6AS10-03*"," "]
["Category 6A,    5' Patch Cord - Standard Cord, 26 AWG","*","Leviton","6AS10-05*",null,"6AS10-05*"]
["Category 6A,    7' Patch Cord - Standard Cord, 26 AWG","*","Leviton","6AS10-07*",null,"6AS10-07*"]
["Category 6A,    10' Patch Cord - Standard Cord, 26 AWG","*","Leviton","6AS10-10*",null,"6AS10-10*"]
["Category 6A,    15' Patch Cord - Standard Cord, 26 AWG","*","Leviton","6AS10-15*",null,"6AS10-15*"]
["Category 6A,    20' Patch Cord - Standard Cord, 26 AWG","*","Leviton","6AS10-20*",null,"6AS10-20*"]
[" ","* Color Code for above Cords..ie L = Blue"]
[]
["Category 6A, Outdoor   1' Patch Cord - Standard Cord, 26 AWG NEW","Black ","Leviton"," ",null,null," "]
["Category 6A, Outdoor   3' Patch Cord - Standard Cord, 26 AWG","Black ","Leviton"," ",null,null," "]
["Category 6A, Outdoor   5' Patch Cord - Standard Cord, 26 AWG","Black ","Leviton"," "]
["Category 6A, Outdoor   7' Patch Cord - Standard Cord, 26 AWG","Black ","Leviton"," "]
["Category 6A, Outdoor   10' Patch Cord - Standard Cord, 26 AWG","Black ","Leviton"," "]
[]
["Category 6,  High-Flex Small OD,    6\" Patch Cord - dual rated CM/LSZH 28 AWG, 60W POE","*","Leviton","6H460-6I*",null,"6H460-6I*"," "]
["Category 6,  High-Flex Small OD,    1' Patch Cord - dual rated CM/LSZH 28 AWG, 60W POE","*","Leviton","6H460-01*",null,"6H460-01*"," "]
["Category 6,  High-Flex Small OD,    3' Patch Cord - dual rated CM/LSZH 28 AWG, 60W POE","*","Leviton","6H460-03*",null,"6H460-03*"," "]
["Category 6,  High-Flex Small OD,    5' Patch Cord - dual rated CM/LSZH 28 AWG, 60W POE","*","Leviton","6H460-05*",null,"6H460-05*"]
["Category 6,  High-Flex Small OD,    7' Patch Cord - dual rated CM/LSZH 28 AWG, 60W POE","*","Leviton","6H460-07*",null,"6H460-07*"]
["Category 6,  High-Flex Small OD,  10' Patch Cord - dual rated CM/LSZH 28 AWG, 60W POE","*","Leviton","6H460-10*",null,"6H460-10*"]
["Category 6,  High-Flex Small OD,  15' Patch Cord - dual rated CM/LSZH 28 AWG, 60W POE","*","Leviton","6H460-15*",null,"6H460-15*"]
["Category 6,  High-Flex Small OD,  20' Patch Cord - dual rated CM/LSZH 28 AWG, 60W POE","*","Leviton","6H460-20*",null,"6H460-20*"]
["Bulk Cords Available in Blue  ---->",null,null,null,null,"Bulk Pack "," "]
[]
["Category 6,     1' Patch Cord  (component rated) - 26 AWG, 100W POE","*","Leviton","6D460-01*",null,"6D460-01*"," "]
["Category 6,     3' Patch Cord  (component rated) - 26 AWG, 100W POE","*","Leviton","6D460-03*",null,"6D460-03*"," "]
["Category 6,     3' Patch Cord  (component rated) - 26 AWG, 100W POE","*","Leviton","6D460-03*",null,"6D460-03*"," "]
["Category 6,     5' Patch Cord  (component rated) - 26 AWG, 100W POE","*","Leviton","6D460-05*",null,"6D460-05*"," "]
["Category 6,     7' Patch Cord  (component rated) - 26 AWG, 100W POE","*","Leviton","6D460-07*",null,"6D460-07*"]
["Category 6,   10' Patch Cord  (component rated) - 26 AWG, 100W POE","*","Leviton","6D460-10*",null,"6D460-10*"]
["Category 6,   15' Patch Cord  (component rated) - 26 AWG, 100W POE","*","Leviton","6D460-15*",null,"6D460-15*"]
["Category 6,   20' Patch Cord  (component rated) - 26 AWG, 100W POE","*","Leviton","6D460-20*",null,"6D460-20*"]
[null,"* Color Code for above Cords..ie L = Blue"]
["Category 5e,   1' Patch Cord - GigaMax® Snagless   (channel rated)","*","Leviton","5G460-01*",null,"5G460-01*"," "]
["Category 5e,   3' Patch Cord - GigaMax® Snagless   (channel rated)","*","Leviton","5G460-03*",null,"5G460-03*"," "]
["Category 5e,   5' Patch Cord - GigaMax® Snagless   (channel rated)","*","Leviton","5G460-05*",null,"5G460-05*"]
["Category 5e,   7' Patch Cord - GigaMax® Snagless   (channel rated)","*","Leviton","5G460-07*",null,"5G460-07*"]
["Category 5e, 10' Patch Cord - GigaMax® Snagless   (channel rated)","*","Leviton","5G460-10*",null,"5G460-10*"]
["Category 5e, 15' Patch Cord - GigaMax® Snagless   (channel rated)","*","Leviton","5G460-15*",null,"5G460-15*"]
["Category 5e, 20' Patch Cord - GigaMax® Snagless   (channel rated)","*","Leviton","5G460-20*",null,"5G460-20*"]
[null,"* Color Code for above Cords..ie L = Blue"]
["Single-Gang, Dual- Gang Faceplates & SMB's"]
["1-port Faceplate with ID window","White","Leviton","42080-1*S",null,"42080-1WS"," "]
["2-port Faceplate with ID window","White","Leviton","42080-2*S",null,"42080-2WS"]
["3-port Faceplate with ID window","White","Leviton","42080-3*S",null,"42080-3WS"]
["4-port Faceplate with ID window","White","Leviton","42080-4*S",null,"42080-4WS"]
["12-port Faceplate with ID windows, Dual-Gang","White","Leviton","42080-12*",null,"42080-12W"]
[]
["1-port Faceplate - No Label Holder","White","Leviton","41080-1*P",null,"41080-1WP"]
["2-port Faceplate - No Label Holder","White","Leviton","41080-2*P",null,"41080-2WP"]
["3-port Faceplate - No Label Holder  ","White","Leviton","41080-3*P",null,"41080-3WP"]
["4-port Faceplate - No Label Holder  ","White","Leviton","41080-4*P",null,"41080-4WP"]
[]
["2-port Quickplate® TEMPO Faceplate with ID window - molded Mud Ring","White","Leviton","42090-2*S",null,"42090-2WS"]
["4-port Quickplate® TEMPO Faceplate with ID window - molded Mud Ring","White","Leviton","42090-4*S",null,"42090-4WS"]
[]
[" ","* Color Code for above Faceplates..ie W = White"]
[]
["4-port Modular Furniture Faceplate with  ID window","Black","Leviton","49910-SE4",null,{"$f":"HYPERLINK(\"http://www.google.com/url?q=http://www.leviton.com/OA_HTML/ProductDetail.jsp?partnumber%3D49910-SE4%26minisite%3D10251&sa=D&usg=ALhdy2_cVGDFkmx2tlPgYUkkHL_cRgwJ8g\",\"49910-SE4\")","v":"49910-SE4"}]
["4-port Angled Modular Furniture with  ID window  NEW","Black","Leviton","49910-UE4",null,"49910-UE4"]
[]
["1-port Surface Mount Box with ID window  \"Plenum Rated\" ","White","Leviton","41089-1*P",null,"41089-1WP"]
["2-port Surface Mount Box with ID window  \"Plenum Rated\" ","White","Leviton","41089-2*P",null,"41089-2WP"]
["4-port Surface Mount Box with ID window","White","Leviton","41089-4*P",null,"41089-4WP"]
["6-port Surface Mount Box with ID window","White","Leviton","41089-6*P",null,"41089-6WP"]
[" ","* Color Code for above Faceplates..ie W = White"]
[]
["QuickPort® In-Ceiling Bracket for WAP Intall with \"Batwings\"","Galv","Leviton","49223-CBC",null,"49223-CBC"," "]
["QuickPort® In-Wall Jack Mounting - Recessed Bracket","Galv","Leviton","49223-BAS",null,"49223-BAS"," "]
[null,null,null,null,null,null," "]
["Wall Termination Blocks - Copper"]
["Category 6,   100-pair, 110 block w/legs & C4 clips Kit",null,"Leviton","41AB6-1F4",null,{"$f":"HYPERLINK(\"http://www.google.com/url?q=http://www.leviton.com/OA_HTML/ProductDetail.jsp?partnumber%3D41AB6-1F4%26minisite%3D10251&sa=D&usg=ALhdy28cSmwc5Ms5we-tVO0TsUslJOpC0A\",\"41AB6-1F4\")","v":"41AB6-1F4"}," "]
["Category 5e, 100-pair, 110 block w/legs & C4 clips Kit",null,"Leviton","41AB2-1F4",null,{"$f":"HYPERLINK(\"http://www.leviton.com/OA_HTML/ProductDetail.jsp?partnumber=41AB2-1F4&section=40715&minisite=10251\",\"41AB2-1F4\")","v":"41AB2-1F4"}]
["Category 5e, 300-pair, 110 block w/legs & C5 clips Kit",null,"Leviton","41AB2-3F5",null,{"$f":"HYPERLINK(\"http://www.leviton.com/OA_HTML/ProductDetail.jsp?partnumber=41AB2-3F5&section=40715&minisite=10251\",\"41AB2-3F5\")","v":"41AB2-3F5"}]
[]
["Category 5e, 300-pair Tower, bottom tray, 110 blocks w/C4's, troughs, label holder Kit",null,"Leviton","41MB2-3F4",null,{"$f":"HYPERLINK(\"http://www.leviton.com/OA_HTML/ProductDetail.jsp?partnumber=41MB2-3F4&section=40833&minisite=10251\",\"41MB2-3F4\")","v":"41MB2-3F4"}]
["Category 5e, 300-pair Tower, bottom tray, 110 blocks w/C5's, troughs, label holder Kit",null,"Leviton","41MB2-3F5",null,{"$f":"HYPERLINK(\"http://www.leviton.com/OA_HTML/ProductDetail.jsp?partnumber=41MB2-3F5&section=40833&minisite=10251\",\"41MB2-3F5\")","v":"41MB2-3F5"}]
["110 Jumper Trough, 300 pair with bottom tray",null,"Leviton","41880-300",null,{"$f":"HYPERLINK(\"http://www.leviton.com/OA_HTML/ProductDetail.jsp?partnumber=41880-300&section=40833&minisite=10251\",\"41880-300\")","v":"41880-300"}]
[]
["Category 5e, Rack Mount 100-pair, 110 block w/legs & C5 clips Kit",null,"Leviton","41DBR-1F4",null,"41DBR-1F4"]
["Category 5e, Rack Mount 300-pair, 110 block w/legs & C5 clips Kit",null,"Leviton","41DBR2-300",null,"41DR2-300"]
[]
["Category 6,   eXtreme 6+, C-4 Clip",null,"Leviton","69104-IDC",null,{"$f":"HYPERLINK(\"http://www.google.com/url?q=http://www.leviton.com/OA_HTML/ProductDetail.jsp?partnumber%3D69104-IDC%26minisite%3D10251&sa=D&usg=ALhdy28bzeeevmafeL4Zkl57qHxxqoIPVQ\",\"69104-IDC\")","v":"69104-IDC"}]
["Category 5e, GigaMax 5e 110-Style, C-5 Clip",null,"Leviton","49105-IDC",null,{"$f":"HYPERLINK(\"http://www.google.com/url?q=http://www.leviton.com/OA_HTML/ProductDetail.jsp?partnumber%3D49105-IDC%26minisite%3D10251&sa=D&usg=ALhdy28Z4BXWjh9SeuK_tUICYdHORd0WJw\",\"49105-IDC\")","v":"49105-IDC"}]
[]
["66 Blocks - Voice - 50 PAIR",null,"Leviton","40066-M50",null,{"$f":"HYPERLINK(\"http://www.leviton.com/OA_HTML/ProductDetail.jsp?partnumber=40066-M50&section=39093&minisite=10251\",\"40066-M50\")","v":"40066-M50"}]
["66-Block Stand-off 89D mounting bracket",null,"Leviton","40089-00D",null,{"$f":"HYPERLINK(\"http://www.leviton.com/OA_HTML/ProductDetail.jsp?partnumber=40089-D&section=39286&minisite=10251\",\"40089-D\")","v":"40089-D"}]
[]
["Indoor / Outdoor Plenum  Fiber Cable - Tight Buffer"]
["THESE FIBER  CONSTRUCTIONS ARE \"STOCK\" ITEMS WITH NO MOQ                                                                                                                                                                                                   This replaces the traditional Tight Buffered OFNR & OFNP cable at simular cost                             Higher Strand Counts Available",null,null,null,null,null," "]
["  6-strand I/O Plenum Berk-Tek Fiber Cable Tight Buffer, Dry-Gel, Single-Mode, OS2","Yellow","Leviton","PDP006AB0707-I/O-C4(YEL)",null,"PDP006AB0707-I/O-C4(YEL)"," "]
["12-strand I/O Plenum Berk-Tek Fiber Cable Tight Buffer, Dry-Gel, Single-Mode, OS2 ","Yellow","Leviton","PDP012AB0707-I/O-C4(YEL)",null,"PDP012AB0707-I/O-C4(YEL)"]
["24-strand I/O Plenum Berk-Tek Fiber Cable Tight Buffer, Dry-Gel, Single-Mode, OS2","Yellow","Leviton","PDP024AB0707-I/O-C4(YEL)",null,"PDP024AB0707-I/O-C4(YEL)"]
[]
[]
["  6-strand I/O Plenum Berk-Tek Fiber Cable Tight Buffer, Dry-Gel, 50/125, OM4","Aqua","Leviton","PDP006FB3010/F5-I/O-C4(AQU)",null,"PDP006FB3010/F5-I/O-C4(AQU)"]
["12-strand I/O Plenum Berk-Tek Fiber Cable Tight Buffer, Dry-Gel, 50/125, OM4","Aqua","Leviton","PDP012FB3010/F5-I/O-C4(AQU)",null,"PDP012FB3010/F5-I/O-C4(AQU)"]
["24-strand I/O Plenum Berk-Tek Fiber Cable Tight Buffer, Dry-Gel, 50/125, OM4","Aqua","Leviton","PDP024FB3010/F5-I/O-C4(AQU)",null,"PDP024FB3010/F5-I/O-C4(AQU)"]
[]
[]
["  6-strand I/O Plenum Berk-Tek Fiber Cable Tight Buffer, Dry-Gel, 50/125, OM3","Aqua","Leviton","PDP006EB3010/25-I/O-C4(AQU)",null,"PDP006EB3010/25-I/O-C4(AQU)"]
["12-strand I/O Plenum Berk-Tek Fiber Cable Tight Buffer, Dry-Gel, 50/125, OM3","Aqua","Leviton","PDP012EB3010/25-I/O-C4(AQU)",null,"PDP012EB3010/25-I/O-C4(AQU)"]
["24-strand I/O Plenum Berk-Tek Fiber Cable Tight Buffer, Dry-Gel, 50/125, OM3","Aqua","Leviton","PDP024EB3010/25-I/O-C4(AQU)",null,"PDP024EB3010/25-I/O-C4(AQU)"]
[]
[]
["  6-strand I/O Plenum Berk-Tek Fiber Cable Tight Buffer, Dry-Gel, Single-Mode, OS2….ARMORED","Yellow","Leviton","PDPK006AB0707-I/O-C4C5(YEL)",null,"PDPK006AB0707-I/O-C4C5(YEL)"]
["12-strand I/O Plenum Berk-Tek Fiber Cable Tight Buffer, Dry-Gel, Single-Mode, OS2….ARMORED","Yellow","Leviton","PDPK012AB0707-I/O-C4C5(YEL)",null,"PDPK012AB0707-I/O-C4C5(YEL)"]
["24-strand I/O Plenum Berk-Tek Fiber Cable Tight Buffer, Dry-Gel, Single-Mode, OS2….ARMORED","Yellow","Leviton","PDPK024AB0707-I/O-C4C5(YEL)",null,"PDPK024AB0707-I/O-C4C5(YEL)"]
[]
[]
["  6-strand I/O Plenum Berk-Tek Fiber Cable Tight Buffer, Dry-Gel, 50/125, OM4…………ARMORED","Aqua","Leviton","PDPK006FB3010/F5-I/O-C4(AQU)",null,"PDPK006FB3010/F5-I/O-C4(AQU)"]
["12-strand I/O Plenum Berk-Tek Fiber Cable Tight Buffer, Dry-Gel, 50/125, OM4…………ARMORED","Aqua","Leviton","PDPK012FB3010/F5-I/O-C4(AQU)",null,"PDPK012FB3010/F5-I/O-C4(AQU)"]
["24-strand I/O Plenum Berk-Tek Fiber Cable Tight Buffer, Dry-Gel, 50/125, OM4…………ARMORED","Aqua","Leviton","PDPK024FB3010/F5-I/O-C4(AQU)",null,"PDPK024FB3010/F5-I/O-C4(AQU)"]
[]
[]
["  6-strand I/O Plenum Berk-Tek Fiber Cable Tight Buffer, Dry-Gel, 50/125, OM3…………ARMORED","Aqua","Leviton","PDPK006EB3010/25-I/O-C4C5(AQU)",null,"PDPK006EB3010/25-I/O-C4C5(AQU)"]
["12-strand I/O Plenum Berk-Tek Fiber Cable Tight Buffer, Dry-Gel, 50/125, OM3…………ARMORED","Aqua","Leviton","PDPK012EB3010/25-I/O-C4C5(AQU)",null,"PDPK012EB3010/25-I/O-C4C5(AQU)"]
["24-strand I/O Plenum Berk-Tek Fiber Cable Tight Buffer, Dry-Gel, 50/125, OM3…………ARMORED","Aqua","Leviton","PDPK024EB3010/25-I/O-C4C5(AQU)",null,"PDPK024EB3010/25-I/O-C4C5(AQU)"]
[]
["More Size Available  ---->",null,null,"",null,"More Sizes Available"," "]
[]
["Loose Tube Plenum I/O Fiber Cable"]
["    6-strand Loose Tube Indoor/Outdoor Plenum Berk-Tek Fiber Cable, dry-block,  Single-Mode, OS2","Yellow","Leviton","LTP006AB0403",null,"LTP006AB0403"," "]
["  12-strand Loose Tube Indoor/Outdoor Plenum Berk-Tek Fiber Cable, dry-block,  Single-Mode, OS2","Yellow","Leviton","LTP012AB0403",null,"LTP012AB0403"]
["  24-strand Loose Tube Indoor/Outdoor Plenum Berk-Tek Fiber Cable, dry-block,  Single-Mode, OS2","Yellow","Leviton","LTP12B024AB0403",null,"LTP12B024AB0403"]
[null,null,null,null,null,null," "]
["`"]
["    6-strand Loose Tube Indoor/Outdoor Plenum Berk-Tek Fiber Cable, dry-block,  Single-Mode, OS2 - Armored","Yellow","Leviton","LTPK006AB0403",null,"LTPK006AB0403"]
["  12-strand Loose Tube Indoor/Outdoor Plenum Berk-Tek Fiber Cable, dry-block,  Single-Mode, OS2 - Armored","Yellow","Leviton","LTPK012AB0403",null,"LTPK012AB0403"]
["  24-strand Loose Tube Indoor/Outdoor Plenum Berk-Tek Fiber Cable, dry-block,  Single-Mode, OS2 - Armored","Yellow","Leviton","LTPK12B024AB0403",null,"LTPK12B024AB0403"]
[]
["    6-strand Loose Tube Indoor/Outdoor Plenum Berk-Tek Fiber Cable, dry-block,  OM4","Aqua","Leviton","LTP06FB3010/F5",null,"LTP06FB3010/F5"]
["  12-strand Loose Tube Indoor/Outdoor Plenum Berk-Tek Fiber Cable, dry-block,  OM4","Aqua","Leviton","LTP012FB3010/F5",null,"LTP012FB3010/F5"]
["  24-strand Loose Tube Indoor/Outdoor Plenum Berk-Tek Fiber Cable, dry-block,  OM4","Aqua","Leviton","LTP12B024FB3010/F5",null,"LTP12B024FB3010/F5"]
[null,null,null," ",null," "]
[]
["    6-strand Loose Tube Indoor/Outdoor Plenum Berk-Tek Fiber Cable, dry-block,  OM4 - Armored","Aqua","Leviton","LTPK06FB3010/F5",null,"LTPK06FB3010/F5"]
["  12-strand Loose Tube Indoor/Outdoor Plenum Berk-Tek Fiber Cable, dry-block,  OM4 - Armored","Aqua","Leviton","LTPK012FB3010/F5",null,"LTPK012FB3010/F5"]
["  24-strand Loose Tube Indoor/Outdoor Plenum Berk-Tek Fiber Cable, dry-block,  OM4 - Armored","Aqua","Leviton","LTPK12B024FB3010/F5",null,"LTPK12B024FB3010/F5"]
[]
[null,null,null," ",null," "]
[null,null,null," ",null," "]
["    6-strand Loose Tube Indoor/Outdoor Plenum Berk-Tek Fiber Cable, dry-block,  OM3","Aqua","Leviton","LTP006EB3010/25",null,"LTP006EB3010/25"]
["  12-strand Loose Tube Indoor/Outdoor Plenum Berk-Tek Fiber Cable, dry-block,  OM3","Aqua","Leviton","LTP012EB3010/25",null,"LTP012EB3010/25"]
["  24-strand Loose Tube Indoor/Outdoor Plenum Berk-Tek Fiber Cable, dry-block,  OM3","Aqua","Leviton","LTP12B024FB3010/25",null,"LTP12B024FB3010/25"]
[]
[]
["    6-strand Loose Tube Indoor/Outdoor Plenum Berk-Tek Fiber Cable, dry-block,  OM3 - Armored","Aqua","Leviton","LTPK006EB3010/25",null,"LTPK006EB3010/25"]
["  12-strand Loose Tube Indoor/Outdoor Plenum Berk-Tek Fiber Cable, dry-block,  OM3 - Armored","Aqua","Leviton","LTPK012EB3010/25",null,"LTPK012EB3010/25"]
["  24-strand Loose Tube Indoor/Outdoor Plenum Berk-Tek Fiber Cable, dry-block,  OM3 - Armored","Aqua","Leviton","LTPK12B024FB3010/25",null,"LTPK12B024FB3010/25"]
[]
["More Size Available  ---->",null,null,null,null,"More Sizes Available"]
[]
["OSP Loose Tube Fiber Cable",null,null,null,null,null," "]
["    6-strand OSP Loose Tube Berk-Tek Fiber Cable, Gel Filled, Single-Mode, OS2","Black","Leviton","OPD006AB0403",null,"OPD006AB0403"]
["  12-strand OSP Loose Tube Berk-Tek Fiber Cable, Gel Filled, Single-Mode, OS2","Black","Leviton","OPD012AB0403",null,"OPD012AB0403"]
["  24-strand OSP Loose Tube Berk-Tek Fiber Cable, Gel Filled, Single-Mode, OS2","Black","Leviton","OPDD12B024AB0403",null,"OPDD12B024AB0403"]
["  48-strand OSP Loose Tube Berk-Tek Fiber Cable, Gel Filled, Single-Mode, OS2","Black","Leviton","OPDD12B048AB0403",null,"OPDD12B048AB0403"]
["  72-strand OSP Loose Tube Berk-Tek Fiber Cable, Gel Filled, Single-Mode, OS2","Black","Leviton","OPDD12B072AB0403",null,"OPDD12B072AB0403"]
["144-strand OSP Loose Tube Berk-Tek Fiber Cable, Gel Filled, Single-Mode, OS2","Black","Leviton","OPDD12B144AB0403",null,"OPDD12B144AB0403"]
[]
["    6-strand OSP Loose Tube Berk-Tek Fiber Cable, Gel Filled, 50/125, OM4","Black","Leviton","OPD006FB3010/F5",null,"OPD006FB3010/F5"]
["  12-strand OSP Loose Tube Berk-Tek Fiber Cable, Gel Filled, 50/125, OM4","Black","Leviton","OPD012FB3010/F5",null,"OPD012FB3010/F5"]
["  24-strand OSP Loose Tube Berk-Tek Fiber Cable, Gel Filled, 50/125, OM4","Black","Leviton","OPDD12B024FB3010/F5",null,"OPDD12B024FB3010/F5"]
["  48-strand OSP Loose Tube Berk-Tek Fiber Cable, Gel Filled, 50/125, OM4","Black","Leviton","OPDD12B048FB3010/F5",null,"OPDD12B048FB3010/F5"]
["  72-strand OSP Loose Tube Berk-Tek Fiber Cable, Gel Filled, 50/125, OM4","Black","Leviton","OPDD12B072FB3010/F5",null,"OPDD12B072FB3010/F5"]
["144-strand OSP Loose Tube Berk-Tek Fiber Cable, Gel Filled, 50/125, OM4","Black","Leviton","OPDD12B144FB3010/F5",null,"OPDD12B144FB3010/F5"]
[]
["    6-strand OSP Loose Tube Berk-Tek Fiber Cable, Gel Filled, 50/125, OM3","Black","Leviton","OPD006EB3010/25",null,"OPD006EB3010/25"]
["  12-strand OSP Loose Tube Berk-Tek Fiber Cable, Gel Filled, 50/125, OM3","Black","Leviton","OPD012EB3010/25",null,"OPD012EB3010/25"]
["  24-strand OSP Loose Tube Berk-Tek Fiber Cable, Gel Filled, 50/125, OM3","Black","Leviton","OPDD12B024EB3010/25",null,"OPDD12B024EB3010/25"," "]
["  48-strand OSP Loose Tube Berk-Tek Fiber Cable, Gel Filled, 50/125, OM3","Black","Leviton","OPDD12B048EB3010/25",null,"OPDD12B048EB3010/25"]
["  72-strand OSP Loose Tube Berk-Tek Fiber Cable, Gel Filled, 50/125, OM3","Black","Leviton","OPDD12B072EB3010/25",null,"OPDD12B072EB3010/25"]
["144-strand OSP Loose Tube Berk-Tek Fiber Cable, Gel Filled, 50/125, OM3","Black","Leviton","OPDD12B144EB3010/25",null,"OPDD12B144EB3010/25"]
[]
["Fabric Innerduct - MAXCELL"]
["4\" 3-Cell - Standard Product -   500 ft -   999 ft Reel","White","MaxCell","MXE86383XX500",null,"MXE86383XX500"]
["4\" 3-Cell - Standard Product - 1000 ft - 2649 ft Reel","White","MaxCell","MXE86383XX1000",null,"MXE86383XX1000"," "]
["4\" 3-Cell - Standard Product - 2650 ft - 5299 ft Reel","White","MaxCell","MXE86383XX2650",null,"MXE86383XX2650"]
[]
["3\" 3-Cell - Standard Product -   500 ft - 999 ft Reel","White","MaxCell","MXE64283XX250",null,"MXE64283XX250"]
["3\" 3-Cell - Standard Product - 1000 ft - 2649 ft Reel","White","MaxCell","MXE64283XX1000",null,"MXE64283XX1000"]
["3\" 3-Cell - Standard Product - 2650 ft - 5299 ft Reel","White","MaxCell","MXE64283XX2650",null,"MXE64283XX2650"]
[]
["2\" 3-Cell - Standard Product - 500 ft - 999 ft Reel","White","MaxCell","MXE52223XX500",null,"MXE52223XX500"]
["2\" 3-Cell - Standard Product - 1000 ft - 2649 ft Reel","White","MaxCell","MXE52223XX1000",null,"MXE52223XX1000"]
["2\" 3-Cell - Standard Product - 2650 ft - 5299 ft Reel","White","MaxCell","MXE52223XX2650",null,"MXE52223XX2650"]
[]
["4\" 3-Cell - Detectable -   500 ft -   999 ft Reel","White","MaxCell","MXED86383XX500",null,"MXED86383XX500"]
["4\" 3-Cell - Detectable - 1000 ft - 2649 ft Reel","White","MaxCell","MXED86383XX1000",null,"MXED86383XX1000"]
["4\" 3-Cell - Detectable - 2650 ft - 5299 ft Reel","White","MaxCell","MXED86383XX2650",null,"MXED86383XX2650"]
[]
["3\" 3-Cell - Detectablet -   500 ft - 999 ft Reel","White","MaxCell","MXED64283XX250",null,"MXED64283XX250"]
["3\" 3-Cell - Detectable - 1000 ft - 2649 ft Reel","White","MaxCell","MXED64283XX1000",null,"MXED64283XX1000"]
["3\" 3-Cell - Detectable - 2650 ft - 5299 ft Reel","White","MaxCell","MXED64283XX2650",null,"MXED64283XX2650"]
[]
["2\" 3-Cell - Detectable - 500 ft - 999 ft Reel","White","MaxCell","MXED522233XX500",null,"MXED522233XX500"]
["2\" 3-Cell - Detectable - 1000 ft - 2649 ft Reel","White","MaxCell","MXED52223XX1000",null,"MXED52223XX1000"]
["2\" 3-Cell - Detectable - 2650 ft - 5299 ft Reel","White","MaxCell","MXED52223XX2650",null,"MXED52223XX2650"]
["XX =  Thread Identification Color: BK-Black (Standard); BL-Blue; GR-Green; RD-Red; YL-Yellow"]
[]
["Single 2500lb swivel with an outside diameter (OD) of .875\"","N/A","MaxCell","MXCSW",null,"MXCSW"]
["2-way chain pulling harness","N/A","MaxCell","MXC2CH",null,"MXC2CH"]
["3-way chain pulling harness","N/A","MaxCell","MXC3CH",null,"MXC3CH"]
[]
["Self-Inflating Sealing Bag - For use in 2\" OD conduits","White","MaxCell","MXCB2",null,"MXCB2"]
["Self-Inflating Sealing Bag - For use in 3\" OD conduits","White","MaxCell","MXCB3",null,"MXCB3"]
["Self-Inflating Sealing Bag - For use in 4\" OD conduits","White","MaxCell","MXCB4",null,"MXCB4"]
[]
["Fiber Enclosures"]
["Standard Density - Enclosures  SDX "]
["Opt-X 2000i SDX - 1RU Fiber Enclosure, sliding tray, accepts   3 adapter plates,    (72 LC's)","Black","Leviton","5R1UH-S03",null,{"$f":"HYPERLINK(\"http://www.google.com/url?q=http://www.leviton.com/OA_HTML/ProductDetail.jsp?partnumber%3D5R1UH-S03%26minisite%3D10251&sa=D&usg=ALhdy28Cdtb1FZBYXpuHSn8Wctxml95j9g\",\"5R1UH-S03\")","v":"5R1UH-S03"}]
["Opt-X 2000i SDX - 2RU Fiber Enclosure, sliding tray, accepts   6 adapter plates,  (144 LC's)","Black","Leviton","5R2UH-S06",null,{"$f":"HYPERLINK(\"http://www.google.com/url?q=http://www.leviton.com/OA_HTML/ProductDetail.jsp?partnumber%3D5R2UH-S06%26minisite%3D10251&sa=D&usg=ALhdy28_TWQphZhOzbkFNesc9UP33o4uSw\",\"5R2UH-S06\")","v":"5R2UH-S06"}]
["Opt-X 2000i SDX - 4RU Fiber Enclosure, sliding tray, accepts 12 adapter plates,  (288 LC's)","Black","Leviton","5R4UH-S12",null,{"$f":"HYPERLINK(\"http://www.leviton.com/OA_HTML/ProductDetail.jsp?partnumber=5R4UH-S12&section=39275&minisite=10251\",\"5R4UH-S12\")","v":"5R4UH-S12"}]
[]
["Opt-X 1000i SDX - 1RU Fiber Enclosure, sliding tray, accepts   3 adapter plates,    (72 LC's)","Black","Leviton","5R1UM-S03",null,{"$f":"HYPERLINK(\"http://www.leviton.com/OA_HTML/ProductDetail.jsp?partnumber=5R1UM-S03&section=39253&minisite=10251\",\"5R1UM-S03\")","v":"5R1UM-S03"}]
["Opt-X 1000i SDX - 2RU Fiber Enclosure, sliding tray, accepts   6 adapter plates,  (144 LC's)","Black","Leviton","5R2UM-S06",null,{"$f":"HYPERLINK(\"http://www.leviton.com/OA_HTML/ProductDetail.jsp?partnumber=5R2UM-S06&section=39253&minisite=10251\",\"5R2UM-S06\")","v":"5R2UM-S06"}]
["Opt-X 1000i SDX - 3RU Fiber Enclosure, fixed tray, accepts   12 adapter plates,  (288 LC's)","Black","Leviton","5R3UM-F12",null,"5R4UM-F12"]
["Opt-X 1000i SDX - 4RU Fiber Enclosure, fixed tray, accepts   15 adapter plates,  (360 LC's)","Black","Leviton","5R4UM-F15",null,"5R4UM-F15"]
[]
["Standard Density - Wall Mount  SDX ",null,null,null,null,null," "]
["Opt-X SDX - Mini Wall Mount holds   1 adapter plate, single door, no lock,  (24 LC's)","Black","Leviton","5WMNT-01C",null,"5WMNT-01C"," "]
["Opt-X SDX - SML Wall Mount holds   2 adapter plates, dual door, no lock,   (48 LC's)","Black","Leviton","5WSML-02C",null,"5WSML-02C"]
["Opt-X SDX - MED Wall Mount holds  4 adapter plates, dual door, no lock,   (96 LC's)","Black","Leviton","5WMED-04C",null,"5WMED-04C"]
["Opt-X SDX - LRG Wall Mount holds 12 adapter plates, dual door, no lock,   (288 LC's)","Black","Leviton","5WLRG-12C",null,"5WLRG-12C"]
[]
["Ladder-Runway Stringer Mounting Brackets (bag of 2) for use with 5WMNT-01C","Black","Leviton","5WMNB-ACC",null,"5WMNB-ACC"," "]
["Adapter Plate - HDX to SDX  \"Allows HDX casssettes to mount in SDX Enclosures\"","Black","Leviton","HDXAD-ACC",null,"HDXAD-ACC"," "]
["Lock and Key for SDX Enclosure Doors ","Silver","Leviton","5L000-L0K",null,"5L000-L0K"," "]
[]
["High Density Enclosures - HDX",null,null,null,null,null," "]
["Opt-X HDX - 1RU Fiber Enclosure, Sliding Tray with Labeling Space, 8 adapter plates or cassettes,  (96 LC's)","Dark Gray","Leviton","5R1UD-S08",null,"5R1UD-S08"," "]
["Opt-X HDX - 2RU Fiber Enclosure, Sliding Tray with Labeling Space, sliding tray, 16 adapter plates or cassettes,  (192 LC's)","Dark Gray","Leviton","5R2UD-S16",null,"5R2UD-S16"]
["Opt-X HDX - 4RU Fiber Enclosure, Sliding Tray with Labeling Space, 24 adapter plates or cassettes,  (288 LC's)","Dark Gray","Leviton","5R3UD-S24",null,"5R4UD-S24"]
["Opt-X HDX - 4RUFiber Enclosure, Sliding Tray with Labeling Space, 32 adapter plates or cassettes,  (384 LC's)","Dark Gray","Leviton","5R4UD-S32",null,"5R4UD-S32"]
[]
["OPT-X HDX - 1RU Angled Panel with Labeling Space, 8 adapter plates or cassettes   (96 LC's)","Dark Gray","Leviton","HDX1U-A96",null,"HDX1U-A96"]
["OPT-X HDX - 1RU Flat Panel with Labeling Space, 8 adapter plates or cassettes   (96 LC's)","Dark Gray","Leviton","HDX1U-F96",null,"HDX1U-F96"]
["Rear Cable Management,  HDX Flat & Angled panels","Black","Leviton","E2XHD-CMB",null,"E2XHD-CMB"]
[]
["Ultra High Density Enclosures - HDX"]
["Opt-X HDX - 1RU Ultra High Density Fiber Enclosure, sliding tray, 12 adapter plates or cassettes,  (144 LC's)","Black","Leviton","5R1UD-S12",null,"5R1UD-S12"," "]
["Opt-X HDX - 2RU Ultra High Density Fiber Enclosure, sliding tray, 24 adapter plates or cassettes,  (288 LC's)","Black","Leviton","5R2UD-S24",null,"5R2UD-S24"]
["Opt-X HDX - 4RU Ultra High Density Fiber Enclosure, sliding tray, 48 adapter plates or cassettes,  (576 LC's)","Black","Leviton","5R4UD-S48",null,"5R4UD-S48"]
[]
["Opt-X HDX - 1RU Angled Panel, Ultra High Density, 12 adapter plates or cassettes,  (144 LC's)","Black","Leviton","HDX1A-144",null,"HDX1A-144"]
["Opt-X HDX - 1RU Flat Panel, Ultra High Density, 12 adapter plates or cassettes,  (144 LC's)","Black","Leviton","HDX1F-144",null,"HDX1F-144"]
["Rear Cable Management, for HDX1A & HDX1F panel","Black","Leviton","E2XHD-CMB",null,"E2XHD-CMB"]
[]
["* HDX enclosures only except HDX adapter plates or cassettes *"]
[]
["Fiber Adapter Plates & Splice Cassettes"]
["For Use with SDX Enclosures"]
["SDX Fiber Adapter Plate - 24 Fiber LC   \"Shuttered\"  Single-Mode, OS2","Blue","Leviton"," ",null,null,"Need  Part #s"]
["SDX Fiber Adapter Plate - 24 Fiber LC   \"Shuttered\"  50um,    OM3/4","Aqua","Leviton"," ",null,null,"Need  Part #s"]
["SDX Fiber Adapter Plate - 24 Fiber LC   Single-Mode, OS2","Blue","Leviton","5F100-4LL",null,"5F100-4LL"," "]
["SDX Fiber Adapter Plate - 24 Fiber LC   50um,    OM3/4","Aqua","Leviton","5F100-4QL",null,"5F100-4QL"," "]
[]
["SDX Fiber Adapter Plate - 12 Fiber LC   Single-Mode, OS2","Blue","Leviton",null,null,null,"Need  Part #s"]
["SDX Fiber Adapter Plate - 12 Fiber LC   50um,    OM3/4","Aqua","Leviton",null,null,null,"Need  Part #s"]
["SDX Fiber Adapter Plate - 12 Fiber LC  \"Shuttered\"  Single-Mode, OS2","Blue","Leviton","5F100-2LL",null,{"$f":"HYPERLINK(\"http://www.leviton.com/OA_HTML/ProductDetail.jsp?partnumber=5F100-2LL&section=39211&minisite=10251\",\"5F100-2LL\")","v":"5F100-2LL"}]
["SDX Fiber Adapter Plate - 12 Fiber LC  \"Shuttered\"  50um,    OM3/4","Aqua","Leviton","5F100-2QL",null,{"$f":"HYPERLINK(\"http://www.google.com/url?q=http://www.leviton.com/OA_HTML/ProductDetail.jsp?partnumber%3D5F100-2QL%26minisite%3D10251&sa=D&usg=ALhdy2-JuNF2IFehgTv5IxMNBmBp8vFDeQ\",\"5F100-2QL\")","v":"5F100-2QL"}]
[]
["SDX Fiber Adapter Plate - 12 Fiber SC   Single-Mode, OS2","Blue","Leviton","5F100-2LC",null,"5F100-2LC"]
["SDX Fiber Adapter Plate - 12 Fiber SC   50mm,    OM3/4","Aqua","Leviton","5F100-2QC",null,"5F100-2QC"]
["SDX Fiber Adapter Plate -   6 Fiber SC   Single-Mode, OS2","Blue","Leviton","5F100-6LC",null,"5F100-6LC"]
["SDX Fiber Adapter Plate -   6 Fiber SC   50mm,    OM3/4","Aqua","Leviton","5F100-6QC",null,"5F100-6QC"]
[]
["SDX Fiber Adapter Plate -   6 Fiber ST Multimode & Single-Mode","Black","Leviton","5F100-6MT",null,"5F100-6MT"," "]
[null,null,null,null,null,null," "]
["SDX Fiber Adapter Plate - MTP/MPO 8-Pack for 8, 12 or 24 fiber plugs, \"Key Up / Key Down\"  ","Black","Leviton","5F100-8MP",null,"5F100-8MP"," "]
["SDX Fiber Adapter Plate - MTP/MPO 6-Pack for 8, 12 or 24 fiber plugs,  \"Key Up / Key Down\"  ","Black","Leviton","5F100-6MP",null,"5F100-6MP"]
[]
["SDX Fiber Adapter Plate 6-Position QuickPort®, empty","Black","Leviton","5F100-6QP",null,"5F100-6QP"]
["QuickPort Duplex LC shuttered, OM3/4 Multimode (zirconia ceramic sleeve), Aqua","*","Leviton","41086-LL*",null,"41086-LL*"," "]
["QuickPort Duplex LC shuttered, OS2 Singlemode (zirconia ceramic sleeve), Blue","*","Leviton","41086-SL*",null,"41086-SL*"]
["QuickPort MTP/MPO Adapter for 8, 12 or 24 fiber plugs - Key Up/Key Down","Black","Leviton","41085-TPE",null,"41085-TPE"]
["Blank Insert","*","Leviton","41084-0B*",null,"41084-0BW"]
[]
["SDX Fiber Adapter Plate  -  Blank","Black","Leviton","5F100-PLT",null,"5F100-PLT"," "]
[]
[">> HDX-to-SDX Adapter Bracket for using HDX adapters & Splice Modules in an SDX enclosures  <<","Black","Leviton","HDXAD-ACC",null,"HDXAD-ACC"]
[]
["Splice Cassettes for Use with SDX Enclosures "]
["SDX Fusion Splice Module 24 Fiber Pigtail [for Ribbon & individual fibers] Shuttered LC / UPC - OS2","Blue","Leviton","SPLCS-24L",null,"SPLCS-24L","Replace with Plastic version. Check part #s, determine if mechanical too"]
["SDX Fusion Splice Module 24 Fiber Pigtail [for Ribbon & individual fibers] Shuttered LC / APC - OS3","Green","Leviton","SPLCS-24V",null,"SPLCS-24V","Replace with Plastic version. Check part #s, determine if mechanical too"]
["SDX Fusion Splice Module 12 Fiber Pigtail [for Ribbon & individual fibers] Shuttered LC / UPC - OS2","Blue","Leviton","SPLCS-12L",null,"SPLCS-12L","Replace with Plastic version. Check part #s, determine if mechanical too"]
["SDX Fusion Splice Module 12 Fiber Pigtail [for Ribbon & individual fibers] Shuttered LC / APC - OS2","Green","Leviton","SPLCS-12V",null,"SPLCS-12V","Replace with Plastic version. Check part #s, determine if mechanical too"]
[null,null,null,null,null,null," "]
["SDX Fusion Splice Module 24 Fiber Pigtail [for Ribbon & individual fibers] Shuttered LC - OM4","Aqua","Leviton","SPLCS-24A",null,"SPLCS-24A","Replace with Plastic version. Check part #s, determine if mechanical too"]
["SDX Fusion Splice Module 12 Fiber Pigtail [for Ribbon & individual fibers] Shuttered LC - OM4","Aqua","Leviton","SPLCS-12A",null,"SPLCS-24A","Replace with Plastic version. Check part #s, determine if mechanical too"]
[null,null,null,null,null,null," "]
["SDX Fusion Splice Module 24 Fiber Pigtail [for Ribbon & individual fibers] Shuttered LC - OM3","Aqua","Leviton","SPLCS-24",null,"SPLCS-244","Replace with Plastic version. Check part #s, determine if mechanical too"]
["SDX Fusion Splice Module 12 Fiber Pigtail [for Ribbon & individual fibers] Shuttered LC - OM3","Aqua","Leviton","SPLCS-12A",null,"SPLCS-12A","Replace with Plastic version. Check part #s, determine if mechanical too"]
[]
[]
["Leviton Cassette Configurator, click the link to the right  --->",null,null,null,null,"MTO Cassettes & Trunks"]
[]
["Splice Casettes for Use with HDX Enclosures"]
["HDX Fiber Adapter Plate - 12 Fiber Singlemode, Shuttered LC  OS2","Blue","Leviton","5FUHD-SLL",null,"5FUHD-SLL"]
["HDX Fiber Adapter Plate - 12 Fiber Multimode, Shuttered LC  OM3/4","Aqua","Leviton","5FUHD-SQL",null,"5FUHD-SQL"]
[null,null,null,null,null,null," "]
["HDX Fiber Adapter Plate - 3 Duplex MTP/MPO Adapters for 8, 12 or 24 fiber plugs, keyed up to keyed down","Black","Leviton","5FUHD-6MP",null,"5FUHD-6MP"]
[]
["HDX Plate - Blank","Black","Leviton","5FUHD-BLK",null,"5FUHD-BLK"]
[]
["Fusion Splice Cassettes for HDX Enclosures "]
["HDX Fiber Fusion Splice Module - 12 Fiber [for Ribbon & individual fibers]  Shuttered LC   OS2","Blue","Leviton","SPLCH-12BL",null,"SPLCH-12BL"]
["HDX Fiber Fusion Splice Module - 12 Fiber [for Ribbon & individual fibers]  Shuttered LC   OS2-APC","Blue","Leviton","SPLCH-12GN",null,"SPLCH-12GN"]
["HDX Fiber Fusion Splice Module - 12 Fiber [for Ribbon & individual fibers]  Shuttered LC   OM3/4 ","Aqua","Leviton","SPLCH-12AQ",null,"SPLCH-12AQ"," "]
[]
["HDX Fiber Fusion Splice Module  36-Fiber (3 x 12 Ribbon fibers) Male - MTP/MPO   OS2 ","Black","Leviton","SPMPH-SMPN",null,"SPMPH-SMPN"]
["HDX Fiber Fusion Splice Module  36-Fiber (3 x 12 Ribbon fibers) Male - MTP/MPO  OM3/4","Black","Leviton","SPMPH-MMPN",null,"SPMPH-MMPN"]
[]
["Leviton Cassette Configurator, click the link to the right  --->",null,null,null,null,"MTO Cassettes & Trunks"]
[]
["Fiber Connectors",null,null,null,null,null," "]
["FASTSPLICE / Fusion Splice-On "]
["FASTSPLICE™ Fusion Splice-On Connector, LC Single-Mode, OS2, 900 µm, - 12 Pack","Blue","Leviton","499LC-BL9",null,"499LC-BL9"]
["FASTSPLICE™ Fusion Splice-On Connector, SC Single-Mode, OS2, 900 µm, - 12 Pack","Blue","Leviton","499SC-BL9",null,"499SC-BL9"]
[]
["FASTSPLICE™ Fusion Splice-On Connector, LC Multimode, OM3/4, 900 µm, - 12 Pack","Aqua","Leviton","499LC-AQ9",null,"499LC-AQ9"]
["FASTSPLICE™ Fusion Splice-On Connector, SC Multimode, OM3/4, 900 µm, - 12 Pack","Aqua","Leviton","499SC-AQ9",null,"499SC-AQ9"]
[]
[]
["Universal LC/SC/ST Ferrule Holder -10 pack","Black","Leviton","49886-SH1",null,"49886-SH1"]
["LC Duplex Clip - 6 Pack","Clear","Leviton","49991-CLP",null,"49991-CLP"]
["FASTSPLICE™ Tool Kit","Grey/Black","Leviton","49800-SOC",null,"49800-SOC"]
[]
["FASTCAM / Pre-Polished"]
["FASTCAM Pre-polished Connector, LC (blue)    Single-Mode, OS2","Blue","Leviton","49991-SLC",null,{"$f":"HYPERLINK(\"http://www.leviton.com/OA_HTML/ProductDetail.jsp?partnumber=49991-SLC&section=39160&minisite=10251\",\"49991-SLC \")","v":"49991-SLC "}]
["FASTCAM  Pre-polished Connector, SC (blue)    Single-Mode, OS2","Blue","Leviton","49991-SSC",null,{"$f":"HYPERLINK(\"http://www.google.com/url?q=http://www.leviton.com/OA_HTML/ProductDetail.jsp?partnumber%3D49991-SSC%26minisite%3D10251&sa=D&usg=ALhdy2-8-DMNkVRRtEqTBleMeoivGx28aw\",\"49991-SSC \")","v":"49991-SSC "}]
["FastCAM™ Pre-polished Connector, ST (blue)    Single-Mode, OS2","Blue","Leviton","49991-SST",null,{"$f":"HYPERLINK(\"http://www.google.com/url?q=http://www.leviton.com/OA_HTML/ProductDetail.jsp?partnumber%3D49991-SST%26minisite%3D10251&sa=D&usg=ALhdy29qvEkTbIu3dzfecG5ObRAizew40A\",\"49991-SST\")","v":"49991-SST"}]
[]
["FASTCAM  Pre-polished Connector, LC (aqua) Multimode, OM3/OM4","Aqua","Leviton","49991-LLC",null,{"$f":"HYPERLINK(\"http://www.leviton.com/OA_HTML/ProductDetail.jsp?partnumber=49991-LLC&section=39160&minisite=10251\",\"49991-LLC\")","v":"49991-LLC"}]
["FASTCAM  Pre-polished Connector, SC (aqua) Multimode, OM3/OM4","Aqua","Leviton","49991-LSC",null,{"$f":"HYPERLINK(\"http://www.leviton.com/OA_HTML/ProductDetail.jsp?partnumber=49991-LSC&section=39160&minisite=10251\",\"49991-LSC\")","v":"49991-LSC"}]
["FASTCAM  Pre-polished Connector, ST (aqua) Multimode, OM3/OM4","Aqua","Leviton","49991-LST",null,{"$f":"HYPERLINK(\"http://www.leviton.com/OA_HTML/ProductDetail.jsp?partnumber=49991-LSC&section=39160&minisite=10251\",\"49991-LST\")","v":"49991-LST"}]
[]
["FASTCAM  Termination Tool Kit with Light ","Black","Leviton","49800-LAK",null,"49800-LAK"]
["FASTCAM Termination Tool Kit ","Black","Leviton","49800-SMK",null,{"$f":"HYPERLINK(\"http://www.leviton.com/OA_HTML/ProductDetail.jsp?partnumber=49800-SMK&section=39307&minisite=10251\",\"49800-SMK\")","v":"49800-SMK"}]
["Visual Fault Locator \"VFL\" with 1.5mm & 2.5mm interface LC, SC, ST","Blue","Leviton","49886-VFL",null,"49886-VFL"]
[]
["FAST-CURE / Anaerobic Adhesive style"]
["FAST-CURE Adhesive Connector, LC (blue)    Single-Mode, OS2","Blue","Leviton","49990-SDL",null,{"$f":"HYPERLINK(\"http://www.leviton.com/OA_HTML/ProductDetail.jsp?partnumber=49990-SDL&section=39159&minisite=10251\",\"49990-SDL\")","v":"49990-SDL"}]
["FAST-CURE Adhesive Connector, SC (blue)    Single-Mode, OS2","Blue","Leviton","49990-SSC",null,{"$f":"HYPERLINK(\"http://www.leviton.com/OA_HTML/ProductDetail.jsp?partnumber=49990-SSC&section=39159&minisite=10251\",\"49990-SSC\")","v":"49990-SSC"}]
[]
["FAST-CURE Adhesive Connector, LC (aqua)  Multimode, OM3/OM4","Aqua","Leviton","49990-LDL",null,"49990-LDL"]
["FAST-CURE Adhesive Connector, SC (aqua)  Multimode, OM3/OM4","Aqua","Leviton","49990-LSC",null,"49990-LSC"]
[]
["LC Duplex Clips,  Multimode, Beige, Multimode - 25Pack","Beige","Leviton","49886-DLM",null,{"$f":"HYPERLINK(\"http://www.google.com/url?q=http://www.leviton.com/OA_HTML/ProductDetail.jsp?partnumber%3D49886-DLM%26minisite%3D10251&sa=D&usg=ALhdy2_rpFJGMcFCSnTXLp4If7dmCcsM_Q\",\"49886-DLM\")","v":"49886-DLM"}]
["LC Duplex Clips,  Single-Mode, Blue -  25 Pack","Blue","Leviton","49886-DLS",null,{"$f":"HYPERLINK(\"http://www.google.com/url?q=http://www.leviton.com/OA_HTML/ProductDetail.jsp?partnumber%3D49886-DLS%26minisite%3D10251&sa=D&usg=ALhdy2-DysGlzvDyBKLkTbfDxtW6Pz-4OQ\",\"49886-DLS \")","v":"49886-DLS "}]
[]
[]
["Fiber Patch Cords",null,null,null,null,null," "]
["Unibody PATCH CORD, OS2 YELLOW, PLENUM, DUPLEX RND 2.0 MM, LC  to LC , A-B , 1 METER","Yellow","Leviton","PCF-S2PR2VV-0010MAB",null,"PCF-S2PR2VV-0010MAB"]
["Unibody PATCH CORD, OS2 YELLOW, PLENUM, DUPLEX RND 2.0 MM, LC  to LC , A-B , 2 METER","Yellow","Leviton","PCF-S2PR2VV-0020MAB",null,"PCF-S2PR2VV-0020MAB"]
["Unibody PATCH CORD, OS2 YELLOW, PLENUM, DUPLEX RND 2.0 MM, LC  to LC , A-B , 3 METER","Yellow","Leviton","PCF-S2PR2VV-0030MAB",null,"PCF-S2PR2VV-0030MAB"]
["Unibody PATCH CORD, OS2 YELLOW, PLENUM, DUPLEX RND 2.0 MM, LC  to LC , A-B , 5 METER","Yellow","Leviton","PCF-S2PR2VV-0050MAB",null,"PCF-S2PR2VV-0050MAB"]
["Unibody PATCH CORD, OS2 YELLOW, PLENUM, DUPLEX RND 2.0 MM, LC  to LC , A-B , 10 METER","Yellow","Leviton","PCF-S2PR2VV-0100MAB",null,"PCF-S2PR2VV-0100MAB"]
["Unibody PATCH CORD, OS2 YELLOW, PLENUM, DUPLEX RND 2.0 MM, LC  to LC , A-B , 15 METER","Yellow","Leviton","PCF-S2PR2VV-0150MAB",null,"PCF-S2PR2VV-0150MAB"]
[]
["Unibody PATCH CORD, OM4 Aqua, PLENUM, DUPLEX RND 2.0 MM, LC  to LC , A-B , 1 METER","Aqua","Leviton","PCF-M4PR2VV-0010MAB",null,"PCF-M4PR2VV-0010MAB"]
["Unibody PATCH CORD, OM4 Aqua, PLENUM, DUPLEX RND 2.0 MM, LC  to LC , A-B , 2 METER","Aqua","Leviton","PCF-M4PR2VV-0020MAB",null,"PCF-M4PR2VV-0020MAB"]
["Unibody PATCH CORD, OM4 Aqua, PLENUM, DUPLEX RND 2.0 MM, LC  to LC , A-B , 3 METER","Aqua","Leviton","PCF-M4PR2VV-0030MAB",null,"PCF-M4PR2VV-0030MAB"]
["Unibody PATCH CORD, OM4 Aqua, PLENUM, DUPLEX RND 2.0 MM, LC  to LC , A-B , 5 METER","Aqua","Leviton","PCF-M4PR2VV-0050MAB",null,"PCF-M4PR2VV-0050MAB"]
["Unibody PATCH CORD, OM4 Aqua, PLENUM, DUPLEX RND 2.0 MM, LC  to LC , A-B , 10 METER","Aqua","Leviton","PCF-M4PR2VV-0100MAB",null,"PCF-M4PR2VV-0100MAB"]
["Unibody PATCH CORD, OM4 Aqua, PLENUM, DUPLEX RND 2.0 MM, LC  to LC , A-B , 15 METER","Aqua","Leviton","PCF-M4PR2VV-0150MAB",null,"PCF-M4PR2VV-0150MAB"]
[]
["Unibody PATCH CORD, OM3 Aqua, PLENUM, DUPLEX RND 2.0 MM, LC  to LC , A-B , 1 METER","Aqua","Leviton","PCF-M3PR2VV-0010MAB",null,"PCF-M3PR2VV-0010MAB"]
["Unibody PATCH CORD, OM3 Aqua, PLENUM, DUPLEX RND 2.0 MM, LC  to LC , A-B , 2 METER","Aqua","Leviton","PCF-M3PR2VV-0020MAB",null,"PCF-M3PR2VV-0020MAB"]
["Unibody PATCH CORD, OM3 Aqua, PLENUM, DUPLEX RND 2.0 MM, LC  to LC , A-B , 3 METER","Aqua","Leviton","PCF-M3PR2VV-0030MAB",null,"PCF-M3PR2VV-0030MAB"]
["Unibody PATCH CORD, OM3 Aqua, PLENUM, DUPLEX RND 2.0 MM, LC  to LC , A-B , 5 METER","Aqua","Leviton","PCF-M3PR2VV-0050MAB",null,"PCF-M3PR2VV-0050MAB"]
["Unibody PATCH CORD, OM3 Aqua, PLENUM, DUPLEX RND 2.0 MM, LC  to LC , A-B , 10 METER","Aqua","Leviton","PCF-M3PR2VV-0100MAB",null,"PCF-M3PR2VV-0100MAB"]
["Unibody PATCH CORD, OM3 Aqua, PLENUM, DUPLEX RND 2.0 MM, LC  to LC , A-B , 15 METER","Aqua","Leviton","PCF-M3PR2VV-0150MAB",null,"PCF-M3PR2VV-0150MAB"]
[]
["Economy LC-LC Fiber Patch Cord, Single-Mode, OS2, 1 meter","Yellow","Leviton","UPDLC-S01",null,"UPDLC-S01"," "]
["Economy LC-LC Fiber Patch Cord, Single Mode, OS2, 2 meter ","Yellow","Leviton","UPDLC-S02",null,"UPDLC-S02"," "]
["Economy LC-LC Fiber Patch Cord, Single Mode, OS2, 3 meter ","Yellow","Leviton","UPDLC-S03",null,"UPDLC-S03"]
["Economy LC-LC Fiber Patch Cord, Single Mode, OS2, 5 meter ","Yellow","Leviton","UPDLC-S05",null,"UPDLC-S05"]
["Economy LC-LC Fiber Patch Cord, Single Mode, OS2, 10 meter ","Yellow","Leviton","UPDLC-S010",null,"UPDLC-S010"]
[]
["Economy LC-LC Fiber Patch Cord, 50mm, OM4, 1 meter","Aqua","Leviton","54DLC-M01",null,"54DLC-M01"," "]
["Economy LC-LC Fiber Patch Cord, 50mm, OM4, 2 meter ","Aqua","Leviton","54DLC-M02",null,"54DLC-M02"," "]
["Economy LC-LC Fiber Patch Cord, 50mm, OM4, 3 meter ","Aqua","Leviton","54DLC-M03",null,"54DLC-M03"]
["Economy LC-LC Fiber Patch Cord, 50mm, OM4, 5 meter ","Aqua","Leviton","54DLC-M05",null,"54DLC-M05"]
["Economy LC-LC Fiber Patch Cord, 50mm, OM4, 10 meter ","Aqua","Leviton","54DLC-M10",null,"54DLC-M10"]
[]
["Economy LC-LC Fiber Patch Cord, 50mm, OM3, 1 meter","Aqua","Leviton","5LDLC-M01",null,"5LDLC-M01"]
["Economy LC-LC Fiber Patch Cord, 50mm, OM3, 2 meter ","Aqua","Leviton","5LDLC-M02",null,"5LDLC-M02"]
["Economy LC-LC Fiber Patch Cord, 50mm, OM3, 3 meter ","Aqua","Leviton","5LDLC-M03",null,"5LDLC-M03"]
["Economy LC-LC Fiber Patch Cord, 50mm, OM3, 5 meter ","Aqua","Leviton","5LDLC-M05",null,"5LDLC-M05"]
["Economy LC-LC Fiber Patch Cord, 50mm, OM3, 10 meter ","Aqua","Leviton","5LDLC-M10",null,"5LDLC-M10"]
[]
["Economy SC-SC Fiber Patch Cord, Single-Mode, OS2, 1 meter","Yellow","Leviton","UPDSC-S01",null,"UPDSC-S01"]
["Economy SC-SC Fiber Patch Cord, ingle-Mode, OS2, 2 meter ","Yellow","Leviton","UPDSC-S02",null,"UPDSC-S02"]
["Economy SC-SC Fiber Patch Cord, ingle-Mode, OS2, 3 meter ","Yellow","Leviton","UPDSC-S03",null,"UPDSC-S03"]
["Economy SC-SC Fiber Patch Cord, ingle-Mode, OS2, 5 meter ","Yellow","Leviton","UPDSC-S05",null,"UPDSC-S05"]
["Economy SC-SC Fiber Patch Cord, ingle-Mode, OS2, 10 meter ","Yellow","Leviton","UPDSC-S10",null,"UPDSC-S10"]
[]
["Economy SC-SC Fiber Patch Cord, 50mm, OM4, 1 meter","Aqua","Leviton","54DSC-M01",null,"54DSC-M01"]
["Economy SC-SC Fiber Patch Cord, 50mm, OM4, 2 meter ","Aqua","Leviton","54DSC-M02",null,"54DSC-M02"]
["Economy SC-SC Fiber Patch Cord, 50mm, OM4, 3 meter ","Aqua","Leviton","54DSC-M03",null,"54DSC-M03"]
["Economy SC-SC Fiber Patch Cord, 50mm, OM4, 5 meter ","Aqua","Leviton","54DSC-M05",null,"54DSC-M05"]
["Economy SC-SC Fiber Patch Cord, 50mm, OM4, 10 meter ","Aqua","Leviton","54DSC-M10",null,"54DSC-M10"]
[]
["Economy SC-SC Fiber Patch Cord, 50mm, OM3, 1 meter","Aqua","Leviton","5LDSC-M01",null,"5LDSC-M01"]
["Economy SC-SC Fiber Patch Cord, 50mm, OM3, 2 meter ","Aqua","Leviton","5LDSC-M02",null,"5LDSC-M02"]
["Economy SC-SC Fiber Patch Cord, 50mm, OM3, 3 meter ","Aqua","Leviton","5LDSC-M03",null,"5LDSC-M03"]
["Economy SC-SC Fiber Patch Cord, 50mm, OM3, 5 meter ","Aqua","Leviton","5LDSC-M05",null,"5LDSC-M05"]
["Economy SC-SC Fiber Patch Cord, 50mm, OM3, 10 meter ","Aqua","Leviton","5LDSC-M10",null,"5LDSC-M10"]
[]
[]
["Other sizes / types available click the link  --->",null,null,null,null,"Fiber Cord Guide"]
["Fiber Pigtails"]
["12 Fiber Kits"]
["12-Fiber Single-Mode, OS2 LC, 3 meter","Color Coded","Leviton","UPPLC-KIT",null,"UPPLC-KIT"]
["12-Fiber Single-Mode, OS2 SC, 3 meter","Color Coded","Leviton","UPPSC-KIT",null,"UPPSC-KIT"]
[]
["12-Fiber 50/125 µm, OM4 LC, 3 meter","Color Coded","Leviton","54PLC-KIT",null,"54PLC-KIT"]
[]
["12-Fiber 50/125 µm, OM3 LC, 3 meter","Color Coded","Leviton","5LPLC-KIT",null,"5LPLC-KIT"]
[]
["12 Fiber MTP/MPO Jacketed-Ribbon Kits"]
["12-Fiber Single-Mode, MTP/MPO Female, Low Loss, 3 meter","Yellow","Leviton","UJ2PL-03M",null,"UJ2PL-03M"]
["12-Fiber Single-Mode, MTP/MPO Female, Standard Loss, 3 meter","Yellow","Leviton","UJ2PS-03M",null,"UJ2PS-03M"]
[]
["12-Fiber OM4, MTP/MPO Female, Low Loss, 3 meter","Aqua","Leviton","4J2PL-03M",null,"4J2PL-03M"]
["12-Fiber OM4, MTP/MPO Female, Standard Loss, 3 meter","Aqua","Leviton","4J2PS-03M",null,"4J2PS-03M"]
[]
["12-Fiber OM3, MTP/MPO Female, Low Loss, 3 meter","Aqua","Leviton","LJ2PL-03M",null,"LJ2PL-03M"]
["12-Fiber OM3, MTP/MPO Female, Standard Loss, 3 meter","Aqua","Leviton","LJ2PS-03M",null,"LJ2PS-03M"]
[]
[]
["Fiber MISC."]
["Fiber Storage Ring 12\" - Wall Mount","Black","Leviton","48900-IFR",null,"48900-IFR"]
["Fiber Storage Ring 24\" - Wall Mount","Black","Leviton","48900-OFR",null,"48900-OFR"]
[]
["Mini Splice Tray, Heat Shrink style (accepts standard sleeves), up to 12 fiber splicing","Clear","Leviton","T5PLS-12F",null,"T5PLS-12F"," "]
["Mini Splice Tray, Heat Shrink style (accepts standard sleeves), up to 24 fiber splicing","Clear","Leviton","T5PLS-24F",null,"T5PLS-24F"," "]
[]
["Fanout \"Breakout\" Kit  - 6 Fiber (24\") for direct termination of Loose Tube cables, build fiber up to color coded 900μm buffer tubes","Black","Leviton","49887-06S",null,"49887-06S"]
["Fanout \"Breakout\" Kit  - 12 Fiber (24\") for direct termination of Loose Tube cables, build fiber up to color coded 900μm buffer tubes","Black","Leviton","49887-12S",null,"49887-12S"]
[]
["Fiber Universal Clamp Kit - TIA holes or Wall Mount","Black","Leviton","5RCMR-KIT",null,{"$f":"HYPERLINK(\"http://www.leviton.com/OA_HTML/ProductDetail.jsp?partnumber=5RCMR-KIT&section=39275&minisite=10251\",\"5RCMR-KIT\")","v":"5RCMR-KIT"}]
[null,null,null,null,null,null," "]
["DP Universal Grounding Kit - (For use in Grounding/Bonding Armored Fiber Cables)","Black","Leviton","DPGRD-KIT",null,"DPGRD-KIT"," "]
["75' Velcro Roll","Black","Leviton","43115-75",null,{"$f":"HYPERLINK(\"http://www.google.com/url?q=http://www.leviton.com/OA_HTML/ProductDetail.jsp?partnumber%3D43115-75%26minisite%3D10251&sa=D&usg=ALhdy2-V7RV90m0-1kwN5G7_7lqZNSm_Jg\",\"43115-75\")","v":"43115-75"}]
[]
["Labeling"]
["Brother PT-E550W labeler for patch panels, 110 blocks, wall plates, patch cords - Wireless & Half-Cut","Black","Brother","PT-E550W",null,"PT-E550W"]
["Brother PT-E500     labeler for patch panels, 110 blocks, wall plates, patch cords","Black","Brother","PT-E500",null,{"$f":"HYPERLINK(\"http://www.brother-usa.com/Labeling_Solutions/ModelDetail/7/PTE500/Overview#.VEe5_fnF8iU\",\"PT-E500\")","v":"PT-E500"}]
["Brother PT-E300     labeler for patch panels, 110 blocks, wall plates, patch cords","Balck","Brother","PT-E300",null,"PT-E300"]
[]
["Brother P-Touch Labels - Super Narrow tape 9/64\" [3.5mm] Black on White, for 1U x48 port Patch Panels ","White","Brother","TZeN201",null,"TZeN201"]
["Brother P-Touch Labels - .35\" / 9mm Black on White, Patch Panel & Plates","White","Brother","TZe221",null,"TZe221"]
["Brother P-Touch Labels - .50\" / 12mm Black on White, 110 Blocks, fiber enclosures","White","Brother","TZe231",null,"TZe231"]
["Brother P-Touch Labels - .75\" / 18mm Black on White, Flex Tape - Cable Rapping","White","Brother","TZeFX241",null,"TZeFX241"]
[]
["Complete Brother Offering --->",null,null,null,null,"Brother Guide"]
[null,null,null,null,null,null," "]
["Racks/Cabinets"]
["2 Post 7' x 19\" Equipment Rack, Tapped 12/24 Thread","Black","RXL","2200-BK70T",null,"RXL-2200"," "]
["2 Post 7' x 23\" Equipment Rack, Tapped 12/24 Thread","Black","RXL","2201-BK70T",null,"RXL-2200"]
["2 Post 8' x 19\" Equipment Rack, Tapped 12/24 Thread","Black","RXL","2200-BK80T",null,"RXL-2200"]
["Seismic Gusset Kit - 2pair  \"For the 2-Post Rack\"","Black","RXL","2592-BK02",null,"RXL-2592"]
["2-Post Rack Anchor Kit - 3/8\" x  3\" wedge anchors and hardware - 50pk","Black Zinc","RXL","2038-BZ50",null,"RXL-2038"]
[]
["Seismic 2-Post Rack, 7ft Equipment Rack, Tapped 12/24 Thread, Zone 4, NEBS GR-63 CORE, HCAi/OPM-0666 NEW","Black","RXL"]
["Seismic 2-Post Rack, 8ft Equipment Rack, Tapped 12/24 Thread, Zone 4, NEBS GR-63 CORE, HCAi/OPM-0666 NEW","Black","RXL"]
["Seismic Anchors for the Seismic 2-Post Rack, 1/2\" ","Galv","RXL","Kwik Bolt TZ2",null,"Kwik Bolt TZ2"]
[null," "]
["4-post 19\" Equipment Rack, square hole rails for cage nuts 7ft, adjustable depth 22-28\"","Black","RXL","2410-BK7028S",null,"RXL-2410"]
["4-post 19\" Equipment Rack, square hole rails for cage nuts 7ft, adjustable depth 29-35\"","Black","RXL","2410-BK7035S",null,"RXL-2410"]
["4-post 19\" Equipment Rack, square hole rails for cage nuts 7ft, adjustable depth 36-42\"","Black","RXL","2410-BK8042S",null,"RXL-2410"," "]
["2-Post Rack Anchor Kit - 3/8\" x  3\" wedge anchors and hardware - 50pk","Black Zinc","RXL","2038-BZ50",null,"RXL-2038"," "]
[null,null,null,null,null,null," "]
["Wall Swing Rack, Black, 19\"w x 27\"h x 18\"d, Tapped 12/24 Thread  - 12RU","Black","RXL","4750-BK1218",null,"RXL-4750"]
["Wall Swing Rack, Black, 19\"w x 32\"h x 18\"d, Tapped 12/24 Thread  - 15RU","Black","RXL","4750-BK1518",null,"RXL-4750"]
["Wall Swing Rack, Black, 19\"w x 38\"h x 18\"d, Tapped 12/24 Thread  - 18RU","Black","RXL","4750-BK1818",null,"RXL-4750"]
[]
["Wall Mount Cabinet, Plexi door, black, 24\"w x 24\"h x 24\"d, Tapped 12/24 Thread  - 12RU","Black","RXL","4500-BK1218GT",null,"RXL-4500"]
["Wall Mount Cabinet, Plexi door, black, 24\"w x 35\"h x 24\"d, Tapped 12/24 Thread  - 18RU","Black","RXL","4500-BK1818GT",null,"RXL-4500"]
["Wall Mount Cabinet, Plexi door, black, 24\"w x 47\"h x 24\"d, Tapped 12/24 Thread  - 25RU","Black","RXL","4500-BK2518GT",null,"RXL-4500"]
[]
["Wall Mount Cabinet, Plexi door, black, 24\"w x 24\"h x 30\"d, Tapped 12/24 Thread  - 12RU","Black","RXL","4500-BK1223GT",null,"RXL-4500"]
["Wall Mount Cabinet, Plexi door, black, 24\"w x 35\"h x 30\"d, Tapped 12/24 Thread  - 18RU","Black","RXL","4500-BK1823GT",null,"RXL-4500"]
["Wall Mount Cabinet, Plexi door, black, 24\"w x 47\"h x 30\"d, Tapped 12/24 Thread  - 25RU","Black","RXL","4500-BK2523GT",null,"RXL-4500"]
["Wall Mount Cabinet, Plexi door, black, 24\"w x 47\"h x 24\"d, Tapped 12/24 Thread  - 25RU","Black","RXL","4500-BK2518GT",null,"RXL-4500"]
[]
["Wall Mount Cabinet Fan Kit - Field Installable, 5-15 Plug","Black","RXL","4805-BK",null,"RXL-4805-BK01"]
[]
["Free Standing Cabinets "]
["Cabinet 45U/7ft x 24\"W x 42\"D, Locking Perf Door Front, Split Door Rear, Top, Sides - 4 Adjustable Sqr. Hole TIA Rails ","Black","RXL","5550-BK452442S",null,"RXL-5550-X452442S"]
["Cabinet 45U/7ft x 24\"W x 48\"D, Locking Perf Door Front, Split Door Rear, Top, Sides - 4 Adjustable Sqr. Hole TIA Rails ","Black","RXL","5550-BK452448S",null,"RXL-5550-X452448S"]
["Cabinet 45U/7ft x 30\"W x 42\"D, Locking Perf Door Front, Split Door Rear, Top, Sides - 4 Adjustable Sqr. Hole TIA Rails ","Black","RXL","5550-BK453042S",null,"RXL-5550-X453042S"]
["Cabinet 45U/7ft x 30\"W x 48\"D, Locking Perf Door Front, Split Door Rear, Top, Sides - 4 Adjustable Sqr. Hole TIA Rails ","Black","RXL","5550-BK453048S",null,"RXL-5550-X453048S"]
["Cabinet 48U/7.5ft x 24\"W x 42\"D, Locking Perf Door Front, Split Door Rear, Top, Sides - 4 Adjustable Sqr. Hole TIA Rails ","Black","RXL","5550-BK482442S",null,"RXL-5550-X482442S"]
["Cabinet 48U/7.5ft x 24\"W x 48\"D, Locking Perf Door Front, Split Door Rear, Top, Sides - 4 Adjustable Sqr. Hole TIA Rails ","Black","RXL","5550-BK482448S",null,"RXL-5550-X482448S"]
["Cabinet 48U/7.5ft x 30\"W x 42\"D, Locking Perf Door Front, Split Door Rear, Top, Sides - 4 Adjustable Sqr. Hole TIA Rails ","Black","RXL","5550-BK483042S",null,"RXL-5550-X483042S"]
["Cabinet 48U/7.5ft x 30\"W x 48\"D, Locking Perf Door Front, Split Door Rear, Top, Sides - 4 Adjustable Sqr. Hole TIA Rails ","Black","RXL","5550-BK483048S",null,"RXL-5550-X483048S"]
[]
["1/2 Cabinet 23U/47\" x 30\"W x 42\"D, Locking Solid Front & Rear Doors, Top, Sides - 4 Adjustable Sqr. Hole TIA Rails ","Black","RXL","RXL-RH01-BK",null,"RXL-RH01-BK"," "]
[]
["Seismic Zone 4/HCAi Cabinets are availble --->",null,null,null,null,"XTDS Seismic Cabinets"]
["Accessories",null,null,null,null,null," "]
["Rack Mounting Screw Kit, #12-24 - 50pk","Black Zinc","RXL","2050-BZ50",null,"RXL-2050"," "]
["Steel Cage Nuts, 12/24 -50pk","Black Zinc","RXL","2049-BZ050",null,"RXL-2049"]
["Steel Cage Nuts, 12/24 - 100pk","Black Zinc","RXL","2049-BZ100",null,"RXL-2049"]
["PDU Braket 45U \"Single\" Includes Mounting Hardware","Black  ","RXL","5558-BK4501",null,"RXL-5558-X4502"]
["PDU Braket 45U \"Double\"  Includes Mounting Hardware","Black  ","RXL","5558-BK4502",null,"RXL-5558-X4505"]
["PDU Braket 48U \"Single\"  Includes Mounting Hardware","Black  ","RXL","5558-BK4801",null,"RXL-5558-X4802"]
["PDU Braket 48U \"Double\"  Includes Mounting Hardware","Black  ","RXL","5558-BK4802",null,"RXL-5558-X4805"]
[]
[]
["Cable Management",null,null,null,null,null," "]
["Leviton Mgrs"]
["Vertical Front & Rear Fingers 5\" wide x 80\" Wire Manager w/cover","Black","Leviton","4980L-VFR",null,{"$f":"HYPERLINK(\"http://www.google.com/url?q=http://www.leviton.com/OA_HTML/ProductDetail.jsp?partnumber%3D4980L-VFR%26minisite%3D10251&sa=D&usg=ALhdy2-FkuANYq3hJ011UGMLnmY_P7p2BA\",\"4980L-VFR\")","v":"4980L-VFR"}]
[]
["Vertical Front & Rear Fingers 8\" wide x 80\" Wire Manager w/cover","Black","Leviton","8980L-VFR",null,{"$f":"HYPERLINK(\"http://www.leviton.com/OA_HTML/ProductDetail.jsp?partnumber=8980L-VFR&section=39136&minisite=10251\",\"8980L-VFR\")","v":"8980L-VFR"}]
[]
["Horizontal Front & Rear Duct Wire Manager, 1U - Double Sided","Black","Leviton","491RU-HFR",null,{"$f":"HYPERLINK(\"http://www.google.com/url?q=http://www.leviton.com/OA_HTML/ProductDetail.jsp?partnumber%3D491RU-HFR%26minisite%3D10251&sa=D&usg=ALhdy28-I7lnUVBsbNTLWoKo5fm9jkDGWA\",\"491RUHFR\")","v":"491RUHFR"}]
["Horizontal Front & Rear Duct Wire Manager, 2U - Double Sided","Black","Leviton","492RU-HFR",null,{"$f":"HYPERLINK(\"http://www.google.com/url?q=http://www.leviton.com/OA_HTML/ProductDetail.jsp?partnumber%3D492RU-HFR%26minisite%3D10251&sa=D&usg=ALhdy2-DPJ8482uiQVtw-MSQqFz3gMvslw\",\"492RU-HFR\")","v":"492RU-HFR"}]
[]
["RXL Mgrs"]
["Vertical Cable Manager,   4\" Double Sided Wide w/ covers 7ft, Short Fingers…..XVM Series","Black","RXL","3353-BK7004S",null,"RXL-3353"]
["Vertical Cable Manager,   6\" Double Sided Wide w/ covers 7ft, Short Fingers…..XVM Series","Black","RXL","3353-BK7006S",null,"RXL-3353"]
["Vertical Cable Manager, 10\" Double Sided Wide w/ covers 7ft, Short Fingers…..XVM Series","Black","RXL","3353-BK7010S",null,"RXL-3353"]
["Vertical Cable Manager, 12\" Double Sided Wide w/ covers 7ft, Short Fingers…..XVM Series","Black","RXL","3353-BK7012S",null,"RXL-3353"]
[]
["Vertical Cable Manager,   4\" Double Sided Wide w/ covers 7ft, Long Fingers…..XVM Series","Black","RXL","3353-BK7004L",null,"RXL-3353"]
["Vertical Cable Manager,   6\" Double Sided Wide w/ covers 7ft, Long Fingers…..XVM Series","Black","RXL","3353-BK7006L",null,"RXL-3353"]
["Vertical Cable Manager, 10\" Double Sided Wide w/ covers 7ft, Long Fingers…..XVM Series","Black","RXL","3353-BK7010L",null,"RXL-3353"]
["Vertical Cable Manager, 12\" Double Sided Wide w/ covers 7ft, Long Fingers…..XVM Series","Black","RXL","3353-BK7012L",null,"RXL-3353"]
[null,null,null,null,null,null," "]
["Horizontal Cable Manager, 1U - Single Sided, Short Fingers","Black","RXL","3010-BK1S",null,"RXL-3010"]
["Horizontal Cable Manager, 2U - Single Sided, Short Fingers","Black","RXL","3010-BK2S",null,"RXL-3010"]
["Horizontal Cable Manager, 1U - Single Sided, Long Fingers  ","Black","RXL","3010-BK1L",null,"RXL-3010"]
["Horizontal Cable Manager, 2U - Single Sided, Long  Fingers","Black","RXL","3010-BK2L",null,"RXL-3010"]
[]
["Horizontal Cable Manager, 1U - Double Sided, Short Fingers","Black","RXL","3110-BK1S",null,"RXL-3110"]
["Horizontal Cable Manager, 2U - Double Sided, Short Fingers","Black","RXL","3110-BK2S",null,"RXL-3110"]
["Horizontal Cable Manager, 1U - Double Sided, Long Fingers","Black","RXL","3110-BK1L",null,"RXL-3110"]
["Horizontal Cable Manager, 2U - Double Sided, Long Fingers","Black","RXL","3110-BK2L",null,"RXL-3110"]
[]
["Shelves"]
["Double Side 2Post Rack Shelf - 2U, 19\" W x 27\" D, Perforated","Black","RXL","2053-BK27P",null,"RXL-2053"]
["Double Side 2Post Rack Shelf - 2U, 19\" W x 33\" D, Perforated","Black","RXL","2053-BK33P",null,"RXL-2053"]
[]
["Single Side 2Post Rack Shelf - 1U, 19\" W x 14\" D, Perforated","Black","RXL","2051-BK01P",null,"RXL-2051"]
["Single Side 2Post Rack Shelf - 2U, 19\" W x 14\" D, Perforated","Black","RXL","2051-BK02P",null,"RXL-2051"]
[]
["Ladder Racking"]
["Cable Runway - 12\" x 1 1/2\" stringer x 10'  - UL Classified","Black","RXL","1050-BK12",null,"RXL-1050"]
["Cable Runway - 18\" x 1 1/2\" stringer x 10'  - UL Classified","Black","RXL","1050-BK18",null,"RXL-1050"]
["Cable Runway - 24\" x 1 1/2\" stringer x 10'  - UL Classified","Black","RXL","1050-BK24",null,"RXL-1050"]
[]
["Rack to Runway Top Plate Kit - 12\" ","Black","RXL","1005-BK12",null,"RXL_1005"]
["Rack to Runway Top Plate Kit - 18\"","Black","RXL","1005-BK18",null,"RXL_1005"]
["Rack to Runway Top Plate Kit - 24\"","Black","RXL","1005-BK24",null,"RXL_1005"]
[]
["Wall Angle Support Kit - 12\"","Black","RXL","1008-BK12",null,"RXL-1008"]
["Wall Angle Support Kit - 18\"","Black","RXL","1008-BK18",null,"RXL-1008"]
["Wall Angle Support Kit - 24\"","Black","RXL","1008-BK24",null,"RXL-1008"]
[]
["Triangular Suport Bracket - 12\"","Black","RXL","1029-BK12",null,"RXL-1029"]
["Triangular Suport Bracket - 18\"","Black","RXL","1029-BK18",null,"RXL-1029"]
["Triangular Suport Bracket - 24\"","Black","RXL","1029-BK24",null,"RXL-1029"]
[]
["Cable Runway Horz Bend - 12\"","Black","RXL","1075-BK12",null,"RXL-1075"]
["Cable Runway Horz Bend - 18\"","Black","RXL","1075-BK18",null,"RXL-1075"]
["Cable Runway Horz Bend - 24\"","Black","RXL","1075-BK24",null,"RXL-1075"]
[]
["Cross Member Radius Drop - 12\"","Black","RXL","1021-BK12",null,"RXL-1021"]
["Cross Member Radius Drop - 18\"","Black","RXL","1021-BK18",null,"RXL-1021"]
["Cross Member Radius Drop - 24\"","Black","RXL","1021-BK24",null,"RXL-1021"]
[]
["Stringer Radious Drop - 6\"","Black","RXL","1023-BK106",null,"RXL-1023"]
["Stringer Radious Drop - 8\"","Black","RXL","1023-BK108",null,"RXL-1023"]
["Stringer Radious Drop - 10\"","Black","RXL","1023-BK110",null,"RXL-1023"]
[]
["Cable RunwayEnd Termination Kit - 12\"","Black","RXL","1027-BK12",null,"RXL-1027"]
["Cable RunwayEnd Termination Kit - 18\"","Black","RXL","1027-BK18",null,"RXL-1027"]
["Cable RunwayEnd Termination Kit - 24\"","Black","RXL","1027-BK24",null,"RXL-1027"]
[]
["Cable Retaining Post 6\"","Black","RXL","1009-BK106",null,"RXL-1009"]
["Cable Retaining Post 8\"","Black","RXL","1009-BK108",null,"RXL-1009"]
["Cable Retaining Post 10\"","Black","RXL","1009-BK110",null,"RXL-1009"]
[]
["Grounding Butt Splice Kit, UL Classified - Does not require installation of a Ground Strap \"Bonding\" Jumper ","Black","RXL","1099-BK01",null,"RXL-1099"]
["Butt Splice Kit, UL Classified","Black Zinc","RXL","1010-BZ01",null,"RXL-1010"]
["Junction Splice Kit, UL Classified","Black Zinc","RXL","1012-BZ01",null,"RXL-1012"]
["Ground Strap \"Bonding\" Jumper - 11\"","Green","RXL","9014-X11",null,"9014-X11"]
["Grounding Lug - 2 hole compression; #8 - #4awg, 5/8\" hole spacing, 1/4\"x20 bolt size","Galv","RXL",9022]
["J-Bolt Kit - 5/16-18 x 2.25”","Black Zinc","RXL","1001-BZ01",null,"RXL-1001"]
["End Caps - Neoprene, pair","Black","RXL","1024-BK01",null,"RXL-1024"]
[]
["Vertical Wall Brackets, pair","Black","RXL","1068-BK01",null,"RXL-1068"]
["Cable Runway Foot Kit","Black","RXL","1020-BK01",null,"RXL-1020"]
[]
["Stand Off Kits for Cabinet - adjustable 1\" - 3\"","Black","RXL","1003-BK103",null,"RXL-1003"]
["Stand Off Kits for Cabinet - adjustable 4\" - 6\"","Black","RXL","1003-BK106",null,"RXL-1003"]
["Stand Off Kits for Cabinet - adjustable 10\" - 12\"","Black","RXL","1003-BK112",null,"RXL-1003"]
[]
["3/8\" -16 Threaded Rod - 10'","Clear Zinc","RXL","1088-CZ1038",null,"RXL-1088"]
["1/2\" -11 Threaded Rod - 10'","Clear Zinc","RXL","1088-CZ1012",null,"RXL-1088"]
["5/8\" -13 Threaded Rod - 10'","Clear Zinc","RXL","1088-CZ1058",null,"RXL-1088"]
[]
["Slotted Support Bracket, for 3/8” Rod - harware not included","Black","RXL","1067-BK138",null,"RXL-1067"]
["Slotted Support Bracket, for 1/2” Rod - harware not included","Black","RXL","1067-BK112",null,"RXL-1067"]
["Slotted Support Bracket, for 5/8” Rod - harware not included","Black","RXL","1067-BK158",null,"RXL-1067"]
[]
["Ceiliing Support Bracket, for 3/8\" Rod - harware not included","Black","RXL","1019-BK38",null,"RXL-1019"]
["Ceiliing Support Bracket, for 1/2\" Rod - harware not included","Black","RXL","1019-BK12",null,"RXL-1019"]
["Ceiliing Support Bracket, for 5/8\" Rod - harware not included","Black","RXL","1019-BK58",null,"RXL-1019"]
[]
["Threaded Ceiling Support Kit - 3/8\" Rod","Black","RXL","1017-BK138",null,"RXL-1017"]
["Threaded Ceiling Support Kit - 1/2\" Rod","Black","RXL","1017-BK112",null,"RXL-1017"]
["Threaded Ceiling Support Kit - 5/8\" Rod","Black","RXL","1017-BK158",null,"RXL-1017"," "]
[]
["Strut - Deep, Single Sided Open Slots - 1 5/8\" x 1 5/8\" x 10 ft          (also available in custom lengths with 1' increments)","Galv","RXL","8002-PG120OS",null,"RXL-8002"," "]
["Strut - Deep, Double Sided Open Slots - 1 5/8\" x 1 5/8\" x 10 ft        (also available in custom lengths with 1' increments)","Galv","RXL","8004-PG120OS",null,"RXL-8004"]
["Strut - Deep, Single Sided Open Slots - 1 5/8\" x 1 5/8\" x 10 ft         (also available in custom lengths with 1' increments)","Black","RXL","8002-BK120OS",null,"RXL-8002"]
["Strut - Deep, Double Sided Open Slots - 1 5/8\" x 1 5/8\" x 10 ft       (also available in custom lengths with 1' increments)","Black","RXL","8004-BK120OS",null,"RXL-8004"]
[]
["Strut - Shallow Single Sided Open Slots -  13/16\" x 1 5/8\" x 10 ft     (also available in custom lengths with 1' increments)","Galv","RXL","8001-PG120OS",null,"RXL-8001"]
["Strut - Shallow Double Sided Open Slots -  13/16\" x 1 5/8\" x 10 ft    (also available in custom lengths with 1' increments)","Galv","RXL","8003-PG120OS",null,"RXL-8003"]
["Strut - Shallow Single Sided Open Slots -  13/16\" x 1 5/8\" x 10 ft     (also available in custom lengths with 1' increments)","Black","RXL","8001-BK120OS",null,"RXL-8001"]
["Strut - Shallow Double Sided Open Slots -  13/16\" x 1 5/8\" x 10 ft    (also available in custom lengths with 1' increments)","Black","RXL","8003-BK120OS",null,"RXL-8003"]
["\"Made in Madera\"           > >  For Solid Strut change part number from OS to NS  < <      ",null,null,null,null,null," "]
[]
["Deep 1 Tier Trapeze Kit ","Black","RXL","8022-BKAABBCC",null,"RXL-8022"]
["Deep 2 Tier Trapeze Kit ","Black","RXL","8023-BKAABBCC",null,"RXL-8023"]
[" (AA=36, 48, 60, 72 Height) (BB=12, 24, 36 Width) (CC=3816 (3/8\"), 1213 (1/2\"), 5811 (5/8\") Threaded Rod)"]
[]
["    \"Made in Madera\"                    RXL Home Page ---->",null,null,null,null,"RXL Home"]
["Cable Tray - Basket - COMING SOON!"]
["4\"x  4\"x10' Cable Tray Basket","Galv"]
["4\"x  6\"x10' Cable Tray Basket","Galv"]
["4\"x  8\"x10' Cable Tray Basket","Galv"]
["4\"x12\"x10' Cable Tray Basket","Galv"]
["4\"x16\"x10' Cable Tray Basket","Galv"]
["4\"x18\"x10' Cable Tray Basket","Galv"]
["4\"x20\"x10' Cable Tray Basket","Galv"]
["4\"x24\"x10' Cable Tray Basket","Galv"]
["Fast Splice Connector - Tab-Loc Connector","Galv"]
[]
["Connecting Hardware","Galv"]
[]
["Horizontal Adjustable Kit","Galv"]
["Splice Bar Kit","Galv"]
["Z Bracket","Galv"]
["Flip Clip - attach threaded rob to tray sides","Galv"]
[]
["Center Trapeze Support -   6\"","Galv"]
["Center Trapeze Support -   8\"","Galv"]
["Center Trapeze Support - 12\"","Galv"]
["Center Trapeze Support - 16\"","Galv"]
["Center Trapeze Support - 18\"","Galv"]
["Center Trapeze Support - 20\"","Galv"]
["Center Trapeze Support - 24\"","Galv"]
[]
["  6\" Shelf Bracket Wall Triangle","Galv"]
["  8\" Shelf Bracket Wall Triangle","Galv"]
["12\" Shelf Bracket Wall Triangle","Galv"]
["16\" Shelf Bracket Wall Triangle","Galv"]
["20\" Shelf Bracket Wall Triangle","Galv"]
[]
["J-Hooks"]
["J-Hook 3/4\"","Galv"]
["J-Hook 1.5\"","Galv"]
["J-Hook 2\"","Galv"]
["J-Hook 4\"","Galv"]
["J-Hook 3/4\" w/wire clip","Galv"]
["J-Hook 1.5\" w/wire clip","Galv"]
["J-Hook 2\" w/wire clip","Galv"]
["J-Hook 4\" w/wire clip","Galv"]
[]
["Misc."]
["Clip for Wire to Grid","Galv"]
[]
["Grounding"]
["Grounding Lug - 2 hole compression; #8 - #4awg, 5/8\" hole spacing, 1/4\"x20 bolt size","Galv","RXL",9022,null,9022]
["19\" Rackmount Horizontal Ground Bar","Copper","RXL","9041-019",null,"9041-019"]
[]
["Rack Mount PDUs"]
["Vertical Mount"]
["15 Amp - 16 Industrial-Grade Receptacles 5-15R,  Hardwired 5-15P plug, Overload Protection, Button Mount,  30\"H x 1.8\"W x 1.75\"D   ","Black","Leviton","P1040-10S",null,"P1040-10S"]
["20 Amp - 16 Industrial-Grade Receptacles 5-20R,  Hardwired 5-20P plug, Overload Protection, Button Mount,  30\"H x 1.8\"W x 1.75\"D","Black","Leviton","P1041-10S",null,"P1041-10S"]
["20 Amp - 16 Industrial-Grade Receptacles 5-20R,  Hardwired L5-20P plug, Overload Protection, Button Mount,  30\"H x 1.8\"W x 1.75\"D","Black","Leviton","P1042-10L",null,"P1042-10L"]
["20 Amp - 24 Industrial-Grade Receptacles 5-20R,  Hardwired 5-20P plug, Overload Protection, Button Mount,  48\"H x 1.8\"W x 1.75 D  ","Black","Leviton","P1043-10S",null,"P1043-10S"]
["20 Amp - 24 Industrial-Grade Receptacles 5-20R,  Hardwired L5-20P plug, Overload Protection, Button Mount,  48\"H x 1.8\"W x 1.75 D  ","Black","Leviton","P1044-10L",null,"P1044-10L"]
["30 Amp - 24 Industrial-Grade Receptacles 5-20R,  Hardwired L5-30P plug, Overload Protection, Button Mount,  48\"H x 1.8\"W x 1.75 D  ","Black","Leviton","P1045-10L",null,"P1045-10L"]
[]
["Horizontal Mount"]
["15 Amp - 10 Industrial-Grade Receptacles 5-15R,  Hardwired 5-15P plug, Overload Protection,    1U    ","Black","Leviton","P1020-12S",null,"P1020-12S"]
["20 Amp - 10 Industrial-Grade Receptacles 5-20R,  Hardwired 5-20P plug, Overload Protection,    1U","Black","Leviton","P1021-12S",null,"P1021-12S"]
["20 Amp - 10 Industrial-Grade Receptacles 5-20R,  Hardwired L5-20P plug, Overload Protection,   1U","Black","Leviton","P1022-12L",null,"P1022-12L"]
["30 Amp - 16 Industrial-Grade Receptacles 5-20R,  Hardwired L5-30P plug, Overload Protection,   2U","Black","Leviton","P1023-12L",null,"P1023-12L"]
[]
["Wire Basket Cable Tray"]
["08\"W x 6\"H Basket Tray with Speed Splice ","Electro Zinc","Basor","BF2R 8x6 EZ",null,"BF2R 8x6 EZ"]
["12\"W x 6\"H Basket Tray with Speed Splice","Electro Zinc","Basor","BF2R 12x6 EZ",null,"BF2R 12x6 EZ"]
["18\"W x 6\"H Basket Tray with Speed Splice","Electro Zinc","Basor","BF2R 18x6 EZ",null,"BF2R 18x6 EZ"]
["24\"W x 6\"H Basket Tray with Speed Splice","Electro Zinc","Basor","BF2R 24x6 EZ",null,"BF2R 24x6 EZ"]
[]
["06\"W x 4\"H Basket Tray with Speed Splice ","Electro Zinc","Basor","BF2R 6x4 EZ",null,"BF2R 6x4 EZ"]
["12\"W x 4\"H Basket Tray with Speed Splice","Electro Zinc","Basor","BF2R 12x4 EZ",null,"BF2R 12x4 EZ"]
["18\"W x 4\"H Basket Tray with Speed Splice","Electro Zinc","Basor","BF2R 18x4 EZ",null,"BF2R 18x4 EZ"]
["24\"W x 4\"H Basket Tray with Speed Splice","Electro Zinc","Basor","BF2R 24x4 EZ",null,"BF2R 24x4 EZ"]
[]
["06\"W x 2\"H Basket Tray with Speed Splice ","Electro Zinc","Basor","BF2R 6x2 EZ",null,"BF2R 6x2 EZ"]
["12\"W x 2\"H Basket Tray with Speed Splice","Electro Zinc","Basor","BF2R 12x2 EZ",null,"BF2R 12x2 EZ"]
["18\"W x 2\"H Basket Tray with Speed Splice","Electro Zinc","Basor","BF2R 18x2 EZ",null,"BF2R 18x2 EZ"]
["24\"W x 2\"H Basket Tray with Speed Splice","Electro Zinc","Basor","BF2R 24x2 EZ",null,"BF2R 24x2 EZ"]
[]
["06\" Solid Bottom Insert","Pre-Galvanized","Basor","SB6",null,"SB6"]
["08\" Solid Bottom Insert","Pre-Galvanized","Basor","SB8",null,"SB8"]
["12\" Solid Bottom Insert","Pre-Galvanized","Basor","SB12",null,"SB12"]
["18\" Solid Bottom Insert","Pre-Galvanized","Basor","SB18",null,"SB18"]
["24\" Solid Bottom Insert","Pre-Galvanized","Basor","SB24",null,"SB24"]
[]
["06\" SRB Wall Support Bracket","Pre-Galvanized","Basor","2/6373",null,"2/6373"]
["08\" SRB Wall Support Bracket","Pre-Galvanized","Basor","2/6374",null,"2/6374"]
["12\" SRB Wall Support Bracket","Pre-Galvanized","Basor","2/6375",null,"2/6375"]
["18\" SRB Wall Support Bracket","Pre-Galvanized","Basor","2/6377",null,"2/6377"]
["24\" SRB Wall Support Bracket","Pre-Galvanized","Basor","2/6378",null,"2/6378"]
[]
["Tray End Wall Support - 8\"","Pre-Galvanized","Basor","2/8228",null,"2/8228"]
[]
["08\" Drop-Out Sideway","Pre-Galvanized","Basor","2/18777",null,"2/18777"]
["12\" Drop-Out Sideway","Pre-Galvanized","Basor","2/18778",null,"2/18778"]
["18\" Drop-Out Sideway","Pre-Galvanized","Basor","2/18779",null,"2/18779"]
["24\" Drop-Out Sideway","Pre-Galvanized","Basor","2/18780",null,"2/18780"]
[]
["Drop-Out Plate","Pre-Galvanized","Basor","2/6451",null,"2/6451"]
["Drop-Out Plate - Mini","Pre-Galvanized","Basor","2/9807",null,"2/9807"]
[]
["06\" Profile for Trapeeze Support","Pre-Galvanized","Basor","2/3630",null,"2/3630"]
["08\" Profile for Trapeeze Support","Pre-Galvanized","Basor","2/1074",null,"2/1074"]
["12\" Profile for Trapeeze Support","Pre-Galvanized","Basor","2/1076",null,"2/1076"]
["18\" Profile for Trapeeze Support","Pre-Galvanized","Basor","2/1075",null,"2/1075"]
["24\" Profile for Trapeeze Support","Pre-Galvanized","Basor","2/5941",null,"2/5941"]
[]
["06\" Center Hanger Trapeez Support","Pre-Galvanized","Basor","U/0029",null,"U/0029"]
["08\" Center Hanger Trapeez Support","Pre-Galvanized","Basor","U/0029",null,"U/0029"]
["12\" Center Hanger Trapeez Support","Pre-Galvanized","Basor","U/0030",null,"U/0030"]
["18\" Center Hanger Trapeez Support","Pre-Galvanized","Basor","U/0031",null,"U/0031"]
["24\" Center Hanger Trapeez Support","Pre-Galvanized","Basor","U/0032",null,"U/0032"]
[]
["Trapeze Side Rail Hanger Clip","Pre-Galvanized","Basor","2/5724",null,"2/5724"]
[]
["2\" Horz Radius plate - 4\" Radious - for Ts & 90s","Pre-Galvanized","Basor","225032",null,225032]
["4\" Horz Radius plate - 4\" Radious - for Ts & 90s","Pre-Galvanized","Basor","225033",null,225033]
["6\" Horz Radius plate - 4\" Radious - for Ts & 90s","Pre-Galvanized","Basor","225034",null,225034]
[]
["06\"W x 4\"H Blind End Plate","Pre-Galvanized","Basor","U/0057",null,"U/0057"]
["12\"W x 4\"H Blind End Plate ","Pre-Galvanized","Basor","U/0055",null,"U/0055"]
["18\"W x 4\"H Blind End Plate","Pre-Galvanized","Basor","U/0053",null,"U/0053"]
["24\"W x 4\"H Blind End Plate","Pre-Galvanized","Basor","U/0051",null,"U/0051"]
[]
["06\"W x 2\"H Blind End Plate","Pre-Galvanized","Basor","U/0043",null,"U/0043"]
["12\"W x 2\"H Blind End Plate ","Pre-Galvanized","Basor","U/0041",null,"U/0041"]
["18\"W x 2\"H Blind End Plate","Pre-Galvanized","Basor","U/0039",null,"U/0039"]
["24\"W x 2\"H Blind End Plate","Pre-Galvanized","Basor","U/0037",null,"U/0037"]
[]
["Bolt and -Staple Set - most common tray splice connection ","Electro Zinc","Basor","2/4364",null,"2/4364"]
["Bolt & Nut Set - use to connect fittings and tray [i.e. center-hung trapeze]","Electro Zinc","Basor","2/4362",null,"2/4362"]
["Adjustable Splice Washer Kit for creating horizontal angles [i.e. 90's / 45s]","Pre-Galvanized","Basor","2/5059",null,"2/5059"]
["Tray Divider connection plate  -Square Washer ","Electro Zinc","Basor","2/0337",null,"2/0337"]
["SSC Washer - attached tray to 1/2\" threaded reod for central suspension of tray ","Electro Zinc","Basor","2/2064",null,"2/2064"]
["Spring Steel Strut Hold Down Clip - connects Tray to Strut","SS","Basor","2/10284",null,"2/10284"]
[]
["BT90 Kit - 1 kit makes  1x T  or  2x 90's","Pre-Galvanized","Basor","U/008",null,"U/008"]
["10\" Multi Union Slotted Bar for Splicing - used for reducing tray sizes","Pre-Galvanized","Basor","2/0357",null,"2/0357"]
[]
[]
["Submittal Builder online  ---- >",null,null,null,null,"Submittal Builder"]
[]
["J-Hooks"]
["Hybrid Composite and Metal J-Hooks"]
["2\" Hybrid Composite & Metal \"Plenum Rated\" Snap-Lock Latch, J-Hook (Pack of 25)",null,"Basor","BEHPH32",null,"BEHPH32"]
["2\" Hybrid Composite & Metal \"Plenum Rated\" Snap-Lock Latch, J-Hook 90° angle clip for 1/4\" rod (Pack of 25)",null,"Basor","BEHPH32AC",null,"BEHPH32AC"]
["2\" Hybrid Composite & Metal \"Plenum Rated\" Snap-Lock Latch, J-Hook 90° angle clip for 3/8\" rod (Pack of 25)",null,"Basor","BEJH32AC6",null,"BEJH32AC6"]
["2\" Hybrid Composite & Metal \"Plenum Rated\" Snap-Lock Latch, J-Hook with Batwing clip(Pack of 25)",null,"Basor","BEHPH32W",null,"BEHPH32W"]
["2\" Hybrid Composite & Metal \"Plenum Rated\" Snap-Lock Latch, J-Hook knock-on beam clamp 1/8-1/4\" thick (Pack of 25)",null,"Basor","BEHPH32HOK-24",null,"BEHPH32HOK-24"]
["2\" Hybrid Composite & Metal \"Plenum Rated\" Snap-Lock Latch, J-Hook knock-on beam clamp 5/16-1/2\" thick (Pack of 25)",null,"Basor","BEHPH32HOK-58",null,"BEHPH32HOK-58"]
["2\" Hybrid Composite & Metal \"Plenum Rated\" Snap-Lock Latch, J-Hook knock-on beam clamp 1/8-1/4\", swivels 360° (Pack of 25)",null,"Basor","BEHPH32ACFM24",null,"BEHPH32ACFM24"]
["2\" Hybrid Composite & Metal \"Plenum Rated\" Snap-Lock Latch, J-Hook knock-on beam clamp 5/16-1/2\", swivels 360° (Pack of 25)",null,"Basor","BEHPH32ACFM58",null,"BEHPH32ACFM58"]
["4\" Hybrid Composite & Metal \"Plenum Rated\" Snap-Lock Latch, J-Hook (Pack of 25)",null,"Basor","BEHPH64",null,"BEHPH64"]
["4\" Hybrid Composite & Metal \"Plenum Rated\" Snap-Lock Latch, J-Hook with 90° angle clip for 1/4\" rod (Pack of 25)",null,"Basor","BEHPH64AC",null,"BEHPH64AC"]
["4\" Hybrid Composite & Metal \"Plenum Rated\" Snap-Lock Latch, J-Hook with Batwing clip (Pack of 25)",null,"Basor","BEHPH64W",null,"BEHPH64W"]
["4\" Hybrid Composite & Metal \"Plenum Rated\" Snap-Lock Latch, J-Hook knock-on beam clamp, 1/8-1/4\" thick (Pack of 25)",null,"Basor","BEHPH64HOK-24",null,"BEHPH64HOK-24"]
["4\" Hybrid Composite & Metal \"Plenum Rated\" Snap-Lock Latch, J-Hook knock-on beam clamp, 5/16-1/2\" thick (Pack of 25)",null,"Basor","BEHPH64HOK-58",null,"BEHPH64HOK-58"]
["Metal J-Hooks "]
["3/4\" J Hook - Box of 100",null,"Basor","BEJH12 (100PCS)",null,"BEJH12 (100PCS)"]
["3/4\" J Hook with Angle Clip and FM24 - Rotates 360 degrees - Box of 100",null,"Basor","BEJH12ACFM24 (100PCS)",null,"BEJH12ACFM24 (100PCS)"]
["3/4\" J Hook with Angle Clip and FM58 - Rotates 360 degrees - Box of 100",null,"Basor","BEJH12ACFM58 (100PCS)",null,"BEJH12ACFM58 (100PCS)"]
["3/4\" J Hook with HOK24 Knock on Steel Beam Clamp 1/8\" to 1/4\" - Box of 100",null,"Basor","BEJH12HOK24 (100PCS)",null,"BEJH12HOK24 (100PCS)"]
["3/4\" J Hook with HOK58 Knock on Steel Beam Clamp 5/16\" to 5/8\" - Box of 100",null,"Basor","BEJH12HOK58 (100PCS)",null,"BEJH12HOK58 (100PCS)"]
["3/4\" J Hook with Batwing - Box of 100",null,"Basor","BEJH12W (100PCS)",null,"BEJH12W (100PCS)"]
["1 5/16\" J Hook - Box of 100",null,"Basor","BEJH21 (100PCS)",null,"BEJH21 (100PCS)"]
["1 5/16\" J Hook with HOK24 Knock on Steel Beam Clamp 1/8\" to 1/4\" - Box of 100",null,"Basor","BEJH21HOK24 (100PCS)",null,"BEJH21HOK24 (100PCS)"]
["1 5/16\" J Hook with HOK58 Knock on Steel Beam Clamp 5/16\" to 5/8\" - Box of 100",null,"Basor","BEJH21HOK58 (100PCS)",null,"BEJH21HOK58 (100PCS)"]
["1 5/16\" J Hook with Batwing - Box of 100",null,"Basor","BEJH21W (100PCS)",null,"BEJH21W (100PCS)"]
["2\" J Hook - Box of 100",null,"Basor","BEJH32 (100PCS)",null,"BEJH32 (100PCS)"]
["2\" J Hook with HOK24 Knock on Steel Beam Clamp 1/8\" to 1/4\" - Box of 100",null,"Basor","BEJH32HOK24 (100PCS)",null,"BEJH32HOK24 (100PCS)"]
["2\" J Hook with HOK58 Knock on Steel Beam Clamp 5/16\" to 5/8\" - Box of 100",null,"Basor","BEJH32HOK58 (100PCS)",null,"BEJH32HOK58 (100PCS)"]
["2\" J Hook with Batwing - Box of 100",null,"Basor","BEJH32W (100PCS)",null,"BEJH32W (100PCS)"]
["4\" J Hook with Angle Clip - Box of 25",null,"Basor","BEJH64AC (25PCS)",null,"BEJH64AC (25PCS)"]
["4\" J Hook with HOK24 Knock on Steel Beam Clamp 1/8\" to 1/4\" - Box of 25",null,"Basor","BEJH64HOK24 (25PCS)",null,"BEJH64HOK24 (25PCS)"]
["4\" J Hook with HOK58 Knock on Steel Beam Clamp 5/16\" to 5/8\" - Box of 25",null,"Basor","BEJH64HOK58 (25PCS)",null,"BEJH64HOK58 (25PCS)"]
["4\" J Hook with Batwing - Box of 25",null,"Basor","BEJH64W (25PCS)",null,"BEJH64W (25PCS)"]
[]
["See Complete Offering of J-Hooks --->",null,null,null,null,"All J-Hooks Link"]
[null,null,null,null,null,null," "]
["5 Square - Back Boxes"]
["5 SQUARE® Telecom Box w/ Cable Mgmt., Side Knockouts (1) 1” (1) 1-1/4” each Side","Galv","RANDL","T-55017",null,"T-55017"]
["5 SQUARE® Telecom Box w/Cable Mgmt., Old Work (OW) (1) 1\" & (1) 1 1/4\" KO 2 Sides","Galv","RANDL","T-55017-OW",null,"No Data Sheet Currently"]
["5 SQUARE® Telecom Box w/ Cable Mgmt., Side Knockouts (1) 1/2”, (1) 3/4\", & (1) 1” each Side","GALV","RANDL","T-55018",null,"T-55018"]
["5 SQUARE® Telecom Box w/ Cable Mgmt., Side Knockouts (1) ½” & (2) 1” each Side","Galv","RANDL","T-55019",null,"T-55019"]
["5 SQUARE® Telecom Box w/ Cable Mgmt., No Side Knockouts","Galv","RANDL ","T-55030",null,"T-55030"]
["5 SQUARE® Telecom Bracket Box w/ Cable Mgmt., Side Knockouts (1) 1” & (1) 1-1/4” 3 Sides ","Galv","RANDL","TB-55057",null,"TB-55057"]
["5 SQUARE® Telecom Bracket Box w/ Cable Mgmt., Side Knockouts (1) 1/2”, (1) 3/4\", & (1) 1” 3 Sides ","Galv","RANDL","TB-55058",null,"TB-55058"]
["5 SQUARE® Telecom Bracket Box w/ Cable Mgmt., Side Knockouts (2) 1” 3 Sides  ","Galv","RANDL","TB-55059",null,"TB-55059"]
["5 SQUARE® Box, Side Knockouts (2) 1\" each Side","Galv","RANDL","R-55014",null,"R-55014"]
["5 SQUARE® Box, Side Knockouts (1) 1/2\" & (2) 1/2\" / 3/4\" each Side","Galv","RANDL","R-55015",null,"R-55015"]
["5 SQUARE® Box, Side Knockouts (1) 1/2\" & (2) 1/2\" / 3/4\" each Side, Powder Coat Red","Galv","RANDL","R-55015-Red",null,"R-55015-Red"]
["5 SQUARE® Box Old Work (OW) (1) 1/2\" & (2) 1/2\" / 3/4\" KO 2 Sides","GLV","RANDL","R-55015-OW",null,"R-55015-OW"]
["5 SQUARE® Box, Side Knockouts (1) 1/2\", (1) 1/2\" / 3/4\", & (1) 1\" each Side","Galv","RANDL","R-55016",null,"R-55016"]
["5 SQUARE® Box, No Side Knockouts ","Galv","RANDL","R-55020",null,"R-55020"]
["5 SQUARE® Box, Side Knockouts (1) 1\" & (1) 1-1/4\" each Side","Galv","RANDL","R-55027",null,"No Data Sheet Currently"]
["5 SQUARE® Bracket Box, Side Knockouts (2) 1\" 3 Sides","Galv","RANDL","A-55054",null,"A-55054"]
["5 SQUARE® Bracket Box, Side Knockouts (1) 1/2\" & (2) 1/2\" / 3/4\" 3 Sides","Galv","RANDL","A-55055",null,"A-55055"]
["5 SQUARE® Bracket Box, Side Knockouts (1) 1/2\", (1) 1/2\" / 3/4\", & (1) 1\" 3 sides","Galv","RANDL","A-55056",null,"A-55056"]
["5 SQUARE® Bracket Box, Side Knockouts (1) 1\", (1) 1-1/4\", 3 sides","Galv","RANDL","A-55037",null,"No Data Sheet Currently"]
["5 SQUARE® x Single Gang Adapter Ring Flat","Galv","RANDL","D-51G000",null,"D-51G000"]
["5 SQUARE® x Single Gang Extension Ring Raise 1/4\" ","Galv","RANDL","D-51G014",null,"D-51G014"]
["5 SQUARE® x Single Gang Extension Ring Raise 1/2\"","Galv","RANDL","D-51G012",null,"D-51G012"]
["5 SQUARE® x Single Gang Extension Ring Raise 5/8\" ","Galv","RANDL","D-51G058",null,"D-51G058"]
["5 SQUARE® x Single Gang Extension Ring Raise 3/4\" ","Galv","RANDL","D-51G034",null,"D-51G034"]
["5 SQUARE® x Single Gang Extension Ring Raise 1\" ","Galv","RANDL","D-51G010",null,"D-51G010"]
["5 SQUARE® x Single Gang Extension Ring Raise 1-1/4\" ","Galv","RANDL","D-51G114",null,"D-51G114"]
["5 SQUARE® x Single Gang Extension Ring Raise 1-1/2\" ","Galv","RANDL","D-51G112",null,"D-51G112"]
["5 SQUARE® x Single Gang Extension Ring Raise 2\" ","Galv","RANDL","D-51G200",null,"D-51G200"]
["5 SQUARE® x Double Gang Adapter Ring Flat","Galv","RANDL","L-52G000",null,"L-52G000"]
["5 SQUARE® x Double Gang Extension Ring Raise 1/4\"","Galv","RANDL","L-52G014",null,"L-52G014"]
["5 SQUARE® x Double Gang Extension Ring Raise 1/2\"","Galv","RANDL","L-52G012",null,"L-52G012"]
["5 SQUARE® x Double Gang Extension Ring Raise 5/8\"","Galv","RANDL","L-52G058",null,"L-52G058"]
["5 SQUARE® x Double Gang Extension Ring Raise 3/4\"","Galv","RANDL","L-52G034",null,"L-52G034"]
["5 SQUARE® x Double Gang Extension Ring Raise 1\"","Galv","RANDL","L-52G010",null,"L-52G010"]
["5 SQUARE® x Double Gang Extension Ring Raise 1-1/4\"","Galv","RANDL","L-52G114",null,"L-52G114"]
["5 SQUARE® x Double Gang Extension Ring Raise 1-1/2\"","Galv","RANDL","L-52G112",null,"L-52G112"]
["5 SQUARE® x Double Gang Extension Ring Raise 2\"","Galv","RANDL","L-52G200",null,"L-52G200"]
["5 SQUARE® x 4-11 Adapter Ring Flat","Galv","RANDL","M-411000",null,"M-411000"]
["5 SQUARE® x 4 Sq Adapter Ring Flat","Galv","RANDL","N-54000",null,"N-54000"]
["5 SQUARE® x 4 Sq Extension Ring  Raise 1/4\"","Galv","RANDL","N-54014",null,"N-54014"]
["5 SQUARE® x 4 Sq Extension Ring Raise 1/2\"","Galv","RANDL","N-54012",null,"N-54012"]
["5 SQUARE® x 4 Sq Extension Ring Raise 5/8\"","Galv","RANDL","N-54058",null,"N-54058"]
["5 SQUARE® x 4 Sq Extension Ring Raise 5/8\" Powder Coat Red","Galv","RANDL","N-54058-Red",null,"N-54058-Red"]
["5 SQUARE® x 4 Sq Extension Ring Raise 3/4\"","Galv","RANDL","N-54034",null,"N-54034"]
["5 SQUARE® x 4 Sq Extension Ring Raise 3/4\" Powder Coat Red","Galv","RANDL","N-54034-Red",null,"N-54034-Red"]
["5 SQUARE® x 4 Sq Extension Ring Raise 1\"","Galv","RANDL","N-54010",null,"N-54010"]
["5 SQUARE® x 4 Sq Extension Ring Raise 1-1/4\"","Galv","RANDL","N-54114",null,"N-54114"]
["5 SQUARE® x 4 Sq Extension Ring Raise 1-1/2\"","Galv","RANDL","N-54112",null,"N-54112"]
["Box Support Bracket 16\" For 5 Square, 4 Sq & 4-11 Boxes","Galv","RANDL","5BSB-16",null,"5BSB-16"]
["Box Support Bracket 24\" For 5 Square, 4 Sq & 4-11 Boxes","Galv","RANDL","5BSB-24",null,"5BSB-24"]
[]
["Fiber Duct"]
["Fiber Raceway Trough 4\" x 8\" x 6.5ft, hinged cover","Yellow","Leviton","S8DCT-DHC",null,"S8DCT-DHC"]
["Fiber Raceway Trough 4\" x 4\" x 6.5ft, hinged cover","Yellow","Leviton","S4DCT-DHC",null,"S4DCT-DHC"]
["Fiber Drop-Off kits, 4\" x 4\"","Yellow","Leviton","S4DRP-DRP",null,"S4DRP-DRP"]
[]
["More Sizes & Solutions Available --->",null,null,null,null,"Fiber Raceway Solutions"]
[]
["UPSs"]
["J60 Lithium-ion UPS, 2U, 600 VA,  360 W, 5-15P  to C13input, Outputs:  (3) 5-15R, 120V","Black","Xtreme PC","J60-600",null,"J60-600"]
["P91 Lithium-ion  UPS, 2U, 1500 VA, 1350 W, 5-15P input, Outputs: (8) 5-15R, 120V","Black","Xtreme PC","P91-1.5kLi",null,"P91 Li 1.5-3kVA"]
["P91 Lithium-ion  UPS, 2U, 2000 VA, 1800 W, 5-20P input, Outputs: (8) 5-15/20RR, 120V","Black","Xtreme PC","P91-2kLi",null,"P91 Li 1.5-3kVA"]
["P91 Lithium-ion UPS, 2U, 3000 VA, 2700 W, L5-30P input, Outputs: (6) 5-15/20R, (1) L5-30R, 120V","Black","Xtreme PC","P91-3kLi",null,"P91 Li 1.5-3kVA"]
[]
["** UPS Selector Guide, click the link to the right---> "," "," ",null,null,"UPS Selector Guide - Link"]

{"sheet":"MDU & Residential BOM Builder","index":2,"n_rows":176,"n_cols":6,"rows_kept":176,"cut":false,"hidden":false,"merged":[[152,1,152,3],[0,0,4,0],[0,2,0,3],[1,2,1,3],[2,2,2,3],[3,2,3,3],[4,2,4,3],[126,1,126,3],[135,1,135,3],[141,1,141,3]]}
["Contractor/Customer Logo","Project Name:",null,null,1]
[null,"Project City:",null,null,1]
[null,"Contractor: ",null,null,1]
[null,"Distributor:",null,null,1]
[null,null,null,null,1]
["DESCRIPTION","COLOR","MFG.","PART NUMBER","QTY","LINKS - DATA SHEETS"]
["MDU & Residential"]
["NEW PLASTIC - SINGLE BAY ENCLOSURES"]
["42\" Wireless Structured Media Center - Enclosure w/ Vented Hinged Door","White","Leviton","49605-42P",null,"49605-42P"]
["42\" Wireless Structured Media Center - Enclosure Only","White","Leviton","49605-42E",null,"49605-42E"]
["42\" Wireless Structured Media Center - Vented Hinged Door","White","Leviton","49605-42S",null,"49605-42S"]
["42\" Wireless Structured Media Center - Trim Ring","White","Leviton","49605-42T",null,"49605-42T"]
["42\" Wireless Structured Media Center - Enclosure Only, (Bulk Pack of 6)","White","Leviton","49605-42G",null,"49605-42G"]
["42\" Wireless Structured Media Center - Vented Hinged Door, (Bulk Pack of 6)","White","Leviton","49605-42B",null,"49605-42B"]
[]
["28\" Wireless Structured Media Center - Enclosure w/ Vented Hinged Door","White","Leviton","49605-28P",null,"49605-28P"]
["28\" Wireless Structured Media Center - Enclosure w/ Vented Cover","White","Leviton","49605-28W",null,"49605-28W"]
["28\" Wireless Structured Media Center - Enclosure Only","White","Leviton","49605-28E",null,"49605-28E"]
["28\" Wireless Structured Media Center - Vented Hinged Door","White","Leviton","49605-28S",null,"49605-28S"]
["28\" Wireless Structured Media Center - Trim Ring","White","Leviton","49605-28T",null,"49605-28T"]
["28\" Wireless Structured Media Center - Enclosure Only, (Bulk Pack of 6)","White","Leviton","49605-28G",null,"49605-28G"]
["28\" Wireless Structured Media Center - Vented Hinged Door, (Bulk Pack of 6)","White","Leviton","49605-28B",null,"49605-28B"]
["28\" Wireless Structured Media Center - Vented Cover, (Bulk Pack of 6)","White","Leviton","49605-28F",null,"49605-28F"]
[]
["14\" Wireless Structured Media Center - Enclosure w/ Vented Hinged Door","White","Leviton","49605-14P",null,"49605-14P"]
["14\" Wireless Structured Media Center - Enclosure w/ Vented Cover","White","Leviton","49605-14O",null,"49605-14O"]
["14\" Wireless Structured Media Center - Enclosure Only","White","Leviton","49605-14E",null,"49605-14E"]
["14\" Wireless Structured Media Center - Vented Hinged Door","White","Leviton","49605-14S",null,"49605-14S"]
["14\" Wireless Structured Media Center - Vented Cover","White","Leviton","49605-14W",null,"49605-14W"]
["14\" Wireless Structured Media Center - Trim Ring","White","Leviton","49605-14T",null,"49605-14T"]
["14\" Wireless Structured Media Center - Enclosure Only, (Bulk Pack of 12)","White","Leviton","49605-14G",null,"49605-14G"]
["14\" Wireless Structured Media Center - Vented Hinged Door, (Bulk Pack of 6 )","White","Leviton","49605-14B",null,"49605-14B"]
["14\" Wireless Structured Media Center - Vented Cover, (Bulk Pack of 12)","White","Leviton","49605-14F",null,"49605-14F"]
[]
["Multi-Bay Attachment Tube","White","Leviton","49605-TUB",null,"49605-TUB"]
["Universal Shelf Bracket","White","Leviton","49605-AUB",null,"49605-AUB"]
["Cable Routing Ring with (2) Push Pins","Black","Leviton","49605-AFR",null,"49605-AFR"]
["Saddle Tie Kit with VELCRO®, includes (5) Saddle Ties, 5' of VELCRO®","White","Leviton","49605-AST",null,"49605-AST"]
["Grommet Accessory Pack, includes (3) 1\" and (2) 2\" rubber grommets.","Black","Leviton","49605-GRM",null,"49605-GRM"]
["3-Outlet Power Strip","White","Leviton","49605-APS",null,"49605-APS"]
[]
["Structured Media Center Lock and Key",null,null,"5L000-L0K",null,"5L000-L0K"]
[]
["METAL - SINGLE BAY ENCLOSURES"]
["42\" Structured Media Center - Enclosure Only","White","Leviton","47605-42N",null,"47605-42N"]
["42\" Structured Media Center - Enclosure Only, Concrete-Mountable","Grey","Leviton","48605-42E",null,"48605-42E"]
["42\" Structured Media Center - Flush Mount Cover","White","Leviton","47605-F42",null,"47605-F42"]
["42\" Structured Media Center - Economy Hinged Door","White","Leviton","47605-42D",null,"47605-42D"]
["42\" Structured Media Center - Premium Vented Hinged Door","White","Leviton","47605-42S",null,"47605-42S"]
[]
["30\" Structured Media Center - RF Transparent Wireless Enclosure w/Vented Hinged Door","White","Leviton","49605-30W",null,"49605-30W"]
[]
["28\" Structured Media Center - Enclosure Only","White","Leviton","47605-28N",null,"47605-28N"]
["28\" Structured Media Center - Enclosure Only, Concrete-Mountable","Grey","Leviton","48605-28E",null,"48605-28E"]
["28\" Structured Media Center - Flush Mount Cover","White","Leviton","47605-F28",null,"47605-F28"]
["28\" Structured Media Center - Economy Hinged Door","White","Leviton","47605-28D",null,"47605-28D"]
["28\" Structured Media Center - Premium Vented Hinged Door","White","Leviton","47605-28S",null,"47605-28S"]
[]
["21\" Structured Media Center - Enclosure Only","White","Leviton","47605-214E",null,"47605-214E"]
["21\" Structured Media Center - Enclosure Only, Concrete-Mountable","Grey","Leviton","48605-21E",null,"48605-21E"]
["21\" Structured Media Center - Flush Mount Cover","White","Leviton","47605-21C",null,"47605-21C"]
["21\" Structured Media Center - Premium Vented Hinged Door","White","Leviton","47605-21S",null,"47605-21S"]
[]
["14\" Structured Media Center - Enclosure Only","White","Leviton","47605-14E",null,"47605-14E"]
["14\" Structured Media Center - Flush Mount Cover","White","Leviton","47605-14C",null,"47605-14C"]
["14\" Structured Media Center - Economy Hinged Door","White","Leviton","47605-14D",null,"47605-14D"]
["14\" Structured Media Center - Premium Vented Hinged Door","White","Leviton","47605-14S",null,"47605-14S"]
[]
["Structured Media Enclosure Lock & Key for 14\", 21\", 28\" and 42\" Hinged Doors.","Silver","Leviton","5L000-L0C"]
[]
["* Build your Structured Media Enclosure - Configurator",null,null,null,null,"MDU Configurator"]
[]
["MULTI-BAY FIBER-TO-THE-HOME (FTTH) ENCLOSURES"]
["42\" + 14\" Dual Bay - Enclosure Only","White","Leviton","47FTH-420",null,"47FTH-420"]
[]
["28\" + 28\" Dual Bay - Enclosure Only","White","Leviton","47FTH-880",null,"47FTH-880"]
["28\" + 14\" Dual Bay - Enclosure Only","White","Leviton","47FTH-840",null,"47FTH-840"]
[]
["14\" + 14\" Dual Bay - Enclosure Only","White","Leviton","47FTH-440"]
["14\" + 14\" + 14\" Triple Bay - Enclosure Only","White","Leviton","47FTH-240",null,"47FTH-240"]
[]
["VOICE, DATA, VIDEO DISTRIBUTION"]
["1X9 Bridged Telephone & 6-way 2 GHz TV Splitter","White","Leviton","47603-2G6",null,"47603-2G6"]
["1x4 Bridged Phone, 4-Port Cat-5e Data Board & 6-way 1 GHz Video Splitter","White","Leviton","47603-DP6",null,"47603-DP6"]
[]
["Cat 6 Voice & Data Expansion Board - 6 port","Black","Leviton","47611-0C6",null,"47611-0C6"]
["Cat 5e Voice & Data Expansion Board - 6 port","Green","Leviton","47603-C5",null,"47603-C5"]
["Telephone Patching Expansion Board","Green","Leviton","47609-EMP",null,"47609-EMP"]
[]
["1x8 Premium Video Module, Tiltable Bracket, includes Power Supply - 1GHz","White","Leviton","47693-8P",null,"47693-8P"]
["1X8 Passive Video Splitter Module (2GHz)","White","Leviton","47690-8C2",null,"47690-8C2"]
["1X6 Passive Video Splitter Module (2GHz)","White","Leviton","47690-6C2",null,"47690-6C2"]
[]
["POWER SUPPLIES"]
["Power Supply - 6 12 VDC connectors and 2 NEMA 15A Receptacles","White","Leviton","47605PSC",null,"47605PSC"]
["AC Surge Module - 6 NEMA 15A Receptacles","White","Leviton","4821206S",null,"4821206S"]
["J-Box Surge Protective Kit (one duplex blue receptacle)","White","Leviton","47605-ACS",null,"47605-ACS"]
[]
["BRACKETS"]
["Expansion Plastic Bracket, for up to 5 Expansion Boards - Standard 12\" wide","White","Leviton","47612-EBK",null,"47612-EBK"]
["Expansion Plastic Bracket, for up to 3 Expansion Boards - Compact 6\" wide","White","Leviton","47612-HBK",null,"47612-HBK"]
["Shelf Plastic Bracket, for up to 3 Expansion Boards and CATV Splitter - Standard 12\" wide","White","Leviton","47612-VSB",null,"47612-VSB"]
["12 Port Quickport Mounting Bracket, Accepts 12 QuickPort Jacks","Black","Leviton","47600-QPB",null,"47600-QPB"]
["Data Plastic Bracket, for Mounting Routers & Switches","White","Leviton","47612-DBK",null,"47612-DBK"]
[]
["Fiber to the Home, Point of Entry","White","Leviton","FTH00-00W",null,"FTH00-00W"]
[]
["QuickPort F-Connector","Any","Leviton","41084-F*F",null,"41084-F*F"]
["Compression F-Connector","Silver","Leviton","40985-CPF",null,"40985-CPF"]
["QuickPort Blank - (10pk)","Any","Leviton","41084-B*",null,"41084-B*"]
[]
["PATCH PANEL"]
["48-Port QuickPort Flat Panel Empty, 2RU w/mag lens label","Black","Leviton","49255-L48",null,"49255-L48"]
["24-Port QuickPort Flat Panel Empty, 2RU w/mag lens label","Black","Leviton","49255-L24",null,"49255-L24"]
[]
["Hinged Wall MountBraket 4-postion (7\".H,6\".D)","Black","Leviton","49251-W64",null,"49251-W64"]
[]
["JACKS"]
["Home 6 Jack","*","Leviton","61HOM-R*6",null,"61HOM-R*6"]
["Category 6, eXtreme Jack (component rated), 110 Punch Style","*","Leviton","61110-R*6",null,"61110-RW6"]
["Category 6, eXtreme Jack (component rated), 110 Punch Style - Bulk Pack 25pc","*","Leviton","61110-B*6",null,"61110-BW6"]
[]
["Home 5e Jack","*","Leviton","5EHOM-B*5",null,"5EHOM-B*5"]
["Category 5e, GigaMax® Jack (channel rated), 110 Punch Style","*","Leviton","5G108-R*5",null,"5G108-RW5"]
["Category 5e, GigaMax® Jack (channel rated), 110 Punch Style - Bulk Pack 25pc","*","Leviton","5G108-B*5",null,"5G108-BW5"]
[]
["White Lt. Almond Ivory Blue Grey Black Brown","* Color Code for above Jacks..ie W = White"]
["FACEPLATES & SMB'S"]
["2-port Faceplate - Single Gang with ID window","*","Leviton","42080-2*S",null,"42080-2WS"]
["3-port Faceplate - Single Gang with ID window","*","Leviton","42080-3*S",null,"42080-3WS"]
["4-port Faceplate - Single Gang with ID window","*","Leviton","42080-4*S",null,"42080-4WS"]
["6-port Faceplate - Single Gang with ID window","*","Leviton","42080-6*S",null,"42080-6WS"]
[]
["WP Wallphone - Single Gang, Rec SS","S. Steel","Leviton","4108w-1SP",null,"4108w-1SP"]
[]
["White Lt. Almond Ivory Grey Black Brown","* Color Code for above Faceplates..ie W = White"]
["1-port Surface Mount Box with ID window \"Plenum Rated\"","*","Leviton","41089-1*P",null,"41089-1WP"]
["2-port Surface Mount Box with ID window \"Plenum Rated\"","*","Leviton","41089-2*P",null,"41089-2WP"]
["4-port Surface Mount Box with ID window","*","Leviton","41089-4*P",null,"41089-4WP"]
["6-port Surface Mount Box with ID window","*","Leviton","41089-6*P",null,"41089-6WP"]
[]
["White Ivory Grey Black","* Color Code for above SMB's..ie W = White"]
["PATCH CORDS"]
["Category 6, 2' Patch Cord - Extreme High Flex","*","Leviton","6H460-02*",null,"6H460-02*"]
["Category 6, 3' Patch Cord - Extreme High Flex","*","Leviton","6H460-03*",null,"6H460-03*"]
["Category 6, 4' Patch Cord - Extreme High Flex","*","Leviton","6H460-04*",null,"6H460-04*"]
["Category 6, 10' Patch Cord - Extreme High Flex","*","Leviton","6H460-10*",null,"6H460-10*"]
[]
["Category 5e, 3' Patch Cord",null,"Leviton","5G460-03*",null,"5G460-03*"]
["Category 5e, 5' Patch Cord",null,"Leviton","5G460-05*",null,"5G460-05*"]
["Category 5e, 7' Patch Cord",null,"Leviton","5G460-07*",null,"5G460-07*"]
["Category 5e, 10' Patch Cord",null,"Leviton","5G460-10*",null,"5G460-10*"]
["White Yellow Red Blue Green Grey Black","* Color Code for above Cords..ie L = Blue"]
[]
["WALL TERMINATION BLOCKS"]
["300 Pair Mounting Frame w/3 100pr Kit","Black","Leviton","41MB2-3F5",null,"41MB2-3F5"]
["300 Pair Vertical Manager","Black","Leviton","41880-300",null,"41880-300"]
[]
["Cable"]
["CMP"]
["Category 6 Min - LANmark 6, CMP","White","Berk-Tek",10136230,null,10136230]
["Category 6 Min - LANmark 6, CMP","Blue","Berk-Tek",10136226,null,10136226]
[]
["Category 5e Berk-Tek HyperPlus 5e, CMP, Box","White","Leviton",10032223,null,10032223]
["Category 5e Berk-Tek HyperPlus 5e, CMP, Box","Blue","Leviton",10032227,null,10032227]
["CMR"]
["Category 6 Min - LANmark 6, CMR","White","Berk-Tek",10136340,null,10136340]
["Category 6 Min - LANmark 6, CMR","Blue","Berk-Tek",10136339,null,10136339]
[]
["Category 5e Berk-Tek HyperPlus 5e, CMR, Box","White","Leviton",11142476,null,11142476]
["Category 5e Berk-Tek HyperPlus 5e, CMR, Box","Blue","Leviton",11142475,null,11142475]
["OSP"]
["Category 6 Min OSP - LANmark 6 OSP, Reel","Black","Berk-Tek",10139885,null,10139885]
["Category 5e OSP- HyperPlus 5e OSP, Reel","Black","Berk-Tek",10071496,null,10071496]
[]
["Grey Yellow Green Red Orange Violet Pink Brown Black",null,null,null,null,"Additional Cable Part Numbers Link"]

{"sheet":"Backend","index":3,"n_rows":485,"n_cols":24,"rows_kept":485,"cut":false,"hidden":true,"merged":[]}
[]
[null,null,null,"Info@rxlusa.com",null,"Nemesis Catalog"]
[null,null,null,"866 996 2285"]
["Nemesis Series","Color Options","Rack Units (In)","Frame Width (In)","Frame Depth (In)","Rail Style","CCode","T/S","Frame Height (In)","Overall Height (In) W/Casters","Overall Depth (In) W/Doors","Part #"]
[]
["5550-","White",42,24,32,"Tapped","WH","T",77.875,80.375,35,{"$f":"CONCATENATE($A$6,G6,C6,D6,E6,H6)","v":"5550-WH422432T"}]
["5550-","Black",42,24,32,"Tapped","BK","T",77.875,80.375,35,"5550-BK422432T"]
["5550-","Grey",42,24,32,"Tapped","GR","T",77.875,80.375,35,"5550-GR422432T"]
["5550-","White",42,24,32,"Square","WH","S",77.875,80.375,35,"5550-WH422432S"]
["5550-","Black",42,24,32,"Square","BK","S",77.875,80.375,35,"5550-BK422432S"]
["5550-","Grey",42,24,32,"Square","GR","S",77.875,80.375,35,"5550-GR422432S"]
["5550-","White",42,24,36,"Tapped","WH","T",77.875,80.375,38,"5550-WH422436T"]
["5550-","Black",42,24,36,"Tapped","BK","T",77.875,80.375,38,"5550-BK422436T"]
["5550-","Grey",42,24,36,"Tapped","GR","T",77.875,80.375,38,"5550-GR422436T"]
["5550-","White",42,24,36,"Square","WH","S",77.875,80.375,38,"5550-WH422436S"]
["5550-","Black",42,24,36,"Square","BK","S",77.875,80.375,38,"5550-BK422436S"]
["5550-","Grey",42,24,36,"Square","GR","S",77.875,80.375,42,"5550-GR422436S"]
["5550-","White",42,24,40,"Tapped","WH","T",77.875,80.375,42,"5550-WH422440T"]
["5550-","Black",42,24,40,"Tapped","BK","T",77.875,80.375,42,"5550-BK422440T"]
["5550-","Grey",42,24,40,"Tapped","GR","T",77.875,80.375,42,"5550-GR422440T"]
["5550-","White",42,24,40,"Square","WH","S",77.875,80.375,42,"5550-WH422440S"]
["5550-","Black",42,24,40,"Square","BK","S",77.875,80.375,42,"5550-BK422440S"]
["5550-","Grey",42,24,40,"Square","GR","S",77.875,80.375,42,"5550-GR422440S"]
["5550-","White",42,24,42,"Tapped","WH","T",77.875,80.375,44,"5550-WH422442T"]
["5550-","Black",42,24,42,"Tapped","BK","T",77.875,80.375,44,"5550-BK422442T"]
["5550-","Grey",42,24,42,"Tapped","GR","T",77.875,80.375,44,"5550-GR422442T"]
["5550-","White",42,24,42,"Square","WH","S",77.875,80.375,44,"5550-WH422442S"]
["5550-","Black",42,24,42,"Square","BK","S",77.875,80.375,44,"5550-BK422442S"]
["5550-","Grey",42,24,42,"Square","GR","S",77.875,80.375,44,"5550-GR422442S"]
["5550-","White",42,24,48,"Tapped","WH","T",77.875,80.375,50,"5550-WH422448T"]
["5550-","Black",42,24,48,"Tapped","BK","T",77.875,80.375,50,"5550-BK422448T"]
["5550-","Grey",42,24,48,"Tapped","GR","T",77.875,80.375,50,"5550-GR422448T"]
["5550-","White",42,24,48,"Square","WH","S",77.875,80.375,50,"5550-WH422448S"]
["5550-","Black",42,24,48,"Square","BK","S",77.875,80.375,50,"5550-BK422448S"]
["5550-","Grey",42,24,48,"Square","GR","S",77.875,80.375,50,"5550-GR422448S"]
["5550-","White",42,28,32,"Tapped","WH","T",77.875,80.375,35,"5550-WH422832T"]
["5550-","Black",42,28,32,"Tapped","BK","T",77.875,80.375,35,"5550-BK422832T"]
["5550-","Grey",42,28,32,"Tapped","GR","T",77.875,80.375,35,"5550-GR422832T"]
["5550-","White",42,28,32,"Square","WH","S",77.875,80.375,35,"5550-WH422832S"]
["5550-","Black",42,28,32,"Square","BK","S",77.875,80.375,35,"5550-BK422832S"]
["5550-","Grey",42,28,32,"Square","GR","S",77.875,80.375,35,"5550-GR422832S"]
["5550-","White",42,28,36,"Tapped","WH","T",77.875,80.375,38,"5550-WH422836T"]
["5550-","Black",42,28,36,"Tapped","BK","T",77.875,80.375,38,"5550-BK422836T"]
["5550-","Grey",42,28,36,"Tapped","GR","T",77.875,80.375,38,"5550-GR422836T"]
["5550-","White",42,28,36,"Square","WH","S",77.875,80.375,38,"5550-WH422836S"]
["5550-","Black",42,28,36,"Square","BK","S",77.875,80.375,38,"5550-BK422836S"]
["5550-","Grey",42,28,36,"Square","GR","S",77.875,80.375,42,"5550-GR422836S"]
["5550-","White",42,28,40,"Tapped","WH","T",77.875,80.375,42,"5550-WH422840T"]
["5550-","Black",42,28,40,"Tapped","BK","T",77.875,80.375,42,"5550-BK422840T"]
["5550-","Grey",42,28,40,"Tapped","GR","T",77.875,80.375,42,"5550-GR422840T"]
["5550-","White",42,28,40,"Square","WH","S",77.875,80.375,42,"5550-WH422840S"]
["5550-","Black",42,28,40,"Square","BK","S",77.875,80.375,42,"5550-BK422840S"]
["5550-","Grey",42,28,40,"Square","GR","S",77.875,80.375,42,"5550-GR422840S"]
["5550-","White",42,28,42,"Tapped","WH","T",77.875,80.375,44,"5550-WH422842T"]
["5550-","Black",42,28,42,"Tapped","BK","T",77.875,80.375,44,"5550-BK422842T"]
["5550-","Grey",42,28,42,"Tapped","GR","T",77.875,80.375,44,"5550-GR422842T"]
["5550-","White",42,28,42,"Square","WH","S",77.875,80.375,44,"5550-WH422842S"]
["5550-","Black",42,28,42,"Square","BK","S",77.875,80.375,44,"5550-BK422842S"]
["5550-","Grey",42,28,42,"Square","GR","S",77.875,80.375,44,"5550-GR422842S"]
["5550-","White",42,28,48,"Tapped","WH","T",77.875,80.375,50,"5550-WH422848T"]
["5550-","Black",42,28,48,"Tapped","BK","T",77.875,80.375,50,"5550-BK422848T"]
["5550-","Grey",42,28,48,"Tapped","GR","T",77.875,80.375,50,"5550-GR422848T"]
["5550-","White",42,28,48,"Square","WH","S",77.875,80.375,50,"5550-WH422848S"]
["5550-","Black",42,28,48,"Square","BK","S",77.875,80.375,50,"5550-BK422848S"]
["5550-","Grey",42,28,48,"Square","GR","S",77.875,80.375,50,"5550-GR422848S"]
["5550-","White",42,30,32,"Tapped","WH","T",77.875,80.375,35,"5550-WH423032T"]
["5550-","Black",42,30,32,"Tapped","BK","T",77.875,80.375,35,"5550-BK423032T"]
["5550-","Grey",42,30,32,"Tapped","GR","T",77.875,80.375,35,"5550-GR423032T"]
["5550-","White",42,30,32,"Square","WH","S",77.875,80.375,35,"5550-WH423032S"]
["5550-","Black",42,30,32,"Square","BK","S",77.875,80.375,35,"5550-BK423032S"]
["5550-","Grey",42,30,32,"Square","GR","S",77.875,80.375,35,"5550-GR423032S"]
["5550-","White",42,30,36,"Tapped","WH","T",77.875,80.375,38,"5550-WH423036T"]
["5550-","Black",42,30,36,"Tapped","BK","T",77.875,80.375,38,"5550-BK423036T"]
["5550-","Grey",42,30,36,"Tapped","GR","T",77.875,80.375,38,"5550-GR423036T"]
["5550-","White",42,30,36,"Square","WH","S",77.875,80.375,38,"5550-WH423036S"]
["5550-","Black",42,30,36,"Square","BK","S",77.875,80.375,38,"5550-BK423036S"]
["5550-","Grey",42,30,36,"Square","GR","S",77.875,80.375,42,"5550-GR423036S"]
["5550-","White",42,30,40,"Tapped","WH","T",77.875,80.375,42,"5550-WH423040T"]
["5550-","Black",42,30,40,"Tapped","BK","T",77.875,80.375,42,"5550-BK423040T"]
["5550-","Grey",42,30,40,"Tapped","GR","T",77.875,80.375,42,"5550-GR423040T"]
["5550-","White",42,30,40,"Square","WH","S",77.875,80.375,42,"5550-WH423040S"]
["5550-","Black",42,30,40,"Square","BK","S",77.875,80.375,42,"5550-BK423040S"]
["5550-","Grey",42,30,40,"Square","GR","S",77.875,80.375,42,"5550-GR423040S"]
["5550-","White",42,30,42,"Tapped","WH","T",77.875,80.375,44,"5550-WH423042T"]
["5550-","Black",42,30,42,"Tapped","BK","T",77.875,80.375,44,"5550-BK423042T"]
["5550-","Grey",42,30,42,"Tapped","GR","T",77.875,80.375,44,"5550-GR423042T"]
["5550-","White",42,30,42,"Square","WH","S",77.875,80.375,44,"5550-WH423042S"]
["5550-","Black",42,30,42,"Square","BK","S",77.875,80.375,44,"5550-BK423042S"]
["5550-","Grey",42,30,42,"Square","GR","S",77.875,80.375,44,"5550-GR423042S"]
["5550-","White",42,30,48,"Tapped","WH","T",77.875,80.375,50,"5550-WH423048T"]
["5550-","Black",42,30,48,"Tapped","BK","T",77.875,80.375,50,"5550-BK423048T"]
["5550-","Grey",42,30,48,"Tapped","GR","T",77.875,80.375,50,"5550-GR423048T"]
["5550-","White",42,30,48,"Square","WH","S",77.875,80.375,50,"5550-WH423048S"]
["5550-","Black",42,30,48,"Square","BK","S",77.875,80.375,50,"5550-BK423048S"]
["5550-","Grey",42,30,48,"Square","GR","S",77.875,80.375,50,"5550-GR423048S"]
["5550-","White",42,32,32,"Tapped","WH","T",77.875,80.375,35,"5550-WH423232T"]
["5550-","Black",42,32,32,"Tapped","BK","T",77.875,80.375,35,"5550-BK423232T"]
["5550-","Grey",42,32,32,"Tapped","GR","T",77.875,80.375,35,"5550-GR423232T"]
["5550-","White",42,32,32,"Square","WH","S",77.875,80.375,35,"5550-WH423232S"]
["5550-","Black",42,32,32,"Square","BK","S",77.875,80.375,35,"5550-BK423232S"]
["5550-","Grey",42,32,32,"Square","GR","S",77.875,80.375,35,"5550-GR423232S"]
["5550-","White",42,32,36,"Tapped","WH","T",77.875,80.375,38,"5550-WH423236T"]
["5550-","Black",42,32,36,"Tapped","BK","T",77.875,80.375,38,"5550-BK423236T"]
["5550-","Grey",42,32,36,"Tapped","GR","T",77.875,80.375,38,"5550-GR423236T"]
["5550-","White",42,32,36,"Square","WH","S",77.875,80.375,38,"5550-WH423236S"]
["5550-","Black",42,32,36,"Square","BK","S",77.875,80.375,38,"5550-BK423236S"]
["5550-","Grey",42,32,36,"Square","GR","S",77.875,80.375,42,"5550-GR423236S"]
["5550-","White",42,32,40,"Tapped","WH","T",77.875,80.375,42,"5550-WH423240T"]
["5550-","Black",42,32,40,"Tapped","BK","T",77.875,80.375,42,"5550-BK423240T"]
["5550-","Grey",42,32,40,"Tapped","GR","T",77.875,80.375,42,"5550-GR423240T"]
["5550-","White",42,32,40,"Square","WH","S",77.875,80.375,42,"5550-WH423240S"]
["5550-","Black",42,32,40,"Square","BK","S",77.875,80.375,42,"5550-BK423240S"]
["5550-","Grey",42,32,40,"Square","GR","S",77.875,80.375,42,"5550-GR423240S"]
["5550-","White",42,32,42,"Tapped","WH","T",77.875,80.375,44,"5550-WH423242T"]
["5550-","Black",42,32,42,"Tapped","BK","T",77.875,80.375,44,"5550-BK423242T"]
["5550-","Grey",42,32,42,"Tapped","GR","T",77.875,80.375,44,"5550-GR423242T"]
["5550-","White",42,32,42,"Square","WH","S",77.875,80.375,44,"5550-WH423242S"]
["5550-","Black",42,32,42,"Square","BK","S",77.875,80.375,44,"5550-BK423242S"]
["5550-","Grey",42,32,42,"Square","GR","S",77.875,80.375,44,"5550-GR423242S"]
["5550-","White",42,32,48,"Tapped","WH","T",77.875,80.375,50,"5550-WH423248T"]
["5550-","Black",42,32,48,"Tapped","BK","T",77.875,80.375,50,"5550-BK423248T"]
["5550-","Grey",42,32,48,"Tapped","GR","T",77.875,80.375,50,"5550-GR423248T",null,null,"dropdown"]
["5550-","White",42,32,48,"Square","WH","S",77.875,80.375,50,"5550-WH423248S",null,null,"C","CC","RU","FW","FD","RS","RSC","Frame Height","Overall Height (In) W/Casters","Overall Depth (In) W/Doors"]
["5550-","Black",42,32,48,"Square","BK","S",77.875,80.375,50,"5550-BK423248S",null,null,"White","WH",42,24,32,"Square","S","77.875\"","80.375\"","35\""]
["5550-","Grey",42,32,48,"Square","GR","S",77.875,80.375,50,"5550-GR423248S",null,null,"Black","BK",45,28,36,"Tapped","T","83.125\"","85.625\"","38\""]
["5550-","White",45,24,32,"Tapped","WH","T",83.125,85.625,35,"5550-WH452432T",null,null,"Grey","GR",48,30,40,null,null,"88.375\"","90.875\"","42\""]
["5550-","Black",45,24,32,"Tapped","BK","T",83.125,85.625,35,"5550-BK452432T",null,null,null,null,52,32,42,null,null,"95.375\"","97.875\"","44\""]
["5550-","Grey",45,24,32,"Tapped","GR","T",83.125,85.625,35,"5550-GR452432T",null,null,null,null,null,null,48,null,null,null,null,"50\""]
["5550-","White",45,24,32,"Square","WH","S",83.125,85.625,35,"5550-WH452432S"]
["5550-","Black",45,24,32,"Square","BK","S",83.125,85.625,35,"5550-BK452432S",null,null,"invoice"]
["5550-","Grey",45,24,32,"Square","GR","S",83.125,85.625,35,"5550-GR452432S",null,null,"C","RU","FW","FD","RS","Part #","Quantity"]
["5550-","White",45,24,36,"Tapped","WH","T",83.125,85.625,38,"5550-WH452436T",null,null,{"$f":"VLOOKUP([1]Frontend!C6,[1]Frontend!C6,1)","v":{"$error":"#REF!"}},{"$f":"VLOOKUP([1]Frontend!D6,[1]Frontend!D6,1)","v":{"$error":"#REF!"}},{"$f":"VLOOKUP([1]Frontend!E6,[1]Frontend!E6,1)","v":{"$error":"#REF!"}},{"$f":"VLOOKUP([1]Frontend!F6,[1]Frontend!F6,1)","v":{"$error":"#REF!"}},{"$f":"VLOOKUP([1]Frontend!G6,[1]Frontend!G6,1)","v":{"$error":"#REF!"}},{"$f":"VLOOKUP([1]Frontend!H6,[1]Frontend!H6,1)","v":{"$error":"#REF!"}},{"$f":"VLOOKUP([1]Frontend!I6,[1]Frontend!I6,1)","v":{"$error":"#REF!"}}]
["5550-","Black",45,24,36,"Tapped","BK","T",83.125,85.625,38,"5550-BK452436T"]
["5550-","Grey",45,24,36,"Tapped","GR","T",83.125,85.625,38,"5550-GR452436T"]
["5550-","White",45,24,36,"Square","WH","S",83.125,85.625,38,"5550-WH452436S"]
["5550-","Black",45,24,36,"Square","BK","S",83.125,85.625,38,"5550-BK452436S"]
["5550-","Grey",45,24,36,"Square","GR","S",83.125,85.625,42,"5550-GR452436S"]
["5550-","White",45,24,40,"Tapped","WH","T",83.125,85.625,42,"5550-WH452440T"]
["5550-","Black",45,24,40,"Tapped","BK","T",83.125,85.625,42,"5550-BK452440T"]
["5550-","Grey",45,24,40,"Tapped","GR","T",83.125,85.625,42,"5550-GR452440T"]
["5550-","White",45,24,40,"Square","WH","S",83.125,85.625,42,"5550-WH452440S"]
["5550-","Black",45,24,40,"Square","BK","S",83.125,85.625,42,"5550-BK452440S"]
["5550-","Grey",45,24,40,"Square","GR","S",83.125,85.625,42,"5550-GR452440S"]
["5550-","White",45,24,42,"Tapped","WH","T",83.125,85.625,44,"5550-WH452442T"]
["5550-","Black",45,24,42,"Tapped","BK","T",83.125,85.625,44,"5550-BK452442T"]
["5550-","Grey",45,24,42,"Tapped","GR","T",83.125,85.625,44,"5550-GR452442T"]
["5550-","White",45,24,42,"Square","WH","S",83.125,85.625,44,"5550-WH452442S"]
["5550-","Black",45,24,42,"Square","BK","S",83.125,85.625,44,"5550-BK452442S"]
["5550-","Grey",45,24,42,"Square","GR","S",83.125,85.625,44,"5550-GR452442S"]
["5550-","White",45,24,48,"Tapped","WH","T",83.125,85.625,50,"5550-WH452448T"]
["5550-","Black",45,24,48,"Tapped","BK","T",83.125,85.625,50,"5550-BK452448T"]
["5550-","Grey",45,24,48,"Tapped","GR","T",83.125,85.625,50,"5550-GR452448T"]
["5550-","White",45,24,48,"Square","WH","S",83.125,85.625,50,"5550-WH452448S"]
["5550-","Black",45,24,48,"Square","BK","S",83.125,85.625,50,"5550-BK452448S"]
["5550-","Grey",45,24,48,"Square","GR","S",83.125,85.625,50,"5550-GR452448S"]
["5550-","White",45,28,32,"Tapped","WH","T",83.125,85.625,35,"5550-WH452832T"]
["5550-","Black",45,28,32,"Tapped","BK","T",83.125,85.625,35,"5550-BK452832T"]
["5550-","Grey",45,28,32,"Tapped","GR","T",83.125,85.625,35,"5550-GR452832T"]
["5550-","White",45,28,32,"Square","WH","S",83.125,85.625,35,"5550-WH452832S"]
["5550-","Black",45,28,32,"Square","BK","S",83.125,85.625,35,"5550-BK452832S"]
["5550-","Grey",45,28,32,"Square","GR","S",83.125,85.625,35,"5550-GR452832S"]
["5550-","White",45,28,36,"Tapped","WH","T",83.125,85.625,38,"5550-WH452836T"]
["5550-","Black",45,28,36,"Tapped","BK","T",83.125,85.625,38,"5550-BK452836T"]
["5550-","Grey",45,28,36,"Tapped","GR","T",83.125,85.625,38,"5550-GR452836T"]
["5550-","White",45,28,36,"Square","WH","S",83.125,85.625,38,"5550-WH452836S"]
["5550-","Black",45,28,36,"Square","BK","S",83.125,85.625,38,"5550-BK452836S"]
["5550-","Grey",45,28,36,"Square","GR","S",83.125,85.625,42,"5550-GR452836S"]
["5550-","White",45,28,40,"Tapped","WH","T",83.125,85.625,42,"5550-WH452840T"]
["5550-","Black",45,28,40,"Tapped","BK","T",83.125,85.625,42,"5550-BK452840T"]
["5550-","Grey",45,28,40,"Tapped","GR","T",83.125,85.625,42,"5550-GR452840T"]
["5550-","White",45,28,40,"Square","WH","S",83.125,85.625,42,"5550-WH452840S"]
["5550-","Black",45,28,40,"Square","BK","S",83.125,85.625,42,"5550-BK452840S"]
["5550-","Grey",45,28,40,"Square","GR","S",83.125,85.625,42,"5550-GR452840S"]
["5550-","White",45,28,42,"Tapped","WH","T",83.125,85.625,44,"5550-WH452842T"]
["5550-","Black",45,28,42,"Tapped","BK","T",83.125,85.625,44,"5550-BK452842T"]
["5550-","Grey",45,28,42,"Tapped","GR","T",83.125,85.625,44,"5550-GR452842T"]
["5550-","White",45,28,42,"Square","WH","S",83.125,85.625,44,"5550-WH452842S"]
["5550-","Black",45,28,42,"Square","BK","S",83.125,85.625,44,"5550-BK452842S"]
["5550-","Grey",45,28,42,"Square","GR","S",83.125,85.625,44,"5550-GR452842S"]
["5550-","White",45,28,48,"Tapped","WH","T",83.125,85.625,50,"5550-WH452848T"]
["5550-","Black",45,28,48,"Tapped","BK","T",83.125,85.625,50,"5550-BK452848T"]
["5550-","Grey",45,28,48,"Tapped","GR","T",83.125,85.625,50,"5550-GR452848T"]
["5550-","White",45,28,48,"Square","WH","S",83.125,85.625,50,"5550-WH452848S"]
["5550-","Black",45,28,48,"Square","BK","S",83.125,85.625,50,"5550-BK452848S"]
["5550-","Grey",45,28,48,"Square","GR","S",83.125,85.625,50,"5550-GR452848S"]
["5550-","White",45,30,32,"Tapped","WH","T",83.125,85.625,35,"5550-WH453032T"]
["5550-","Black",45,30,32,"Tapped","BK","T",83.125,85.625,35,"5550-BK453032T"]
["5550-","Grey",45,30,32,"Tapped","GR","T",83.125,85.625,35,"5550-GR453032T"]
["5550-","White",45,30,32,"Square","WH","S",83.125,85.625,35,"5550-WH453032S"]
["5550-","Black",45,30,32,"Square","BK","S",83.125,85.625,35,"5550-BK453032S"]
["5550-","Grey",45,30,32,"Square","GR","S",83.125,85.625,35,"5550-GR453032S"]
["5550-","White",45,30,36,"Tapped","WH","T",83.125,85.625,38,"5550-WH453036T"]
["5550-","Black",45,30,36,"Tapped","BK","T",83.125,85.625,38,"5550-BK453036T"]
["5550-","Grey",45,30,36,"Tapped","GR","T",83.125,85.625,38,"5550-GR453036T"]
["5550-","White",45,30,36,"Square","WH","S",83.125,85.625,38,"5550-WH453036S"]
["5550-","Black",45,30,36,"Square","BK","S",83.125,85.625,38,"5550-BK453036S"]
["5550-","Grey",45,30,36,"Square","GR","S",83.125,85.625,42,"5550-GR453036S"]
["5550-","White",45,30,40,"Tapped","WH","T",83.125,85.625,42,"5550-WH453040T"]
["5550-","Black",45,30,40,"Tapped","BK","T",83.125,85.625,42,"5550-BK453040T"]
["5550-","Grey",45,30,40,"Tapped","GR","T",83.125,85.625,42,"5550-GR453040T"]
["5550-","White",45,30,40,"Square","WH","S",83.125,85.625,42,"5550-WH453040S"]
["5550-","Black",45,30,40,"Square","BK","S",83.125,85.625,42,"5550-BK453040S"]
["5550-","Grey",45,30,40,"Square","GR","S",83.125,85.625,42,"5550-GR453040S"]
["5550-","White",45,30,42,"Tapped","WH","T",83.125,85.625,44,"5550-WH453042T"]
["5550-","Black",45,30,42,"Tapped","BK","T",83.125,85.625,44,"5550-BK453042T"]
["5550-","Grey",45,30,42,"Tapped","GR","T",83.125,85.625,44,"5550-GR453042T"]
["5550-","White",45,30,42,"Square","WH","S",83.125,85.625,44,"5550-WH453042S"]
["5550-","Black",45,30,42,"Square","BK","S",83.125,85.625,44,"5550-BK453042S"]
["5550-","Grey",45,30,42,"Square","GR","S",83.125,85.625,44,"5550-GR453042S"]
["5550-","White",45,30,48,"Tapped","WH","T",83.125,85.625,50,"5550-WH453048T"]
["5550-","Black",45,30,48,"Tapped","BK","T",83.125,85.625,50,"5550-BK453048T"]
["5550-","Grey",45,30,48,"Tapped","GR","T",83.125,85.625,50,"5550-GR453048T"]
["5550-","White",45,30,48,"Square","WH","S",83.125,85.625,50,"5550-WH453048S"]
["5550-","Black",45,30,48,"Square","BK","S",83.125,85.625,50,"5550-BK453048S"]
["5550-","Grey",45,30,48,"Square","GR","S",83.125,85.625,50,"5550-GR453048S"]
["5550-","White",45,32,32,"Tapped","WH","T",83.125,85.625,35,"5550-WH453232T"]
["5550-","Black",45,32,32,"Tapped","BK","T",83.125,85.625,35,"5550-BK453232T"]
["5550-","Grey",45,32,32,"Tapped","GR","T",83.125,85.625,35,"5550-GR453232T"]
["5550-","White",45,32,32,"Square","WH","S",83.125,85.625,35,"5550-WH453232S"]
["5550-","Black",45,32,32,"Square","BK","S",83.125,85.625,35,"5550-BK453232S"]
["5550-","Grey",45,32,32,"Square","GR","S",83.125,85.625,35,"5550-GR453232S"]
["5550-","White",45,32,36,"Tapped","WH","T",83.125,85.625,38,"5550-WH453236T"]
["5550-","Black",45,32,36,"Tapped","BK","T",83.125,85.625,38,"5550-BK453236T"]
["5550-","Grey",45,32,36,"Tapped","GR","T",83.125,85.625,38,"5550-GR453236T"]
["5550-","White",45,32,36,"Square","WH","S",83.125,85.625,38,"5550-WH453236S"]
["5550-","Black",45,32,36,"Square","BK","S",83.125,85.625,38,"5550-BK453236S"]
["5550-","Grey",45,32,36,"Square","GR","S",83.125,85.625,42,"5550-GR453236S"]
["5550-","White",45,32,40,"Tapped","WH","T",83.125,85.625,42,"5550-WH453240T"]
["5550-","Black",45,32,40,"Tapped","BK","T",83.125,85.625,42,"5550-BK453240T"]
["5550-","Grey",45,32,40,"Tapped","GR","T",83.125,85.625,42,"5550-GR453240T"]
["5550-","White",45,32,40,"Square","WH","S",83.125,85.625,42,"5550-WH453240S"]
["5550-","Black",45,32,40,"Square","BK","S",83.125,85.625,42,"5550-BK453240S"]
["5550-","Grey",45,32,40,"Square","GR","S",83.125,85.625,42,"5550-GR453240S"]
["5550-","White",45,32,42,"Tapped","WH","T",83.125,85.625,44,"5550-WH453242T"]
["5550-","Black",45,32,42,"Tapped","BK","T",83.125,85.625,44,"5550-BK453242T"]
["5550-","Grey",45,32,42,"Tapped","GR","T",83.125,85.625,44,"5550-GR453242T"]
["5550-","White",45,32,42,"Square","WH","S",83.125,85.625,44,"5550-WH453242S"]
["5550-","Black",45,32,42,"Square","BK","S",83.125,85.625,44,"5550-BK453242S"]
["5550-","Grey",45,32,42,"Square","GR","S",83.125,85.625,44,"5550-GR453242S"]
["5550-","White",45,32,48,"Tapped","WH","T",83.125,85.625,50,"5550-WH453248T"]
["5550-","Black",45,32,48,"Tapped","BK","T",83.125,85.625,50,"5550-BK453248T"]
["5550-","Grey",45,32,48,"Tapped","GR","T",83.125,85.625,50,"5550-GR453248T"]
["5550-","White",45,32,48,"Square","WH","S",83.125,85.625,50,"5550-WH453248S"]
["5550-","Black",45,32,48,"Square","BK","S",83.125,85.625,50,"5550-BK453248S"]
["5550-","Grey",45,32,48,"Square","GR","S",83.125,85.625,50,"5550-GR453248S"]
["5550-","White",48,24,32,"Tapped","WH","T",88.375,90.875,35,"5550-WH482432T"]
["5550-","Black",48,24,32,"Tapped","BK","T",88.375,90.875,35,"5550-BK482432T"]
["5550-","Grey",48,24,32,"Tapped","GR","T",88.375,90.875,35,"5550-GR482432T"]
["5550-","White",48,24,32,"Square","WH","S",88.375,90.875,35,"5550-WH482432S"]
["5550-","Black",48,24,32,"Square","BK","S",88.375,90.875,35,"5550-BK482432S"]
["5550-","Grey",48,24,32,"Square","GR","S",88.375,90.875,35,"5550-GR482432S"]
["5550-","White",48,24,36,"Tapped","WH","T",88.375,90.875,38,"5550-WH482436T"]
["5550-","Black",48,24,36,"Tapped","BK","T",88.375,90.875,38,"5550-BK482436T"]
["5550-","Grey",48,24,36,"Tapped","GR","T",88.375,90.875,38,"5550-GR482436T"]
["5550-","White",48,24,36,"Square","WH","S",88.375,90.875,38,"5550-WH482436S"]
["5550-","Black",48,24,36,"Square","BK","S",88.375,90.875,38,"5550-BK482436S"]
["5550-","Grey",48,24,36,"Square","GR","S",88.375,90.875,42,"5550-GR482436S"]
["5550-","White",48,24,40,"Tapped","WH","T",88.375,90.875,42,"5550-WH482440T"]
["5550-","Black",48,24,40,"Tapped","BK","T",88.375,90.875,42,"5550-BK482440T"]
["5550-","Grey",48,24,40,"Tapped","GR","T",88.375,90.875,42,"5550-GR482440T"]
["5550-","White",48,24,40,"Square","WH","S",88.375,90.875,42,{"$f":"CONCATENATE($A$6,G261,C261,D261,E261,H261)","v":"5550-WH482440S"}]
["5550-","Black",48,24,40,"Square","BK","S",88.375,90.875,42,"5550-BK482440S"]
["5550-","Grey",48,24,40,"Square","GR","S",88.375,90.875,42,"5550-GR482440S"]
["5550-","White",48,24,42,"Tapped","WH","T",88.375,90.875,44,"5550-WH482442T"]
["5550-","Black",48,24,42,"Tapped","BK","T",88.375,90.875,44,"5550-BK482442T"]
["5550-","Grey",48,24,42,"Tapped","GR","T",88.375,90.875,44,"5550-GR482442T"]
["5550-","White",48,24,42,"Square","WH","S",88.375,90.875,44,"5550-WH482442S"]
["5550-","Black",48,24,42,"Square","BK","S",88.375,90.875,44,"5550-BK482442S"]
["5550-","Grey",48,24,42,"Square","GR","S",88.375,90.875,44,"5550-GR482442S"]
["5550-","White",48,24,48,"Tapped","WH","T",88.375,90.875,50,"5550-WH482448T"]
["5550-","Black",48,24,48,"Tapped","BK","T",88.375,90.875,50,"5550-BK482448T"]
["5550-","Grey",48,24,48,"Tapped","GR","T",88.375,90.875,50,"5550-GR482448T"]
["5550-","White",48,24,48,"Square","WH","S",88.375,90.875,50,"5550-WH482448S"]
["5550-","Black",48,24,48,"Square","BK","S",88.375,90.875,50,"5550-BK482448S"]
["5550-","Grey",48,24,48,"Square","GR","S",88.375,90.875,50,"5550-GR482448S"]
["5550-","White",48,28,32,"Tapped","WH","T",88.375,90.875,35,"5550-WH482832T"]
["5550-","Black",48,28,32,"Tapped","BK","T",88.375,90.875,35,"5550-BK482832T"]
["5550-","Grey",48,28,32,"Tapped","GR","T",88.375,90.875,35,"5550-GR482832T"]
["5550-","White",48,28,32,"Square","WH","S",88.375,90.875,35,"5550-WH482832S"]
["5550-","Black",48,28,32,"Square","BK","S",88.375,90.875,35,"5550-BK482832S"]
["5550-","Grey",48,28,32,"Square","GR","S",88.375,90.875,35,"5550-GR482832S"]
["5550-","White",48,28,36,"Tapped","WH","T",88.375,90.875,38,"5550-WH482836T"]
["5550-","Black",48,28,36,"Tapped","BK","T",88.375,90.875,38,"5550-BK482836T"]
["5550-","Grey",48,28,36,"Tapped","GR","T",88.375,90.875,38,"5550-GR482836T"]
["5550-","White",48,28,36,"Square","WH","S",88.375,90.875,38,"5550-WH482836S"]
["5550-","Black",48,28,36,"Square","BK","S",88.375,90.875,38,"5550-BK482836S"]
["5550-","Grey",48,28,36,"Square","GR","S",88.375,90.875,42,"5550-GR482836S"]
["5550-","White",48,28,40,"Tapped","WH","T",88.375,90.875,42,"5550-WH482840T"]
["5550-","Black",48,28,40,"Tapped","BK","T",88.375,90.875,42,"5550-BK482840T"]
["5550-","Grey",48,28,40,"Tapped","GR","T",88.375,90.875,42,"5550-GR482840T"]
["5550-","White",48,28,40,"Square","WH","S",88.375,90.875,42,"5550-WH482840S"]
["5550-","Black",48,28,40,"Square","BK","S",88.375,90.875,42,"5550-BK482840S"]
["5550-","Grey",48,28,40,"Square","GR","S",88.375,90.875,42,"5550-GR482840S"]
["5550-","White",48,28,42,"Tapped","WH","T",88.375,90.875,44,"5550-WH482842T"]
["5550-","Black",48,28,42,"Tapped","BK","T",88.375,90.875,44,"5550-BK482842T"]
["5550-","Grey",48,28,42,"Tapped","GR","T",88.375,90.875,44,"5550-GR482842T"]
["5550-","White",48,28,42,"Square","WH","S",88.375,90.875,44,"5550-WH482842S"]
["5550-","Black",48,28,42,"Square","BK","S",88.375,90.875,44,"5550-BK482842S"]
["5550-","Grey",48,28,42,"Square","GR","S",88.375,90.875,44,"5550-GR482842S"]
["5550-","White",48,28,48,"Tapped","WH","T",88.375,90.875,50,"5550-WH482848T"]
["5550-","Black",48,28,48,"Tapped","BK","T",88.375,90.875,50,"5550-BK482848T"]
["5550-","Grey",48,28,48,"Tapped","GR","T",88.375,90.875,50,"5550-GR482848T"]
["5550-","White",48,28,48,"Square","WH","S",88.375,90.875,50,"5550-WH482848S"]
["5550-","Black",48,28,48,"Square","BK","S",88.375,90.875,50,"5550-BK482848S"]
["5550-","Grey",48,28,48,"Square","GR","S",88.375,90.875,50,"5550-GR482848S"]
["5550-","White",48,30,32,"Tapped","WH","T",88.375,90.875,35,"5550-WH483032T"]
["5550-","Black",48,30,32,"Tapped","BK","T",88.375,90.875,35,"5550-BK483032T"]
["5550-","Grey",48,30,32,"Tapped","GR","T",88.375,90.875,35,"5550-GR483032T"]
["5550-","White",48,30,32,"Square","WH","S",88.375,90.875,35,"5550-WH483032S"]
["5550-","Black",48,30,32,"Square","BK","S",88.375,90.875,35,"5550-BK483032S"]
["5550-","Grey",48,30,32,"Square","GR","S",88.375,90.875,35,"5550-GR483032S"]
["5550-","White",48,30,36,"Tapped","WH","T",88.375,90.875,38,"5550-WH483036T"]
["5550-","Black",48,30,36,"Tapped","BK","T",88.375,90.875,38,"5550-BK483036T"]
["5550-","Grey",48,30,36,"Tapped","GR","T",88.375,90.875,38,"5550-GR483036T"]
["5550-","White",48,30,36,"Square","WH","S",88.375,90.875,38,"5550-WH483036S"]
["5550-","Black",48,30,36,"Square","BK","S",88.375,90.875,38,"5550-BK483036S"]
["5550-","Grey",48,30,36,"Square","GR","S",88.375,90.875,42,"5550-GR483036S"]
["5550-","White",48,30,40,"Tapped","WH","T",88.375,90.875,42,"5550-WH483040T"]
["5550-","Black",48,30,40,"Tapped","BK","T",88.375,90.875,42,"5550-BK483040T"]
["5550-","Grey",48,30,40,"Tapped","GR","T",88.375,90.875,42,"5550-GR483040T"]
["5550-","White",48,30,40,"Square","WH","S",88.375,90.875,42,"5550-WH483040S"]
["5550-","Black",48,30,40,"Square","BK","S",88.375,90.875,42,"5550-BK483040S"]
["5550-","Grey",48,30,40,"Square","GR","S",88.375,90.875,42,"5550-GR483040S"]
["5550-","White",48,30,42,"Tapped","WH","T",88.375,90.875,44,"5550-WH483042T"]
["5550-","Black",48,30,42,"Tapped","BK","T",88.375,90.875,44,"5550-BK483042T"]
["5550-","Grey",48,30,42,"Tapped","GR","T",88.375,90.875,44,"5550-GR483042T"]
["5550-","White",48,30,42,"Square","WH","S",88.375,90.875,44,"5550-WH483042S"]
["5550-","Black",48,30,42,"Square","BK","S",88.375,90.875,44,"5550-BK483042S"]
["5550-","Grey",48,30,42,"Square","GR","S",88.375,90.875,44,"5550-GR483042S"]
["5550-","White",48,30,48,"Tapped","WH","T",88.375,90.875,50,"5550-WH483048T"]
["5550-","Black",48,30,48,"Tapped","BK","T",88.375,90.875,50,"5550-BK483048T"]
["5550-","Grey",48,30,48,"Tapped","GR","T",88.375,90.875,50,"5550-GR483048T"]
["5550-","White",48,30,48,"Square","WH","S",88.375,90.875,50,"5550-WH483048S"]
["5550-","Black",48,30,48,"Square","BK","S",88.375,90.875,50,"5550-BK483048S"]
["5550-","Grey",48,30,48,"Square","GR","S",88.375,90.875,50,"5550-GR483048S"]
["5550-","White",48,32,32,"Tapped","WH","T",88.375,90.875,35,"5550-WH483232T"]
["5550-","Black",48,32,32,"Tapped","BK","T",88.375,90.875,35,"5550-BK483232T"]
["5550-","Grey",48,32,32,"Tapped","GR","T",88.375,90.875,35,"5550-GR483232T"]
["5550-","White",48,32,32,"Square","WH","S",88.375,90.875,35,"5550-WH483232S"]
["5550-","Black",48,32,32,"Square","BK","S",88.375,90.875,35,"5550-BK483232S"]
["5550-","Grey",48,32,32,"Square","GR","S",88.375,90.875,35,"5550-GR483232S"]
["5550-","White",48,32,36,"Tapped","WH","T",88.375,90.875,38,"5550-WH483236T"]
["5550-","Black",48,32,36,"Tapped","BK","T",88.375,90.875,38,"5550-BK483236T"]
["5550-","Grey",48,32,36,"Tapped","GR","T",88.375,90.875,38,"5550-GR483236T"]
["5550-","White",48,32,36,"Square","WH","S",88.375,90.875,38,"5550-WH483236S"]
["5550-","Black",48,32,36,"Square","BK","S",88.375,90.875,38,"5550-BK483236S"]
["5550-","Grey",48,32,36,"Square","GR","S",88.375,90.875,42,"5550-GR483236S"]
["5550-","White",48,32,40,"Tapped","WH","T",88.375,90.875,42,"5550-WH483240T"]
["5550-","Black",48,32,40,"Tapped","BK","T",88.375,90.875,42,"5550-BK483240T"]
["5550-","Grey",48,32,40,"Tapped","GR","T",88.375,90.875,42,"5550-GR483240T"]
["5550-","White",48,32,40,"Square","WH","S",88.375,90.875,42,"5550-WH483240S"]
["5550-","Black",48,32,40,"Square","BK","S",88.375,90.875,42,"5550-BK483240S"]
["5550-","Grey",48,32,40,"Square","GR","S",88.375,90.875,42,"5550-GR483240S"]
["5550-","White",48,32,42,"Tapped","WH","T",88.375,90.875,44,"5550-WH483242T"]
["5550-","Black",48,32,42,"Tapped","BK","T",88.375,90.875,44,"5550-BK483242T"]
["5550-","Grey",48,32,42,"Tapped","GR","T",88.375,90.875,44,"5550-GR483242T"]
["5550-","White",48,32,42,"Square","WH","S",88.375,90.875,44,"5550-WH483242S"]
["5550-","Black",48,32,42,"Square","BK","S",88.375,90.875,44,"5550-BK483242S"]
["5550-","Grey",48,32,42,"Square","GR","S",88.375,90.875,44,"5550-GR483242S"]
["5550-","White",48,32,48,"Tapped","WH","T",88.375,90.875,50,"5550-WH483248T"]
["5550-","Black",48,32,48,"Tapped","BK","T",88.375,90.875,50,"5550-BK483248T"]
["5550-","Grey",48,32,48,"Tapped","GR","T",88.375,90.875,50,"5550-GR483248T"]
["5550-","White",48,32,48,"Square","WH","S",88.375,90.875,50,"5550-WH483248S"]
["5550-","Black",48,32,48,"Square","BK","S",88.375,90.875,50,"5550-BK483248S"]
["5550-","Grey",48,32,48,"Square","GR","S",88.375,90.875,50,"5550-GR483248S"]
["5550-","White",52,24,32,"Tapped","WH","T",95.375,97.875,35,"5550-WH522432T"]
["5550-","Black",52,24,32,"Tapped","BK","T",95.375,97.875,35,"5550-BK522432T"]
["5550-","Grey",52,24,32,"Tapped","GR","T",95.375,97.875,35,"5550-GR522432T"]
["5550-","White",52,24,32,"Square","WH","S",95.375,97.875,35,"5550-WH522432S"]
["5550-","Black",52,24,32,"Square","BK","S",95.375,97.875,35,"5550-BK522432S"]
["5550-","Grey",52,24,32,"Square","GR","S",95.375,97.875,35,"5550-GR522432S"]
["5550-","White",52,24,36,"Tapped","WH","T",95.375,97.875,38,"5550-WH522436T"]
["5550-","Black",52,24,36,"Tapped","BK","T",95.375,97.875,38,"5550-BK522436T"]
["5550-","Grey",52,24,36,"Tapped","GR","T",95.375,97.875,38,"5550-GR522436T"]
["5550-","White",52,24,36,"Square","WH","S",95.375,97.875,38,"5550-WH522436S"]
["5550-","Black",52,24,36,"Square","BK","S",95.375,97.875,38,"5550-BK522436S"]
["5550-","Grey",52,24,36,"Square","GR","S",95.375,97.875,42,"5550-GR522436S"]
["5550-","White",52,24,40,"Tapped","WH","T",95.375,97.875,42,"5550-WH522440T"]
["5550-","Black",52,24,40,"Tapped","BK","T",95.375,97.875,42,"5550-BK522440T"]
["5550-","Grey",52,24,40,"Tapped","GR","T",95.375,97.875,42,"5550-GR522440T"]
["5550-","White",52,24,40,"Square","WH","S",95.375,97.875,42,"5550-WH522440S"]
["5550-","Black",52,24,40,"Square","BK","S",95.375,97.875,42,"5550-BK522440S"]
["5550-","Grey",52,24,40,"Square","GR","S",95.375,97.875,42,"5550-GR522440S"]
["5550-","White",52,24,42,"Tapped","WH","T",95.375,97.875,44,"5550-WH522442T"]
["5550-","Black",52,24,42,"Tapped","BK","T",95.375,97.875,44,"5550-BK522442T"]
["5550-","Grey",52,24,42,"Tapped","GR","T",95.375,97.875,44,"5550-GR522442T"]
["5550-","White",52,24,42,"Square","WH","S",95.375,97.875,44,"5550-WH522442S"]
["5550-","Black",52,24,42,"Square","BK","S",95.375,97.875,44,"5550-BK522442S"]
["5550-","Grey",52,24,42,"Square","GR","S",95.375,97.875,44,"5550-GR522442S"]
["5550-","White",52,24,48,"Tapped","WH","T",95.375,97.875,50,"5550-WH522448T"]
["5550-","Black",52,24,48,"Tapped","BK","T",95.375,97.875,50,"5550-BK522448T"]
["5550-","Grey",52,24,48,"Tapped","GR","T",95.375,97.875,50,"5550-GR522448T"]
["5550-","White",52,24,48,"Square","WH","S",95.375,97.875,50,"5550-WH522448S"]
["5550-","Black",52,24,48,"Square","BK","S",95.375,97.875,50,"5550-BK522448S"]
["5550-","Grey",52,24,48,"Square","GR","S",95.375,97.875,50,"5550-GR522448S"]
["5550-","White",52,28,32,"Tapped","WH","T",95.375,97.875,35,"5550-WH522832T"]
["5550-","Black",52,28,32,"Tapped","BK","T",95.375,97.875,35,"5550-BK522832T"]
["5550-","Grey",52,28,32,"Tapped","GR","T",95.375,97.875,35,"5550-GR522832T"]
["5550-","White",52,28,32,"Square","WH","S",95.375,97.875,35,"5550-WH522832S"]
["5550-","Black",52,28,32,"Square","BK","S",95.375,97.875,35,"5550-BK522832S"]
["5550-","Grey",52,28,32,"Square","GR","S",95.375,97.875,35,"5550-GR522832S"]
["5550-","White",52,28,36,"Tapped","WH","T",95.375,97.875,38,"5550-WH522836T"]
["5550-","Black",52,28,36,"Tapped","BK","T",95.375,97.875,38,"5550-BK522836T"]
["5550-","Grey",52,28,36,"Tapped","GR","T",95.375,97.875,38,"5550-GR522836T"]
["5550-","White",52,28,36,"Square","WH","S",95.375,97.875,38,"5550-WH522836S"]
["5550-","Black",52,28,36,"Square","BK","S",95.375,97.875,38,"5550-BK522836S"]
["5550-","Grey",52,28,36,"Square","GR","S",95.375,97.875,42,"5550-GR522836S"]
["5550-","White",52,28,40,"Tapped","WH","T",95.375,97.875,42,"5550-WH522840T"]
["5550-","Black",52,28,40,"Tapped","BK","T",95.375,97.875,42,"5550-BK522840T"]
["5550-","Grey",52,28,40,"Tapped","GR","T",95.375,97.875,42,"5550-GR522840T"]
["5550-","White",52,28,40,"Square","WH","S",95.375,97.875,42,"5550-WH522840S"]
["5550-","Black",52,28,40,"Square","BK","S",95.375,97.875,42,"5550-BK522840S"]
["5550-","Grey",52,28,40,"Square","GR","S",95.375,97.875,42,"5550-GR522840S"]
["5550-","White",52,28,42,"Tapped","WH","T",95.375,97.875,44,"5550-WH522842T"]
["5550-","Black",52,28,42,"Tapped","BK","T",95.375,97.875,44,"5550-BK522842T"]
["5550-","Grey",52,28,42,"Tapped","GR","T",95.375,97.875,44,"5550-GR522842T"]
["5550-","White",52,28,42,"Square","WH","S",95.375,97.875,44,"5550-WH522842S"]
["5550-","Black",52,28,42,"Square","BK","S",95.375,97.875,44,"5550-BK522842S"]
["5550-","Grey",52,28,42,"Square","GR","S",95.375,97.875,44,"5550-GR522842S"]
["5550-","White",52,28,48,"Tapped","WH","T",95.375,97.875,50,"5550-WH522848T"]
["5550-","Black",52,28,48,"Tapped","BK","T",95.375,97.875,50,"5550-BK522848T"]
["5550-","Grey",52,28,48,"Tapped","GR","T",95.375,97.875,50,"5550-GR522848T"]
["5550-","White",52,28,48,"Square","WH","S",95.375,97.875,50,"5550-WH522848S"]
["5550-","Black",52,28,48,"Square","BK","S",95.375,97.875,50,"5550-BK522848S"]
["5550-","Grey",52,28,48,"Square","GR","S",95.375,97.875,50,"5550-GR522848S"]
["5550-","White",52,30,32,"Tapped","WH","T",95.375,97.875,35,"5550-WH523032T"]
["5550-","Black",52,30,32,"Tapped","BK","T",95.375,97.875,35,"5550-BK523032T"]
["5550-","Grey",52,30,32,"Tapped","GR","T",95.375,97.875,35,"5550-GR523032T"]
["5550-","White",52,30,32,"Square","WH","S",95.375,97.875,35,"5550-WH523032S"]
["5550-","Black",52,30,32,"Square","BK","S",95.375,97.875,35,"5550-BK523032S"]
["5550-","Grey",52,30,32,"Square","GR","S",95.375,97.875,35,"5550-GR523032S"]
["5550-","White",52,30,36,"Tapped","WH","T",95.375,97.875,38,"5550-WH523036T"]
["5550-","Black",52,30,36,"Tapped","BK","T",95.375,97.875,38,"5550-BK523036T"]
["5550-","Grey",52,30,36,"Tapped","GR","T",95.375,97.875,38,"5550-GR523036T"]
["5550-","White",52,30,36,"Square","WH","S",95.375,97.875,38,"5550-WH523036S"]
["5550-","Black",52,30,36,"Square","BK","S",95.375,97.875,38,"5550-BK523036S"]
["5550-","Grey",52,30,36,"Square","GR","S",95.375,97.875,42,"5550-GR523036S"]
["5550-","White",52,30,40,"Tapped","WH","T",95.375,97.875,42,"5550-WH523040T"]
["5550-","Black",52,30,40,"Tapped","BK","T",95.375,97.875,42,"5550-BK523040T"]
["5550-","Grey",52,30,40,"Tapped","GR","T",95.375,97.875,42,"5550-GR523040T"]
["5550-","White",52,30,40,"Square","WH","S",95.375,97.875,42,"5550-WH523040S"]
["5550-","Black",52,30,40,"Square","BK","S",95.375,97.875,42,"5550-BK523040S"]
["5550-","Grey",52,30,40,"Square","GR","S",95.375,97.875,42,"5550-GR523040S"]
["5550-","White",52,30,42,"Tapped","WH","T",95.375,97.875,44,"5550-WH523042T"]
["5550-","Black",52,30,42,"Tapped","BK","T",95.375,97.875,44,"5550-BK523042T"]
["5550-","Grey",52,30,42,"Tapped","GR","T",95.375,97.875,44,"5550-GR523042T"]
["5550-","White",52,30,42,"Square","WH","S",95.375,97.875,44,"5550-WH523042S"]
["5550-","Black",52,30,42,"Square","BK","S",95.375,97.875,44,"5550-BK523042S"]
["5550-","Grey",52,30,42,"Square","GR","S",95.375,97.875,44,"5550-GR523042S"]
["5550-","White",52,30,48,"Tapped","WH","T",95.375,97.875,50,"5550-WH523048T"]
["5550-","Black",52,30,48,"Tapped","BK","T",95.375,97.875,50,"5550-BK523048T"]
["5550-","Grey",52,30,48,"Tapped","GR","T",95.375,97.875,50,"5550-GR523048T"]
["5550-","White",52,30,48,"Square","WH","S",95.375,97.875,50,"5550-WH523048S"]
["5550-","Black",52,30,48,"Square","BK","S",95.375,97.875,50,"5550-BK523048S"]
["5550-","Grey",52,30,48,"Square","GR","S",95.375,97.875,50,"5550-GR523048S"]
["5550-","White",52,32,32,"Tapped","WH","T",95.375,97.875,35,"5550-WH523232T"]
["5550-","Black",52,32,32,"Tapped","BK","T",95.375,97.875,35,"5550-BK523232T"]
["5550-","Grey",52,32,32,"Tapped","GR","T",95.375,97.875,35,"5550-GR523232T"]
["5550-","White",52,32,32,"Square","WH","S",95.375,97.875,35,"5550-WH523232S"]
["5550-","Black",52,32,32,"Square","BK","S",95.375,97.875,35,"5550-BK523232S"]
["5550-","Grey",52,32,32,"Square","GR","S",95.375,97.875,35,"5550-GR523232S"]
["5550-","White",52,32,36,"Tapped","WH","T",95.375,97.875,38,"5550-WH523236T"]
["5550-","Black",52,32,36,"Tapped","BK","T",95.375,97.875,38,"5550-BK523236T"]
["5550-","Grey",52,32,36,"Tapped","GR","T",95.375,97.875,38,"5550-GR523236T"]
["5550-","White",52,32,36,"Square","WH","S",95.375,97.875,38,"5550-WH523236S"]
["5550-","Black",52,32,36,"Square","BK","S",95.375,97.875,38,"5550-BK523236S"]
["5550-","Grey",52,32,36,"Square","GR","S",95.375,97.875,42,"5550-GR523236S"]
["5550-","White",52,32,40,"Tapped","WH","T",95.375,97.875,42,"5550-WH523240T"]
["5550-","Black",52,32,40,"Tapped","BK","T",95.375,97.875,42,"5550-BK523240T"]
["5550-","Grey",52,32,40,"Tapped","GR","T",95.375,97.875,42,"5550-GR523240T"]
["5550-","White",52,32,40,"Square","WH","S",95.375,97.875,42,"5550-WH523240S"]
["5550-","Black",52,32,40,"Square","BK","S",95.375,97.875,42,"5550-BK523240S"]
["5550-","Grey",52,32,40,"Square","GR","S",95.375,97.875,42,"5550-GR523240S"]
["5550-","White",52,32,42,"Tapped","WH","T",95.375,97.875,44,"5550-WH523242T"]
["5550-","Black",52,32,42,"Tapped","BK","T",95.375,97.875,44,"5550-BK523242T"]
["5550-","Grey",52,32,42,"Tapped","GR","T",95.375,97.875,44,"5550-GR523242T"]
["5550-","White",52,32,42,"Square","WH","S",95.375,97.875,44,"5550-WH523242S"]
["5550-","Black",52,32,42,"Square","BK","S",95.375,97.875,44,"5550-BK523242S"]
["5550-","Grey",52,32,42,"Square","GR","S",95.375,97.875,44,"5550-GR523242S"]
["5550-","White",52,32,48,"Tapped","WH","T",95.375,97.875,50,"5550-WH523248T"]
["5550-","Black",52,32,48,"Tapped","BK","T",95.375,97.875,50,"5550-BK523248T"]
["5550-","Grey",52,32,48,"Tapped","GR","T",95.375,97.875,50,"5550-GR523248T"]
["5550-","White",52,32,48,"Square","WH","S",95.375,97.875,50,"5550-WH523248S"]
["5550-","Black",52,32,48,"Square","BK","S",95.375,97.875,50,"5550-BK523248S"]
["5550-","Grey",52,32,48,"Square","GR","S",95.375,97.875,50,"5550-GR523248S"]